Workbook

Sheet Startup page

Sheet Main Menu
C3: ALLOWABLE DEPTH OF BURY FOR PIPE
C4: Click on pipe type for analysis
C28: Note:
C30: These spreadsheets are tools and are not intended to replace good engineering judgement.
C32: To use these spreadsheets effectively, the designer must have a thorough understanding of soil-pipe interaction and depth of bury design.
A33: Startup page'!A1

Sheet DIP Depth of Bury
C3: Ductile Iron Pipe | N3: SUDAS P-1 | S3: SUDAS P-2 | X3: SUDAS P-3
C4: Min / Max depth of bury with both Dead and Live Loads factored in | N4: Bending Moment Coefficient, Kb | O4: =LOOKUP(N3,'DIP-Data'!B28:B32,'DIP-Data'!E28:E32) -> 0.21 | S4: Bending Moment Coefficient, Kb | T4: =LOOKUP(S3,'DIP-Data'!B28:B32,'DIP-Data'!E28:E32) -> 0.157 | X4: Bending Moment Coefficient, Kb | Y4: =LOOKUP(X3,'DIP-Data'!B30:B32,'DIP-Data'!E30:E32) -> 0.128
N5: Deflection Coefficient, Kx | O5: =LOOKUP(N3,'DIP-Data'!B28:B32,'DIP-Data'!F28:F32) -> 0.105 | S5: Deflection Coefficient, Kx | T5: =LOOKUP(S3,'DIP-Data'!B28:B32,'DIP-Data'!F28:F32) -> 0.096 | X5: Deflection Coefficient, Kx | Y5: =LOOKUP(X3,'DIP-Data'!B28:B32,'DIP-Data'!F28:F32) -> 0.085
D6: User inputs | N6: Modulus of Soil Reaction, E' | O6: 300 | S6: Modulus of Soil Reaction, E' | T6: =LOOKUP(S3,'DIP-Data'!B28:B32,'DIP-Data'!C28:C32) -> 500 | X6: Modulus of Soil Reaction, E' | Y6: =LOOKUP(X3,'DIP-Data'!B28:B32,'DIP-Data'!C28:C32) -> 700
AC7: Pipe Class | AD7: Diameter | AE7: Bedding Class | AF7: Yes
C8: Pipe Diameter, in | D8: 8 | F8: =IF(D19="N/A","Pipe Diameter/Class combination is not","") ->  | AC8: Pressure Class 150 | AD8: 3 | AE8: SUDAS P-1 | AF8: No
C9: Pipe Class | D9: Thickness Class 52 | F9: =IF(D19="N/A","available. Select alternate diameter or pipe class.","") ->  | N9: Depth of bury calcs - no user inputs | S9: Depth of bury calcs - no user inputs | X9: Depth of bury calcs - no user inputs | AC9: Pressure Class 200 | AD9: 4 | AE9: SUDAS P-2
C10: Unit weight of soil, pcf | D10: 120 | AC10: Pressure Class 250 | AD10: 6 | AE10: SUDAS P-3
C11: Allowable deflection, % | D11: 3 | N11: Earth load | S11: Earth load | X11: Earth load | AC11: Pressure Class 300 | AD11: 8
C12: Consider Live Load? | D12: Yes | O12: Allowable pressure | T12: Allowable pressure | Y12: Allowable pressure | AC12: Pressure Class 350 | AD12: 10
O13: Pv, psi | P13: H | T13: Pv, psi | U13: H | Y13: Pv, psi | Z13: H | AC13: Thickness Class 52 | AD13: 12
N14: Ring Bending Stress | O14: =$D$23/(3*($D$16/$D$20)*($D$16/$D$20-1)*(O4-(O5/((8*$D$22)/(O6*($D$16/$D$20-1)^3)+0.732)))) -> 40.54852549 | P14: =O14*144/D10 -> 48.65823059 | S14: Ring Bending Stress | T14: =$D$23/(3*($D$16/$D$20)*($D$16/$D$20-1)*(T4-(T5/((8*$D$22)/(T6*($D$16/$D$20-1)^3)+0.732)))) -> 57.73276686 | U14: =T14*144/D10 -> 69.27932024 | X14: Ring Bending Stress | Y14: =D23/(3*(D16/D20)*(D16/D20-1)*(Y4-(Y5/((8*D22)/(Y6*(D16/D20-1)^3)+0.732)))) -> 75.24823143 | Z14: =Y14*144/D10 -> 90.29787772 | AD14: 14
C15: Pipe Properties | N15: Deflection Design | O15: =($D$11/(12*O5))*((8*$D$22)/(($D$16/$D$21-1)^3)+0.732*O6) -> 15400.26442 | P15: =O15*144/D10 -> 18480.3173 | S15: Deflection Design | T15: =(D11/(12*T5))*((8*D22)/((D16/D21-1)^3)+0.732*T6) -> 17225.28921 | U15: =T15*144/D10 -> 20670.34705 | X15: Deflection Design | Y15: =(D11/(12*Y5))*((8*D22)/((D16/D21-1)^3)+0.732*Y6) -> 19885.03252 | Z15: =Y15*144/D10 -> 23862.03902 | AD15: 16
C16: Outside Diameter, in | D16: =LOOKUP(D8,'DIP-Data'!A5:A22,'DIP-Data'!B5:B22) -> 9.05 | AD16: 18
C17: Casting Allowance, in | D17: =LOOKUP(D8,'DIP-Data'!A5:A22,'DIP-Data'!C5:C22) -> 0.05 | N17: Live Load | S17: Live Load | X17: Live Load | AD17: 20
C18: Service Allowance, in | D18: 0.08 | N18: H | O18: =ROUND(MIN(P14,P15),1) -> 48.7 | P18: Feet | S18: H | T18: =ROUND(MIN(U14,U15),1) -> 69.3 | U18: Feet | X18: H | Y18: =ROUND(MIN(Z14,Z15),1) -> 90.3 | Z18: Feet | AD18: 24
C19: Nominal Thickness, in | D19: =VLOOKUP(D8,'DIP-Data'!A5:I22,MATCH(D9,'DIP-Data'!D4:I4,1)+3,0) -> 0.33 | N19: R | O19: =VLOOKUP($D$8,'DIP-Data'!$A$38:$M$56,MATCH(O18,'DIP-Data'!$A$38:$M$38)) -> 1 | S19: R | T19: =VLOOKUP($D$8,'DIP-Data'!$A$38:$M$56,MATCH(T18,'DIP-Data'!$A$38:$M$38)) -> 1 | X19: R | Y19: =VLOOKUP($D$8,'DIP-Data'!$A$38:$M$56,MATCH(Y18,'DIP-Data'!$A$38:$M$38)) -> 1 | AD19: 30
C20: Design Thickness, t | D20: =D19-D18-D17 -> 0.2 | N20: F | O20: 1.5 | S20: F | T20: 1.5 | X20: F | Y20: 1.5 | AD20: 36
C21: Min. Manufacturing Thickness, in | D21: =D19-D17 -> 0.28 | N21: P | O21: 16000 | P21: lb. | S21: P | T21: 16000 | U21: lb. | X21: P | Y21: 16000 | Z21: lb. | AD21: 42
C22: Modulus of elasticity, E, psi | D22: 24000000 | N22: b | O22: 36 | P22: in. | S22: b | T22: 36 | U22: in. | X22: b | Y22: 36 | Z22: in. | AD22: 48
C23: Maximum bending stress, psi | D23: 48000 | N23: D | O23: =$D$16 -> 9.05 | P23: in. | S23: D | T23: =D16 -> 9.05 | U23: in. | X23: D | Y23: =D16 -> 9.05 | Z23: in. | AD23: 54
N24: A | O24: =(O23/2)/12 -> 0.3770833333 | S24: A | T24: =(T23/2)/12 -> 0.3770833333 | X24: A | Y24: =(Y23/2)/12 -> 0.3770833333 | AD24: 60
N25: C | O25: =1-(2/PI())*ASIN((O18*SQRT((O24^2+O18^2+1.5^2)/((O24^2+O18^2)*(1.5^2+O18^2)))))+(2/PI())*(1.5*O24*O18/(SQRT(O24^2+O18^2+1.5^2)))*(1/(O24^2+O18^2)+1/(1.5^2+O18^2)) -> 0.0004551004083 | S25: C | T25: =1-(2/PI())*ASIN((T18*SQRT((T24^2+T18^2+1.5^2)/((T24^2+T18^2)*(1.5^2+T18^2)))))+(2/PI())*(1.5*T24*T18/(SQRT(T24^2+T18^2+1.5^2)))*(1/(T24^2+T18^2)+1/(1.5^2+T18^2)) -> 0.0002248450253 | X25: C | Y25: =1-(2/PI())*ASIN((Y18*SQRT((Y24^2+Y18^2+1.5^2)/((Y24^2+Y18^2)*(1.5^2+Y18^2)))))+(2/PI())*(1.5*Y24*Y18/(SQRT(Y24^2+Y18^2+1.5^2)))*(1/(Y24^2+Y18^2)+1/(1.5^2+Y18^2)) -> 0.0001324488887 | AD25: 64
N26: Pt | O26: =IF($D$12="yes",O19*O20*O25*O21/(O22*O23),0) -> 0.03352489195 | S26: Pt | T26: =IF($D$12="yes",T19*T20*T25*T21/(T22*T23),0) -> 0.01656316945 | X26: Pt | Y26: =Y19*Y20*Y25*Y21/(Y22*Y23) -> 0.009756824212
C27: Results:
N28: Max. H w/ Earth & Live load | P28: =(MIN(O14,O15)-O26)*144/$D$10 -> 48.61800072 | S28: Max. H w/ Earth & Live load | U28: =(MIN(T14,T15)-T26)*144/$D$10 -> 69.25944443 | X28: Max. H w/ Earth & Live load | Z28: =(MIN(Y14,Y15)-Y26)*144/$D$10 -> 90.28616953
D29: Bedding Types
D30: SUDAS P-1 | F30: SUDAS P-2 | H30: SUDAS P-3 | N30: Min. DOB | S30: Min. DOB | X30: Min. DOB
D31: DIPRA Type 3 | F31: DIPRA Type 4 | H31: DIPRA Type 5 | N31: H | O31: C | P31: Pt | S31: H | T31: C | U31: Pt | X31: H | Y31: C | Z31: Pt
D32: Click for Cross Section | F32: Click for Cross Section | H32: Click for Cross Section | N32: 1 | O32: =1-(2/PI())*ASIN((N32*SQRT((O$24^2+N32^2+1.5^2)/((O$24^2+N32^2)*(1.5^2+N32^2)))))+(2/PI())*(1.5*O$24*N32/(SQRT(O$24^2+N32^2+1.5^2)))*(1/(O$24^2+N32^2)+1/(1.5^2+N32^2)) -> 0.4210169043 | P32: =(VLOOKUP($D$8,'DIP-Data'!$A$38:$M$56,MATCH(N32,'DIP-Data'!$A$38:$M$38)))*O$20*O32*O$21/(O$22*O$23) -> 31.0141366 | Q32: =IF($D$12="yes",IF(P32>MIN(O$14:O$15),"fail",N32),N32) -> 1 | S32: 1 | T32: =1-(2/PI())*ASIN((S32*SQRT((T$24^2+S32^2+1.5^2)/((T$24^2+S32^2)*(1.5^2+S32^2)))))+(2/PI())*(1.5*T$24*S32/(SQRT(T$24^2+S32^2+1.5^2)))*(1/(T$24^2+S32^2)+1/(1.5^2+S32^2)) -> 0.4210169043 | U32: =(VLOOKUP($D$8,'DIP-Data'!$A$38:$M$56,MATCH(S32,'DIP-Data'!$A$38:$M$38)))*T$20*T32*T$21/(T$22*T$23) -> 31.0141366 | V32: =IF($D$12="yes",IF(U32>MIN(T$14:T$15),"fail",S32),S32) -> 1 | X32: 1 | Y32: =1-(2/PI())*ASIN((X32*SQRT((Y$24^2+X32^2+1.5^2)/((Y$24^2+X32^2)*(1.5^2+X32^2)))))+(2/PI())*(1.5*Y$24*X32/(SQRT(Y$24^2+X32^2+1.5^2)))*(1/(Y$24^2+X32^2)+1/(1.5^2+X32^2)) -> 0.4210169043 | Z32: =(VLOOKUP($D$8,'DIP-Data'!$A$38:$M$56,MATCH(X32,'DIP-Data'!$A$38:$M$38)))*Y$20*Y32*Y$21/(Y$22*Y$23) -> 31.0141366 | AA32: =IF($D$12="yes",IF(Z32>MIN(Y$14:Y$15),"fail",X32),X32) -> 1
C33: Allowable Depth of Bury | D33: Min. | E33: Max | F33: Min | G33: Max | H33: Min | I33: Max | N33: 1.5 | O33: 0.2708055356 | P33: =(VLOOKUP($D$8,'DIP-Data'!$A$38:$M$56,MATCH(N33,'DIP-Data'!$A$38:$M$38)))*O$20*O33*O$21/(O$22*O$23) -> 19.9488424 | Q33: 1.5 | S33: 1.5 | T33: 0.2708055356 | U33: =(VLOOKUP($D$8,'DIP-Data'!$A$38:$M$56,MATCH(S33,'DIP-Data'!$A$38:$M$38)))*T$20*T33*T$21/(T$22*T$23) -> 19.9488424 | V33: 1.5 | X33: 1.5 | Y33: 0.2708055356 | Z33: =(VLOOKUP($D$8,'DIP-Data'!$A$38:$M$56,MATCH(X33,'DIP-Data'!$A$38:$M$38)))*Y$20*Y33*Y$21/(Y$22*Y$23) -> 19.9488424 | AA33: 1.5
D34: =IF(D12="yes",MAX(2.5,MIN(Q32:Q38)),MIN(Q32:Q38)) -> 2.5 | E34: =ROUNDDOWN(MIN(P28,100),0) -> 48 | F34: =IF(D12="yes",MAX(2.5,MIN(V32:V38)),MIN(V32:V38)) -> 2.5 | G34: =ROUNDDOWN(MIN(U28,100),0) -> 69 | H34: =IF(D12="yes",MAX(2.5,MIN(AA32:AA38)),MIN(AA32:AA38)) -> 2.5 | I34: =ROUNDDOWN(MIN(Z28,100),0) -> 90 | N34: 2 | O34: 0.1852606049 | P34: =(VLOOKUP($D$8,'DIP-Data'!$A$38:$M$56,MATCH(N34,'DIP-Data'!$A$38:$M$38)))*O$20*O34*O$21/(O$22*O$23) -> 13.64719005 | Q34: 2 | S34: 2 | T34: 0.1852606049 | U34: =(VLOOKUP($D$8,'DIP-Data'!$A$38:$M$56,MATCH(S34,'DIP-Data'!$A$38:$M$38)))*T$20*T34*T$21/(T$22*T$23) -> 13.64719005 | V34: 2 | X34: 2 | Y34: 0.1852606049 | Z34: =(VLOOKUP($D$8,'DIP-Data'!$A$38:$M$56,MATCH(X34,'DIP-Data'!$A$38:$M$38)))*Y$20*Y34*Y$21/(Y$22*Y$23) -> 13.64719005 | AA34: 2
N35: 2.5 | O35: 0.1328309962 | P35: =(VLOOKUP($D$8,'DIP-Data'!$A$38:$M$56,MATCH(N35,'DIP-Data'!$A$38:$M$38)))*O$20*O35*O$21/(O$22*O$23) -> 9.784972099 | Q35: 2.5 | S35: 2.5 | T35: 0.1328309962 | U35: =(VLOOKUP($D$8,'DIP-Data'!$A$38:$M$56,MATCH(S35,'DIP-Data'!$A$38:$M$38)))*T$20*T35*T$21/(T$22*T$23) -> 9.784972099 | V35: 2.5 | X35: 2.5 | Y35: 0.1328309962 | Z35: =(VLOOKUP($D$8,'DIP-Data'!$A$38:$M$56,MATCH(X35,'DIP-Data'!$A$38:$M$38)))*Y$20*Y35*Y$21/(Y$22*Y$23) -> 9.784972099 | AA35: 2.5
C36: Notes: | N36: 3 | O36: 0.09898303402 | P36: =(VLOOKUP($D$8,'DIP-Data'!$A$38:$M$56,MATCH(N36,'DIP-Data'!$A$38:$M$38)))*O$20*O36*O$21/(O$22*O$23) -> 7.291567884 | Q36: 3 | S36: 3 | T36: 0.09898303402 | U36: =(VLOOKUP($D$8,'DIP-Data'!$A$38:$M$56,MATCH(S36,'DIP-Data'!$A$38:$M$38)))*T$20*T36*T$21/(T$22*T$23) -> 7.291567884 | V36: 3 | X36: 3 | Y36: 0.09898303402 | Z36: =(VLOOKUP($D$8,'DIP-Data'!$A$38:$M$56,MATCH(X36,'DIP-Data'!$A$38:$M$38)))*Y$20*Y36*Y$21/(Y$22*Y$23) -> 7.291567884 | AA36: 3
N37: 3.5 | O37: 0.07616357331 | P37: =(VLOOKUP($D$8,'DIP-Data'!$A$38:$M$56,MATCH(N37,'DIP-Data'!$A$38:$M$38)))*O$20*O37*O$21/(O$22*O$23) -> 5.610576303 | Q37: 3.5 | S37: 3.5 | T37: 0.07616357331 | U37: =(VLOOKUP($D$8,'DIP-Data'!$A$38:$M$56,MATCH(S37,'DIP-Data'!$A$38:$M$38)))*T$20*T37*T$21/(T$22*T$23) -> 5.610576303 | V37: 3.5 | X37: 3.5 | Y37: 0.07616357331 | Z37: =(VLOOKUP($D$8,'DIP-Data'!$A$38:$M$56,MATCH(X37,'DIP-Data'!$A$38:$M$38)))*Y$20*Y37*Y$21/(Y$22*Y$23) -> 5.610576303 | AA37: 3.5
C38: This spreadsheet is a tool for use in determining the allowable depth of bury for DIP pipe based upon the design method described | N38: 4 | O38: 0.06019240421 | P38: =(VLOOKUP($D$8,'DIP-Data'!$A$38:$M$56,MATCH(N38,'DIP-Data'!$A$38:$M$38)))*O$20*O38*O$21/(O$22*O$23) -> 4.434062925 | Q38: 4 | S38: 4 | T38: 0.06019240421 | U38: =(VLOOKUP($D$8,'DIP-Data'!$A$38:$M$56,MATCH(S38,'DIP-Data'!$A$38:$M$38)))*T$20*T38*T$21/(T$22*T$23) -> 4.434062925 | V38: 4 | X38: 4 | Y38: 0.06019240421 | Z38: =(VLOOKUP($D$8,'DIP-Data'!$A$38:$M$56,MATCH(X38,'DIP-Data'!$A$38:$M$38)))*Y$20*Y38*Y$21/(Y$22*Y$23) -> 4.434062925 | AA38: 4
C39: in AWWA C150: Thickness Design of Ductile Iron Pipe. The engineer should have a thorough understanding of this methodology
C40: prior to using this spreadsheet and is responsible for verifying the results.
C42: For additional information and to obtain a summary of the design methodology, contact the Ductile Iron Pipe Research Association.
N70: P-3 Bedding

Sheet DIP-Data
A1: DON’T MOVE THIS TABLE
A2: Diameter and Thickness
C3: Casting | D3: Thickness
A4: Diameter | B4: OD | C4: Allowance | D4: PC150 | E4: PC200 | F4: PC250 | G4: PC300 | H4: PC350 | I4: TC52
A5: 3 | B5: 3.96 | C5: 0.05 | D5: N/A | E5: N/A | F5: N/A | G5: N/A | H5: 0.25 | I5: 0.28
A6: 4 | B6: 4.8 | C6: 0.05 | D6: N/A | E6: N/A | F6: N/A | G6: N/A | H6: 0.25 | I6: 0.29
A7: 6 | B7: 6.9 | C7: 0.05 | D7: N/A | E7: N/A | F7: N/A | G7: N/A | H7: 0.25 | I7: 0.31
A8: 8 | B8: 9.05 | C8: 0.05 | D8: N/A | E8: N/A | F8: N/A | G8: N/A | H8: 0.25 | I8: 0.33
A9: 10 | B9: 11.1 | C9: 0.06 | D9: N/A | E9: N/A | F9: N/A | G9: N/A | H9: 0.26 | I9: 0.35
A10: 12 | B10: 13.2 | C10: 0.06 | D10: N/A | E10: N/A | F10: N/A | G10: N/A | H10: 0.28 | I10: 0.37
A11: 14 | B11: 15.3 | C11: 0.07 | D11: N/A | E11: N/A | F11: 0.28 | G11: 0.3 | H11: 0.31 | I11: 0.39
A12: 16 | B12: 17.4 | C12: 0.07 | D12: N/A | E12: N/A | F12: 0.3 | G12: 0.32 | H12: 0.34 | I12: 0.4
A13: 18 | B13: 19.5 | C13: 0.07 | D13: N/A | E13: N/A | F13: 0.31 | G13: 0.34 | H13: 0.36 | I13: 0.41
A14: 20 | B14: 21.6 | C14: 0.07 | D14: N/A | E14: N/A | F14: 0.33 | G14: 0.36 | H14: 0.38 | I14: 0.42
A15: 24 | B15: 25.8 | C15: 0.07 | D15: N/A | E15: 0.33 | F15: 0.37 | G15: 0.4 | H15: 0.43 | I15: 0.44
A16: 30 | B16: 32 | C16: 0.07 | D16: 0.34 | E16: 0.38 | F16: 0.42 | G16: 0.45 | H16: 0.49 | I16: 0.47
A17: 36 | B17: 38.3 | C17: 0.07 | D17: 0.38 | E17: 0.42 | F17: 0.47 | G17: 0.51 | H17: 0.56 | I17: 0.53
A18: 42 | B18: 44.5 | C18: 0.07 | D18: 0.41 | E18: 0.47 | F18: 0.52 | G18: 0.57 | H18: 0.63 | I18: 0.59
A19: 48 | B19: 50.8 | C19: 0.08 | D19: 0.46 | E19: 0.52 | F19: 0.58 | G19: 0.64 | H19: 0.7 | I19: 0.65
A20: 54 | B20: 57.56 | C20: 0.09 | D20: 0.51 | E20: 0.58 | F20: 0.65 | G20: 0.72 | H20: 0.79 | I20: 0.73
A21: 60 | B21: 61.61 | C21: 0.09 | D21: 0.54 | E21: 0.61 | F21: 0.68 | G21: 0.76 | H21: 0.83 | I21: N/A
A22: 64 | B22: 65.67 | C22: 0.09 | D22: 0.56 | E22: 0.64 | F22: 0.72 | G22: 0.8 | H22: 0.87 | I22: N/A
B25: Bedding Values
B26: Bedding | D26: Bedding
B27: Class | C27: E' | D27: Angle | E27: Kb | F27: Kx
A28: DIPRA Type 1 | C28: 150 | D28: 30 | E28: 0.235 | F28: 0.108
A29: DIPRA Type 2 | B29: SUDAS P-1 | C29: 300 | D29: 45 | E29: 0.21 | F29: 0.105
C30: 400 | D30: 60 | E30: 0.189 | F30: 0.103
B31: SUDAS P-2 | C31: 500 | D31: 90 | E31: 0.157 | F31: 0.096
B32: SUDAS P-3 | C32: 700 | D32: 150 | E32: 0.128 | F32: 0.085
A36: Live load Reduction Factors
B38: 1 | C38: 2 | D38: 3 | E38: 4 | F38: 5 | G38: 6 | H38: 7 | I38: 8 | J38: 9 | K38: 10 | L38: 11 | M38: 100
A39: 3 | B39: 1 | C39: 1 | D39: 1 | E39: 1 | F39: 1 | G39: 1 | H39: 1 | I39: 1 | J39: 1 | K39: 1 | L39: 1 | M39: 1
A40: 4 | B40: 1 | C40: 1 | D40: 1 | E40: 1 | F40: 1 | G40: 1 | H40: 1 | I40: 1 | J40: 1 | K40: 1 | L40: 1 | M40: 1
A41: 6 | B41: 1 | C41: 1 | D41: 1 | E41: 1 | F41: 1 | G41: 1 | H41: 1 | I41: 1 | J41: 1 | K41: 1 | L41: 1 | M41: 1
A42: 8 | B42: 1 | C42: 1 | D42: 1 | E42: 1 | F42: 1 | G42: 1 | H42: 1 | I42: 1 | J42: 1 | K42: 1 | L42: 1 | M42: 1
A43: 10 | B43: 1 | C43: 1 | D43: 1 | E43: 1 | F43: 1 | G43: 1 | H43: 1 | I43: 1 | J43: 1 | K43: 1 | L43: 1 | M43: 1
A44: 12 | B44: 1 | C44: 1 | D44: 1 | E44: 1 | F44: 1 | G44: 1 | H44: 1 | I44: 1 | J44: 1 | K44: 1 | L44: 1 | M44: 1
A45: 14 | B45: 0.92 | C45: 0.92 | D45: 0.92 | E45: 1 | F45: 1 | G45: 1 | H45: 1 | I45: 1 | J45: 1 | K45: 1 | L45: 1 | M45: 1
A46: 16 | B46: 0.88 | C46: 0.88 | D46: 0.88 | E46: 0.95 | F46: 0.95 | G46: 0.95 | H46: 0.95 | I46: 1 | J46: 1 | K46: 1 | L46: 1 | M46: 1
A47: 18 | B47: 0.85 | C47: 0.85 | D47: 0.85 | E47: 0.9 | F47: 0.9 | G47: 0.9 | H47: 0.9 | I47: 1 | J47: 1 | K47: 1 | L47: 1 | M47: 1
A48: 20 | B48: 0.83 | C48: 0.83 | D48: 0.83 | E48: 0.9 | F48: 0.9 | G48: 0.9 | H48: 0.9 | I48: 0.95 | J48: 0.95 | K48: 0.95 | L48: 1 | M48: 1
A49: 24 | B49: 0.81 | C49: 0.81 | D49: 0.81 | E49: 0.85 | F49: 0.85 | G49: 0.85 | H49: 0.85 | I49: 0.95 | J49: 0.95 | K49: 0.95 | L49: 1 | M49: 1
A50: 30 | B50: 0.81 | C50: 0.81 | D50: 0.81 | E50: 0.85 | F50: 0.85 | G50: 0.85 | H50: 0.85 | I50: 0.95 | J50: 0.95 | K50: 0.95 | L50: 1 | M50: 1
A51: 36 | B51: 0.8 | C51: 0.8 | D51: 0.8 | E51: 0.85 | F51: 0.85 | G51: 0.85 | H51: 0.85 | I51: 0.95 | J51: 0.95 | K51: 0.95 | L51: 1 | M51: 1
A52: 42 | B52: 0.8 | C52: 0.8 | D52: 0.8 | E52: 0.85 | F52: 0.85 | G52: 0.85 | H52: 0.85 | I52: 0.95 | J52: 0.95 | K52: 0.95 | L52: 1 | M52: 1
A53: 48 | B53: 0.8 | C53: 0.8 | D53: 0.8 | E53: 0.85 | F53: 0.85 | G53: 0.85 | H53: 0.85 | I53: 0.95 | J53: 0.95 | K53: 0.95 | L53: 1 | M53: 1
A54: 54 | B54: 0.8 | C54: 0.8 | D54: 0.8 | E54: 0.85 | F54: 0.85 | G54: 0.85 | H54: 0.85 | I54: 0.95 | J54: 0.95 | K54: 0.95 | L54: 1 | M54: 1
A55: 60 | B55: 0.8 | C55: 0.8 | D55: 0.8 | E55: 0.85 | F55: 0.85 | G55: 0.85 | H55: 0.85 | I55: 0.95 | J55: 0.95 | K55: 0.95 | L55: 1 | M55: 1
A56: 64 | B56: 0.8 | C56: 0.8 | D56: 0.8 | E56: 0.85 | F56: 0.85 | G56: 0.85 | H56: 0.85 | I56: 0.95 | J56: 0.95 | K56: 0.95 | L56: 1 | M56: 1

Sheet DIP-P-1
A1: Back to Calculations
B20: Key:
B21: OD = Outside pipe diameter
B22: TW = Trench width

Sheet DIP-P-2
A1: Back to Calculations
B20: Key:
B21: OD = Outside diameter
B22: TW = Trench width

Sheet DIP-P-3
A1: Back to Calculations
B20: Key:
B21: OD = Outside pipe diameter
B22: TW = Trench width

Sheet DIP-Assumptions
A1: Ductile Iron Pipe Calculation Assumptions
A3: When live load is considered, an HS-20 load applied in an unpaved condition is assumed. Impact factors are included in live load. If the pipe will not be subjected to live load, the minimum depth of bury is assumed to be 1 foot to provide adequate cover to protect pipe from damage.
A5: Prism loading is assumed for the backfill load calculation
A7: Maximum allowable depth of bury is cut off at 100 feet.
A9: E' for Class P-1 = 300 psi
A10: E' for Class P-2 = 500 psi
A11: E' for Class P-3 = 700 psi
A14: Return to Calculations

Sheet HDPE Depth of Bury
C3: HDPE Pipe
C4: Min / Max depth of bury with both Dead and Live Loads factored in
D6: User inputs
C8: Pipe diameter, in | D8: 15
C9: Water table (ft. below surface) | D9: 2 | M9: Diameter | N9: Stiffness | O9: E'
C10: Allowable Deflection, % | D10: 5 | O10: 1000
C11: Unit weight of soil, pcf | D11: 120 | M11: 4 | N11: 35 | O11: 3000
C12: Modulus of soil reaction, E', psi | D12: 1000 | M12: 6 | N12: 35
C13: Bedding Constant, K | D13: 0.1 | M13: 8 | N13: 35
C14: Consider Live Load? | D14: No | M14: 10 | N14: 35
M15: 12 | N15: 50 | P15: Yes
M16: 15 | N16: 42 | P16: No
C17: Pipe Properties | M17: 18 | N17: 40
C18: Pipe Stiffness, psi | D18: =LOOKUP(D8,M11:M22,N11:N22) -> 42 | M18: 24 | N18: 34
C19: Pipe load capacity, psi | D19: =ROUND(D10*(0.149*D18+0.061*D12)/(D13*100),1) -> 33.6 | M19: 30 | N19: 28
C20: Critical Buckling Pressure, psi | D20: =ROUND('HDPE-Data'!U10,0) -> 86 | M20: 36 | N20: 22
C21: Max. Bending Stress, psi | D21: ='HDPE-Data'!X14 -> 900 | M21: 42 | N21: 20
C22: Max. Bending Strain, % | D22: ='HDPE-Data'!AA14 -> 5 | M22: 48 | N22: 18
M23: 54 | N23: 16
M24: 60 | N24: 14
C26: Results:
C28: Allowable Depth of Bury | D28: Min. | E28: Max.
D29: =IF(MIN('HDPE-Data'!AC28:AC127)=0,"Not",MIN('HDPE-Data'!AC28:AC127)) -> 1 | E29: =IF(MAX('HDPE-Data'!AC28:AC127)=0,"Allowed",MAX('HDPE-Data'!AC28:AC127)) -> 9
C31: Notes:
C33: This spreadsheet is a tool for use in determining the allowable depth of bury for PVC pipe based upon the design method
C34: described in The Complete Corrugated Polyethylene Pipe Design Manual and Installation Guide. The engineer should have
C35: a thorough understanding of this methodology prior to using this spreadsheet and is responsible for verifying the results.
C37: For additional information and to obtain a copy of the design manual, contact the Plastic Pipe Institute.

Sheet HDPE-Data
A2: Deflection check | E2: AASHTO Live Load Determination | I2: Wall Thrust | T2: Wall Buckling | W2: Bending Stress | Z2: Bending Strain | AE2: Pipe | AF2: Outside | AH2: Mean dia. | AI2: Sect. Area | AJ2: Shape factor | AN2: Geostatic Load | AO2: Class 1 | AP2: Class 1
AD3: Diameter | AE3: Stiffness | AF3: Diameter | AG3: c | AH3: Dm | AI3: As | AJ3: E'=1000 | AK3: E'=3000 | AN3: Psp, psi | AO3: Uncompacted | AP3: Compacted
A4: Pipe Diameter | B4: ='HDPE Depth of Bury'!D8 -> 15 | E4: AASTHO Tire Distribution | I4: Unit weight of soil | J4: ='HDPE Depth of Bury'!D11 -> 120 | K4: pcf | T4: PS | U4: ='HDPE Depth of Bury'!D18 -> 42 | W4: Diameter | X4: ='HDPE Depth of Bury'!D8 -> 15 | Z4: Diameter | AA4: ='HDPE Depth of Bury'!D8 -> 15 | AD4: 4 | AE4: 35 | AF4: 4.7 | AG4: 0.139 | AH4: =AD4+2*AG4 -> 4.278 | AI4: 0.0448 | AJ4: 3.8 | AK4: 4.6 | AN4: 1.04 | AO4: 470 | AP4: 2350
A5: Pipe OD | B5: =LOOKUP(B4,AD4:AD17,AF4:AF17) -> 17.7 | C5: inches | E5: W | F5: =20/12 -> 1.666666667 | G5: ft | I5: Diameter | J5: =B4 -> 15 | T5: Diameter, in. | U5: ='HDPE Depth of Bury'!D8 -> 15 | W5: OD | X5: =LOOKUP(X4,AD4:AD17,AF4:AF17) -> 17.7 | Z5: OD | AA5: =LOOKUP(X4,AD4:AD17,AF4:AF17) -> 17.7 | AD5: 6 | AE5: 35 | AF5: 7 | AG5: 0.192 | AH5: 6.384 | AI5: 0.0568 | AJ5: 3.8 | AK5: 4.6 | AN5: 5.21 | AO5: 520 | AP5: 3450
A6: PS | B6: ='HDPE Depth of Bury'!D18 -> 42 | C6: psi | E6: L | F6: =10/12 -> 0.8333333333 | G6: ft | I6: Outside Diameter | J6: =B5 -> 17.7 | K6: in2 / in | T6: Outside Diam., in. | U6: =LOOKUP(U5,AD4:AD17,AF4:AF17) -> 17.7 | W6: Dm | X6: =LOOKUP(X4,AD4:AD17,AH4:AH17) -> 15.9 | Z6: Dm | AA6: =LOOKUP(X4,AD4:AD17,AH4:AH17) -> 15.9 | AD6: 8 | AE6: 35 | AF6: 9.9 | AG6: 0.297 | AH6: 8.594 | AI6: 0.0837 | AJ6: 3.8 | AK6: 4.6 | AN6: 10.42 | AO6: 570 | AP6: 4200
A7: UW of soil | B7: ='HDPE Depth of Bury'!D11 -> 120 | E7: alpha | F7: 1 | I7: Section Area, As | J7: =LOOKUP(B4,AD4:AD17,AI4:AI17) -> 0.159 | K7: in2 / in | T7: Hw, ft. below surface | U7: ='HDPE Depth of Bury'!D9 -> 2 | W7: E' | X7: ='HDPE Depth of Bury'!D12 -> 1000 | Z7: E' | AA7: ='HDPE Depth of Bury'!D12 -> 1000 | AD7: 10 | AE7: 35 | AF7: 12 | AG7: 0.393 | AH7: 10.786 | AI7: 0.1044 | AJ7: 3.8 | AK7: 4.6 | AN7: 20.83 | AO7: 650 | AP7: 5500
A8: E' | B8: ='HDPE Depth of Bury'!D12 -> 1000 | C8: psi | E8: P | F8: 16000 | G8: lbs | I8: Fy - short | J8: 3000 | K8: psi | T8: Factor of Safety | U8: 2 | W8: Shape Factor, Df | X8: =LOOKUP(X4,AD4:AD17,IF(X7=3000,AK4:AK17,AJ4:AJ17)) -> 3.7 | Z8: Shape Factor, Df | AA8: =LOOKUP(X4,AD4:AD17,IF(X7=3000,AK4:AK17,AJ4:AJ17)) -> 3.7 | AD8: 12 | AE8: 50 | AF8: 14.7 | AG8: 0.35 | AH8: 12.7 | AI8: 0.125 | AJ8: 3.6 | AK8: 4.2 | AN8: 41.67 | AO8: 825 | AP8: 7500
A9: K | B9: ='HDPE Depth of Bury'!D13 -> 0.1 | I9: Fy - long | J9: 900 | K9: psi | T9: E', psi | U9: ='HDPE Depth of Bury'!D12 -> 1000 | W9: MOE (HDPE), E, psi | X9: 22000 | Z9: MOE (HDPE), E, psi | AA9: 22000 | AD9: 15 | AE9: 42 | AF9: 17.7 | AG9: 0.45 | AH9: 15.9 | AI9: 0.159 | AJ9: 3.7 | AK9: 4.4 | AN9: 62.5 | AO9: 1000 | AP9: 9300
A10: Allow. Defl. | B10: ='HDPE Depth of Bury'!D10 -> 5 | C10: % | I10: E short | J10: 110000 | K10: psi | T10: Permissible, Pcr, psi | U10: =ROUND((0.772/U8)*(U9*U4/(1-0.4^2))^0.5,1) -> 86.3 | W10: Yo | X10: =MAX((X5-X6)/2,(X6-X4)/2) -> 0.9 | Z10: Yo | AA10: =MAX((AA5-AA6)/2,(AA6-AA4)/2) -> 0.9 | AD10: 18 | AE10: 40 | AF10: 21.5 | AG10: 0.5 | AH10: 19 | AI10: 0.195 | AJ10: 3.7 | AK10: 4.4
A11: Allow Defl. | B11: =B10*B4/100 -> 0.75 | C11: in. | I11: E long | J11: 22000 | K11: psi | T11: Unit weight of soil, pcf | U11: ='HDPE Depth of Bury'!D11 -> 120 | W11: Factor of Safety | X11: 1.5 | Z11: Factor of Safety | AA11: 1.5 | AD11: 24 | AE11: 34 | AF11: 28.7 | AG11: 0.65 | AH11: 25.3 | AI11: 0.262 | AJ11: 3.9 | AK11: 4.6
A12: Def. capacity | B12: ='HDPE Depth of Bury'!D19 -> 33.6 | C12: psi | I12: Cap. mod. for pipe | J12: 1 | AD12: 30 | AE12: 28 | AF12: 36.4 | AG12: 0.75 | AH12: 31.5 | AI12: 0.327 | AJ12: 4.1 | AK12: 4.9
I13: Cap. mod for soil | J13: 0.9 | W13: Max. Allowable | Z13: Max. Allowable | AD13: 36 | AE13: 22 | AF13: 42.5 | AG13: 0.9 | AH13: 37.8 | AI13: 0.375 | AJ13: 4.3 | AK13: 5.3
I14: Tcr short | J14: =J8*J7*J12 -> 477 | K14: lb / in | W14: Bending stress, psi | X14: 900 | Z14: Bending strain, % | AA14: 5 | AD14: 42 | AE14: 20 | AF14: 48 | AG14: 1.11 | AH14: 44.22 | AI14: 0.391 | AJ14: 4.4 | AK14: 5.4
I15: Tcr long | J15: =J9*J7*J12 -> 143.1 | K15: lb / in | AD15: 48 | AE15: 18 | AF15: 55 | AG15: 1.15 | AH15: 50.3 | AI15: 0.429 | AJ15: 4.6 | AK15: 5.7
I16: Effective Radius, R | J16: =J5/2+LOOKUP(J5,AD4:AD17,AG4:AG17) -> 7.95 | K16: in. | AD16: 54 | AE16: 16 | AF16: 61 | AG16: 1.25 | AH16: 56.5 | AI16: 0.473 | AJ16: 4.7 | AK16: 5.8
I17: Water below ground, Hw | J17: ='HDPE Depth of Bury'!D9 -> 2 | AD17: 60 | AE17: 14 | AF17: 67.3 | AG17: 1.37 | AH17: 62.74 | AI17: 0.538 | AJ17: 4.9 | AK17: 6.2
J23: Cl. 1 | K23: Cl 1.
J24: uncompacted | K24: compacted | L24: Short Ter | M24: Long Term
B25: Deflection | I25: Geostatic load | J25: Secant con. Mod. | K25: Secant Mod. | L25: Vert. arch fact. | M25: Vert. Arch fact | N25: Lw | O25: T - Dead | P25: T - Dead + Live | Q25: Thrust Check | T25: Wall Buckling | W25: Bending Stress | Z25: Bending Strain | AC25: Final Results
B26: Dead load | C26: Live Load | E26: Total Load | F26: Deflection | G26: Deflection check | I26: Psp | J26: Ms | K26: Ms | L26: Short VAF | M26: Long VAF | W26: bending stress, psi | X26: Sress check | Z26: Bending strain | AA26: Strain check
A27: H | B27: Wc, lb/in | C27: Area of load, sf | D27: Wl, lb. / in. | E27: lb. / in. | F27: in. | I27: psi | J27: psi | K27: psi | O27: lb / in | P27: lb / in | T27: Pv | U27: WB check | Z27: %
A28: 1 | B28: =(A28*$B$7/144)*(B$5) -> 14.75 | C28: =($F$5+$F$7*$A28)*($F$6+$F$7*$A28) -> 4.888888889 | D28: =IF('HDPE Depth of Bury'!$D$14:$E$14="Yes",ROUND($F$8/C28/144,1)*(B$5),0) -> 0 | E28: =(B28+D28) -> 14.75 | F28: =ROUND($E28*$B$9/(0.149*$B$6+0.061*$B$8),3) -> 0.022 | G28: =IF(F28<$B$11,"OK","Fail") -> OK | I28: =ROUND($J$4*(A28+0.11*$J$6/12)/144,2) -> 0.97 | J28: =ROUND($AO$4+($I28-$AN$4)*(($AO$4-$AO$5)/($AN$4-$AN$5)),2) -> 469.16 | K28: =ROUND($AP$4+($I28-$AN$4)*(($AP$4-$AP$5)/($AN$4-$AN$5)),2) -> 2331.53 | L28: =ROUND(0.76-0.71*((($J$13*IF('HDPE Depth of Bury'!$D$12=3000,'HDPE-Data'!$K28,'HDPE-Data'!$J28)*$J$16/($J$10*$J$7))-1.17)/(($J$13*IF('HDPE Depth of Bury'!D$12=3000,'HDPE-Data'!$K28,'HDPE-Data'!$J28)*$J$16/($J$10*$J$7))+2.92)),3) -> 0.983 | M28: =ROUND(0.76-0.71*((($J$13*IF('HDPE Depth of Bury'!$D$12=3000,'HDPE-Data'!$K28,'HDPE-Data'!$J28)*$J$16/($J$11*$J$7))-1.17)/(($J$13*IF('HDPE Depth of Bury'!D$12=3000,'HDPE-Data'!$K28,'HDPE-Data'!$J28)*$J$16/($J$11*$J$7))+2.92)),3) -> 0.798 | N28: 31 | O28: =ROUND(1.3*(1.5*I28*M28+IF(A28-$J$17>0,A28-$J$17,0)*62.4/144)*($J$6/2),1) -> 13.4 | P28: =ROUND(1.3*(1.5*I28*L28+1.67*D28/$J$6*MIN(1,N28/$J$6)+IF(A28-$J$17>0,A28-$J$17,0)*62.4/144)*($J$6/2),1) -> 16.5 | Q28: =IF(AND(P28<$J$14,O28<$J$15),"OK","Fail") -> OK | T28: =(1-0.33*(IF(A28-$U$7<0,0,A28-$U$7))/A28)*A28*$U$11/144+62.4*IF(A28-$U$7<0,0,A28-$U$7)/144+(D28/$U$5) -> 0.8333333333 | U28: =IF(T28<$U$10,"OK","Fail") -> OK | W28: =ROUND(2*$X$8*$X$9*$F28*$X$10*$X$11/($X$6^2),0) -> 19 | X28: =IF(W28<$X$14,"OK","Fail") -> OK | Z28: =ROUND(2*$AA$8*F28*$AA$10*$AA$11/($AA$6^2)*100,1) -> 0.1 | AA28: =IF(Z28<$AA$14,"OK","Fail") -> OK | AC28: =IF(AND(AA28="OK",X28="OK",U28="OK",Q28="OK",G28="OK"),A28,"Fail") -> 1
A29: 2 | B29: 29.5 | C29: 10.38888889 | D29: =IF('HDPE Depth of Bury'!$D$14:$E$14="Yes",ROUND($F$8/C29/144,1)*(B$5),0) -> 0 | E29: 29.5 | F29: =ROUND($E29*$B$9/(0.149*$B$6+0.061*$B$8),3) -> 0.044 | G29: OK | I29: 1.8 | J29: =ROUND($AO$4+($I29-$AN$4)*(($AO$4-$AO$5)/($AN$4-$AN$5)),2) -> 479.11 | K29: =ROUND($AP$4+($I29-$AN$4)*(($AP$4-$AP$5)/($AN$4-$AN$5)),2) -> 2550.48 | L29: =ROUND(0.76-0.71*((($J$13*IF('HDPE Depth of Bury'!$D$12=3000,'HDPE-Data'!$K29,'HDPE-Data'!$J29)*$J$16/($J$10*$J$7))-1.17)/(($J$13*IF('HDPE Depth of Bury'!D$12=3000,'HDPE-Data'!$K29,'HDPE-Data'!$J29)*$J$16/($J$10*$J$7))+2.92)),3) -> 0.982 | M29: =ROUND(0.76-0.71*((($J$13*IF('HDPE Depth of Bury'!$D$12=3000,'HDPE-Data'!$K29,'HDPE-Data'!$J29)*$J$16/($J$11*$J$7))-1.17)/(($J$13*IF('HDPE Depth of Bury'!D$12=3000,'HDPE-Data'!$K29,'HDPE-Data'!$J29)*$J$16/($J$11*$J$7))+2.92)),3) -> 0.795 | N29: 52 | O29: 24.7 | P29: 30.5 | Q29: OK | T29: 1.666666667 | U29: OK | W29: 38 | X29: OK | Z29: 0.2 | AA29: OK | AC29: 2
A30: 3 | B30: 44.25 | C30: 17.88888889 | D30: =IF('HDPE Depth of Bury'!$D$14:$E$14="Yes",ROUND($F$8/C30/144,1)*(B$5),0) -> 0 | E30: 44.25 | F30: 0.066 | G30: OK | I30: 2.64 | J30: =ROUND($AO$4+($I30-$AN$4)*(($AO$4-$AO$5)/($AN$4-$AN$5)),2) -> 489.18 | K30: =ROUND($AP$4+($I30-$AN$4)*(($AP$4-$AP$5)/($AN$4-$AN$5)),2) -> 2772.06 | L30: =ROUND(0.76-0.71*((($J$13*IF('HDPE Depth of Bury'!$D$12=3000,'HDPE-Data'!$K30,'HDPE-Data'!$J30)*$J$16/($J$10*$J$7))-1.17)/(($J$13*IF('HDPE Depth of Bury'!D$12=3000,'HDPE-Data'!$K30,'HDPE-Data'!$J30)*$J$16/($J$10*$J$7))+2.92)),3) -> 0.981 | M30: =ROUND(0.76-0.71*((($J$13*IF('HDPE Depth of Bury'!$D$12=3000,'HDPE-Data'!$K30,'HDPE-Data'!$J30)*$J$16/($J$11*$J$7))-1.17)/(($J$13*IF('HDPE Depth of Bury'!D$12=3000,'HDPE-Data'!$K30,'HDPE-Data'!$J30)*$J$16/($J$11*$J$7))+2.92)),3) -> 0.791 | N30: 73 | O30: 41 | P30: 49.7 | Q30: OK | T30: 2.658333333 | U30: OK | W30: 57 | X30: OK | Z30: 0.3 | AA30: OK | AC30: 3
A31: 4 | B31: 59 | C31: 27.38888889 | D31: =IF('HDPE Depth of Bury'!$D$14:$E$14="Yes",ROUND($F$8/C31/144,1)*(B$5),0) -> 0 | E31: 59 | F31: 0.088 | G31: OK | I31: 3.47 | J31: =ROUND($AO$4+($I31-$AN$4)*(($AO$4-$AO$5)/($AN$4-$AN$5)),2) -> 499.14 | K31: =ROUND($AP$4+($I31-$AN$4)*(($AP$4-$AP$5)/($AN$4-$AN$5)),2) -> 2991.01 | L31: =ROUND(0.76-0.71*((($J$13*IF('HDPE Depth of Bury'!$D$12=3000,'HDPE-Data'!$K31,'HDPE-Data'!$J31)*$J$16/($J$10*$J$7))-1.17)/(($J$13*IF('HDPE Depth of Bury'!D$12=3000,'HDPE-Data'!$K31,'HDPE-Data'!$J31)*$J$16/($J$10*$J$7))+2.92)),3) -> 0.979 | M31: =ROUND(0.76-0.71*((($J$13*IF('HDPE Depth of Bury'!$D$12=3000,'HDPE-Data'!$K31,'HDPE-Data'!$J31)*$J$16/($J$11*$J$7))-1.17)/(($J$13*IF('HDPE Depth of Bury'!D$12=3000,'HDPE-Data'!$K31,'HDPE-Data'!$J31)*$J$16/($J$11*$J$7))+2.92)),3) -> 0.787 | N31: 94 | O31: 57.1 | P31: 68.6 | Q31: OK | T31: 3.65 | U31: OK | W31: 77 | X31: OK | Z31: 0.3 | AA31: OK | AC31: 4
A32: 5 | B32: 73.75 | C32: =($F$5+$F$7*$A32)*($F$6+$F$7*$A32) -> 38.88888889 | D32: =IF('HDPE Depth of Bury'!$D$14:$E$14="Yes",ROUND($F$8/C32/144,1)*(B$5),0) -> 0 | E32: 73.75 | F32: 0.11 | G32: OK | I32: 4.3 | J32: =ROUND($AO$4+($I32-$AN$4)*(($AO$4-$AO$5)/($AN$4-$AN$5)),2) -> 509.09 | K32: =ROUND($AP$4+($I32-$AN$4)*(($AP$4-$AP$5)/($AN$4-$AN$5)),2) -> 3209.95 | L32: =ROUND(0.76-0.71*((($J$13*IF('HDPE Depth of Bury'!$D$12=3000,'HDPE-Data'!$K32,'HDPE-Data'!$J32)*$J$16/($J$10*$J$7))-1.17)/(($J$13*IF('HDPE Depth of Bury'!D$12=3000,'HDPE-Data'!$K32,'HDPE-Data'!$J32)*$J$16/($J$10*$J$7))+2.92)),3) -> 0.978 | M32: =ROUND(0.76-0.71*((($J$13*IF('HDPE Depth of Bury'!$D$12=3000,'HDPE-Data'!$K32,'HDPE-Data'!$J32)*$J$16/($J$11*$J$7))-1.17)/(($J$13*IF('HDPE Depth of Bury'!D$12=3000,'HDPE-Data'!$K32,'HDPE-Data'!$J32)*$J$16/($J$11*$J$7))+2.92)),3) -> 0.783 | N32: 115 | O32: 73.1 | P32: 87.5 | Q32: OK | T32: 4.641666667 | U32: OK | W32: 96 | X32: OK | Z32: 0.4 | AA32: OK | AC32: 5
A33: 6 | B33: 88.5 | C33: 52.38888889 | D33: =IF('HDPE Depth of Bury'!$D$14:$E$14="Yes",ROUND($F$8/C33/144,1)*(B$5),0) -> 0 | E33: 88.5 | F33: 0.132 | G33: OK | I33: 5.14 | J33: =ROUND($AO$5+($I33-$AN$5)*(($AO$5-$AO$6)/($AN$5-$AN$6)),2) -> 519.33 | K33: =ROUND($AP$5+($I33-$AN$5)*(($AP$5-$AP$6)/($AN$5-$AN$6)),2) -> 3439.92 | L33: =ROUND(0.76-0.71*((($J$13*IF('HDPE Depth of Bury'!$D$12=3000,'HDPE-Data'!$K33,'HDPE-Data'!$J33)*$J$16/($J$10*$J$7))-1.17)/(($J$13*IF('HDPE Depth of Bury'!D$12=3000,'HDPE-Data'!$K33,'HDPE-Data'!$J33)*$J$16/($J$10*$J$7))+2.92)),3) -> 0.977 | M33: =ROUND(0.76-0.71*((($J$13*IF('HDPE Depth of Bury'!$D$12=3000,'HDPE-Data'!$K33,'HDPE-Data'!$J33)*$J$16/($J$11*$J$7))-1.17)/(($J$13*IF('HDPE Depth of Bury'!D$12=3000,'HDPE-Data'!$K33,'HDPE-Data'!$J33)*$J$16/($J$11*$J$7))+2.92)),3) -> 0.779 | N33: 136 | O33: 89 | P33: 106.6 | Q33: OK | T33: 5.633333333 | U33: OK | W33: 115 | X33: OK | Z33: 0.5 | AA33: OK | AC33: 6
A34: 7 | B34: 103.25 | C34: 67.88888889 | D34: =IF('HDPE Depth of Bury'!$D$14:$E$14="Yes",ROUND($F$8/C34/144,1)*(B$5),0) -> 0 | E34: 103.25 | F34: 0.154 | G34: OK | I34: 5.97 | J34: 527.29 | K34: 3559.4 | L34: =ROUND(0.76-0.71*((($J$13*IF('HDPE Depth of Bury'!$D$12=3000,'HDPE-Data'!$K34,'HDPE-Data'!$J34)*$J$16/($J$10*$J$7))-1.17)/(($J$13*IF('HDPE Depth of Bury'!D$12=3000,'HDPE-Data'!$K34,'HDPE-Data'!$J34)*$J$16/($J$10*$J$7))+2.92)),3) -> 0.976 | M34: =ROUND(0.76-0.71*((($J$13*IF('HDPE Depth of Bury'!$D$12=3000,'HDPE-Data'!$K34,'HDPE-Data'!$J34)*$J$16/($J$11*$J$7))-1.17)/(($J$13*IF('HDPE Depth of Bury'!D$12=3000,'HDPE-Data'!$K34,'HDPE-Data'!$J34)*$J$16/($J$11*$J$7))+2.92)),3) -> 0.776 | N34: 157 | O34: 104.9 | P34: 125.5 | Q34: OK | T34: 6.625 | U34: OK | W34: 134 | X34: OK | Z34: 0.6 | AA34: OK | AC34: 7
A35: 8 | B35: 118 | C35: 85.38888889 | D35: =IF('HDPE Depth of Bury'!$D$14:$E$14="Yes",ROUND($F$8/C35/144,1)*(B$5),0) -> 0 | E35: 118 | F35: 0.175 | G35: OK | I35: 6.8 | J35: 535.26 | K35: 3678.89 | L35: =ROUND(0.76-0.71*((($J$13*IF('HDPE Depth of Bury'!$D$12=3000,'HDPE-Data'!$K35,'HDPE-Data'!$J35)*$J$16/($J$10*$J$7))-1.17)/(($J$13*IF('HDPE Depth of Bury'!D$12=3000,'HDPE-Data'!$K35,'HDPE-Data'!$J35)*$J$16/($J$10*$J$7))+2.92)),3) -> 0.975 | M35: =ROUND(0.76-0.71*((($J$13*IF('HDPE Depth of Bury'!$D$12=3000,'HDPE-Data'!$K35,'HDPE-Data'!$J35)*$J$16/($J$11*$J$7))-1.17)/(($J$13*IF('HDPE Depth of Bury'!D$12=3000,'HDPE-Data'!$K35,'HDPE-Data'!$J35)*$J$16/($J$11*$J$7))+2.92)),3) -> 0.773 | N35: 178 | O35: 120.6 | P35: 144.3 | Q35: OK | T35: 7.616666667 | U35: OK | W35: 152 | X35: OK | Z35: 0.7 | AA35: OK | AC35: 8
A36: 9 | B36: 132.75 | C36: 104.8888889 | E36: 132.75 | F36: 0.197 | G36: OK | I36: 7.64 | J36: 543.32 | K36: 3799.81 | L36: =ROUND(0.76-0.71*((($J$13*IF('HDPE Depth of Bury'!$D$12=3000,'HDPE-Data'!$K36,'HDPE-Data'!$J36)*$J$16/($J$10*$J$7))-1.17)/(($J$13*IF('HDPE Depth of Bury'!D$12=3000,'HDPE-Data'!$K36,'HDPE-Data'!$J36)*$J$16/($J$10*$J$7))+2.92)),3) -> 0.974 | M36: =ROUND(0.76-0.71*((($J$13*IF('HDPE Depth of Bury'!$D$12=3000,'HDPE-Data'!$K36,'HDPE-Data'!$J36)*$J$16/($J$11*$J$7))-1.17)/(($J$13*IF('HDPE Depth of Bury'!D$12=3000,'HDPE-Data'!$K36,'HDPE-Data'!$J36)*$J$16/($J$11*$J$7))+2.92)),3) -> 0.77 | O36: 136.4 | P36: 163.3 | Q36: OK | T36: 8.608333333 | U36: OK | W36: 171 | X36: OK | Z36: 0.8 | AA36: OK | AC36: 9
A37: 10 | B37: 147.5 | C37: 126.3888889 | E37: 147.5 | F37: 0.219 | G37: OK | I37: 8.47 | J37: 551.29 | K37: 3919.29 | L37: =ROUND(0.76-0.71*((($J$13*IF('HDPE Depth of Bury'!$D$12=3000,'HDPE-Data'!$K37,'HDPE-Data'!$J37)*$J$16/($J$10*$J$7))-1.17)/(($J$13*IF('HDPE Depth of Bury'!D$12=3000,'HDPE-Data'!$K37,'HDPE-Data'!$J37)*$J$16/($J$10*$J$7))+2.92)),3) -> 0.973 | M37: =ROUND(0.76-0.71*((($J$13*IF('HDPE Depth of Bury'!$D$12=3000,'HDPE-Data'!$K37,'HDPE-Data'!$J37)*$J$16/($J$11*$J$7))-1.17)/(($J$13*IF('HDPE Depth of Bury'!D$12=3000,'HDPE-Data'!$K37,'HDPE-Data'!$J37)*$J$16/($J$11*$J$7))+2.92)),3) -> 0.767 | O37: 152 | P37: 182.1 | Q37: Fail | T37: 9.6 | U37: OK | W37: 190 | X37: OK | Z37: 0.9 | AA37: OK | AC37: Fail
A38: 11 | B38: 162.25 | C38: 149.8888889 | E38: 162.25 | F38: 0.241 | G38: OK | I38: 9.3 | J38: 559.25 | K38: 4038.77 | L38: =ROUND(0.76-0.71*((($J$13*IF('HDPE Depth of Bury'!$D$12=3000,'HDPE-Data'!$K38,'HDPE-Data'!$J38)*$J$16/($J$10*$J$7))-1.17)/(($J$13*IF('HDPE Depth of Bury'!D$12=3000,'HDPE-Data'!$K38,'HDPE-Data'!$J38)*$J$16/($J$10*$J$7))+2.92)),3) -> 0.972 | M38: =ROUND(0.76-0.71*((($J$13*IF('HDPE Depth of Bury'!$D$12=3000,'HDPE-Data'!$K38,'HDPE-Data'!$J38)*$J$16/($J$11*$J$7))-1.17)/(($J$13*IF('HDPE Depth of Bury'!D$12=3000,'HDPE-Data'!$K38,'HDPE-Data'!$J38)*$J$16/($J$11*$J$7))+2.92)),3) -> 0.765 | O38: 167.6 | P38: 200.9 | Q38: Fail | T38: 10.59166667 | U38: OK | W38: 210 | X38: OK | Z38: 1 | AA38: OK | AC38: Fail
A39: 12 | B39: 177 | C39: 175.3888889 | E39: 177 | F39: 0.263 | G39: OK | I39: 10.14 | J39: 567.31 | K39: 4159.69 | L39: =ROUND(0.76-0.71*((($J$13*IF('HDPE Depth of Bury'!$D$12=3000,'HDPE-Data'!$K39,'HDPE-Data'!$J39)*$J$16/($J$10*$J$7))-1.17)/(($J$13*IF('HDPE Depth of Bury'!D$12=3000,'HDPE-Data'!$K39,'HDPE-Data'!$J39)*$J$16/($J$10*$J$7))+2.92)),3) -> 0.971 | M39: =ROUND(0.76-0.71*((($J$13*IF('HDPE Depth of Bury'!$D$12=3000,'HDPE-Data'!$K39,'HDPE-Data'!$J39)*$J$16/($J$11*$J$7))-1.17)/(($J$13*IF('HDPE Depth of Bury'!D$12=3000,'HDPE-Data'!$K39,'HDPE-Data'!$J39)*$J$16/($J$11*$J$7))+2.92)),3) -> 0.762 | O39: 183.2 | P39: 219.8 | Q39: Fail | T39: 11.58333333 | U39: OK | W39: 229 | X39: OK | Z39: 1 | AA39: OK | AC39: Fail
A40: 13 | B40: 191.75 | C40: 202.8888889 | E40: 191.75 | F40: 0.285 | G40: OK | I40: 10.97 | J40: =ROUND($AO$6+($I40-$AN$6)*(($AO$6-$AO$7)/($AN$6-$AN$7)),2) -> 574.23 | K40: =ROUND($AP$6+($I40-$AN$6)*(($AP$6-$AP$7)/($AN$6-$AN$7)),2) -> 4268.68 | L40: =ROUND(0.76-0.71*((($J$13*IF('HDPE Depth of Bury'!$D$12=3000,'HDPE-Data'!$K40,'HDPE-Data'!$J40)*$J$16/($J$10*$J$7))-1.17)/(($J$13*IF('HDPE Depth of Bury'!D$12=3000,'HDPE-Data'!$K40,'HDPE-Data'!$J40)*$J$16/($J$10*$J$7))+2.92)),3) -> 0.97 | M40: =ROUND(0.76-0.71*((($J$13*IF('HDPE Depth of Bury'!$D$12=3000,'HDPE-Data'!$K40,'HDPE-Data'!$J40)*$J$16/($J$11*$J$7))-1.17)/(($J$13*IF('HDPE Depth of Bury'!D$12=3000,'HDPE-Data'!$K40,'HDPE-Data'!$J40)*$J$16/($J$11*$J$7))+2.92)),3) -> 0.759 | O40: 198.5 | P40: 238.5 | Q40: Fail | T40: 12.575 | U40: OK | W40: 248 | X40: OK | Z40: 1.1 | AA40: OK | AC40: Fail
A41: 14 | B41: 206.5 | C41: 232.3888889 | E41: 206.5 | F41: 0.307 | G41: OK | I41: 11.8 | J41: 580.61 | K41: 4372.33 | L41: =ROUND(0.76-0.71*((($J$13*IF('HDPE Depth of Bury'!$D$12=3000,'HDPE-Data'!$K41,'HDPE-Data'!$J41)*$J$16/($J$10*$J$7))-1.17)/(($J$13*IF('HDPE Depth of Bury'!D$12=3000,'HDPE-Data'!$K41,'HDPE-Data'!$J41)*$J$16/($J$10*$J$7))+2.92)),3) -> 0.97 | M41: =ROUND(0.76-0.71*((($J$13*IF('HDPE Depth of Bury'!$D$12=3000,'HDPE-Data'!$K41,'HDPE-Data'!$J41)*$J$16/($J$11*$J$7))-1.17)/(($J$13*IF('HDPE Depth of Bury'!D$12=3000,'HDPE-Data'!$K41,'HDPE-Data'!$J41)*$J$16/($J$11*$J$7))+2.92)),3) -> 0.757 | O41: 214 | P41: 257.4 | Q41: Fail | T41: 13.56666667 | U41: OK | W41: 267 | X41: OK | Z41: 1.2 | AA41: OK | AC41: Fail
A42: 15 | B42: 221.25 | C42: 263.8888889 | E42: 221.25 | F42: 0.329 | G42: OK | I42: 12.64 | J42: 587.06 | K42: 4477.23 | L42: =ROUND(0.76-0.71*((($J$13*IF('HDPE Depth of Bury'!$D$12=3000,'HDPE-Data'!$K42,'HDPE-Data'!$J42)*$J$16/($J$10*$J$7))-1.17)/(($J$13*IF('HDPE Depth of Bury'!D$12=3000,'HDPE-Data'!$K42,'HDPE-Data'!$J42)*$J$16/($J$10*$J$7))+2.92)),3) -> 0.969 | M42: =ROUND(0.76-0.71*((($J$13*IF('HDPE Depth of Bury'!$D$12=3000,'HDPE-Data'!$K42,'HDPE-Data'!$J42)*$J$16/($J$11*$J$7))-1.17)/(($J$13*IF('HDPE Depth of Bury'!D$12=3000,'HDPE-Data'!$K42,'HDPE-Data'!$J42)*$J$16/($J$11*$J$7))+2.92)),3) -> 0.755 | O42: 229.5 | P42: 276.2 | Q42: Fail | T42: 14.55833333 | U42: OK | W42: 286 | X42: OK | Z42: 1.3 | AA42: OK | AC42: Fail
A43: 16 | B43: 236 | C43: 297.3888889 | E43: 236 | F43: 0.351 | G43: OK | I43: 13.47 | J43: 593.44 | K43: 4580.88 | L43: =ROUND(0.76-0.71*((($J$13*IF('HDPE Depth of Bury'!$D$12=3000,'HDPE-Data'!$K43,'HDPE-Data'!$J43)*$J$16/($J$10*$J$7))-1.17)/(($J$13*IF('HDPE Depth of Bury'!D$12=3000,'HDPE-Data'!$K43,'HDPE-Data'!$J43)*$J$16/($J$10*$J$7))+2.92)),3) -> 0.968 | M43: =ROUND(0.76-0.71*((($J$13*IF('HDPE Depth of Bury'!$D$12=3000,'HDPE-Data'!$K43,'HDPE-Data'!$J43)*$J$16/($J$11*$J$7))-1.17)/(($J$13*IF('HDPE Depth of Bury'!D$12=3000,'HDPE-Data'!$K43,'HDPE-Data'!$J43)*$J$16/($J$11*$J$7))+2.92)),3) -> 0.752 | O43: 244.6 | P43: 294.8 | Q43: Fail | T43: 15.55 | U43: OK | W43: 305 | X43: OK | Z43: 1.4 | AA43: OK | AC43: Fail
A44: 17 | B44: 250.75 | C44: 332.8888889 | E44: 250.75 | F44: 0.373 | G44: OK | I44: 14.3 | J44: 599.82 | K44: 4684.53 | L44: =ROUND(0.76-0.71*((($J$13*IF('HDPE Depth of Bury'!$D$12=3000,'HDPE-Data'!$K44,'HDPE-Data'!$J44)*$J$16/($J$10*$J$7))-1.17)/(($J$13*IF('HDPE Depth of Bury'!D$12=3000,'HDPE-Data'!$K44,'HDPE-Data'!$J44)*$J$16/($J$10*$J$7))+2.92)),3) -> 0.967 | M44: =ROUND(0.76-0.71*((($J$13*IF('HDPE Depth of Bury'!$D$12=3000,'HDPE-Data'!$K44,'HDPE-Data'!$J44)*$J$16/($J$11*$J$7))-1.17)/(($J$13*IF('HDPE Depth of Bury'!D$12=3000,'HDPE-Data'!$K44,'HDPE-Data'!$J44)*$J$16/($J$11*$J$7))+2.92)),3) -> 0.75 | O44: 259.9 | P44: 313.4 | Q44: Fail | T44: 16.54166667 | U44: OK | W44: 324 | X44: OK | Z44: 1.5 | AA44: OK | AC44: Fail
A45: 18 | B45: 265.5 | C45: 370.3888889 | E45: 265.5 | F45: 0.395 | G45: OK | I45: 15.14 | J45: 606.27 | K45: 4789.43 | L45: =ROUND(0.76-0.71*((($J$13*IF('HDPE Depth of Bury'!$D$12=3000,'HDPE-Data'!$K45,'HDPE-Data'!$J45)*$J$16/($J$10*$J$7))-1.17)/(($J$13*IF('HDPE Depth of Bury'!D$12=3000,'HDPE-Data'!$K45,'HDPE-Data'!$J45)*$J$16/($J$10*$J$7))+2.92)),3) -> 0.967 | M45: =ROUND(0.76-0.71*((($J$13*IF('HDPE Depth of Bury'!$D$12=3000,'HDPE-Data'!$K45,'HDPE-Data'!$J45)*$J$16/($J$11*$J$7))-1.17)/(($J$13*IF('HDPE Depth of Bury'!D$12=3000,'HDPE-Data'!$K45,'HDPE-Data'!$J45)*$J$16/($J$11*$J$7))+2.92)),3) -> 0.748 | O45: 275.2 | P45: 332.4 | Q45: Fail | T45: 17.53333333 | U45: OK | W45: 343 | X45: OK | Z45: 1.6 | AA45: OK | AC45: Fail
A46: 19 | B46: 280.25 | C46: 409.8888889 | E46: 280.25 | F46: 0.417 | G46: OK | I46: 15.97 | J46: 612.65 | K46: 4893.08 | L46: =ROUND(0.76-0.71*((($J$13*IF('HDPE Depth of Bury'!$D$12=3000,'HDPE-Data'!$K46,'HDPE-Data'!$J46)*$J$16/($J$10*$J$7))-1.17)/(($J$13*IF('HDPE Depth of Bury'!D$12=3000,'HDPE-Data'!$K46,'HDPE-Data'!$J46)*$J$16/($J$10*$J$7))+2.92)),3) -> 0.966 | M46: =ROUND(0.76-0.71*((($J$13*IF('HDPE Depth of Bury'!$D$12=3000,'HDPE-Data'!$K46,'HDPE-Data'!$J46)*$J$16/($J$11*$J$7))-1.17)/(($J$13*IF('HDPE Depth of Bury'!D$12=3000,'HDPE-Data'!$K46,'HDPE-Data'!$J46)*$J$16/($J$11*$J$7))+2.92)),3) -> 0.746 | O46: 290.4 | P46: 351 | Q46: Fail | T46: 18.525 | U46: OK | W46: 363 | X46: OK | Z46: 1.6 | AA46: OK | AC46: Fail
A47: 20 | B47: 295 | C47: 451.3888889 | E47: 295 | F47: 0.439 | G47: OK | I47: 16.8 | J47: 619.03 | K47: 4996.73 | L47: =ROUND(0.76-0.71*((($J$13*IF('HDPE Depth of Bury'!$D$12=3000,'HDPE-Data'!$K47,'HDPE-Data'!$J47)*$J$16/($J$10*$J$7))-1.17)/(($J$13*IF('HDPE Depth of Bury'!D$12=3000,'HDPE-Data'!$K47,'HDPE-Data'!$J47)*$J$16/($J$10*$J$7))+2.92)),3) -> 0.965 | M47: =ROUND(0.76-0.71*((($J$13*IF('HDPE Depth of Bury'!$D$12=3000,'HDPE-Data'!$K47,'HDPE-Data'!$J47)*$J$16/($J$11*$J$7))-1.17)/(($J$13*IF('HDPE Depth of Bury'!D$12=3000,'HDPE-Data'!$K47,'HDPE-Data'!$J47)*$J$16/($J$11*$J$7))+2.92)),3) -> 0.744 | O47: 305.4 | P47: 369.5 | Q47: Fail | T47: 19.51666667 | U47: OK | W47: 382 | X47: OK | Z47: 1.7 | AA47: OK | AC47: Fail
A48: 21 | B48: 309.75 | C48: 494.8888889 | E48: 309.75 | F48: 0.461 | G48: OK | I48: 17.64 | J48: 625.49 | K48: 5101.63 | L48: =ROUND(0.76-0.71*((($J$13*IF('HDPE Depth of Bury'!$D$12=3000,'HDPE-Data'!$K48,'HDPE-Data'!$J48)*$J$16/($J$10*$J$7))-1.17)/(($J$13*IF('HDPE Depth of Bury'!D$12=3000,'HDPE-Data'!$K48,'HDPE-Data'!$J48)*$J$16/($J$10*$J$7))+2.92)),3) -> 0.964 | M48: =ROUND(0.76-0.71*((($J$13*IF('HDPE Depth of Bury'!$D$12=3000,'HDPE-Data'!$K48,'HDPE-Data'!$J48)*$J$16/($J$11*$J$7))-1.17)/(($J$13*IF('HDPE Depth of Bury'!D$12=3000,'HDPE-Data'!$K48,'HDPE-Data'!$J48)*$J$16/($J$11*$J$7))+2.92)),3) -> 0.742 | O48: 320.6 | P48: 388.2 | Q48: Fail | T48: 20.50833333 | U48: OK | W48: 401 | X48: OK | Z48: 1.8 | AA48: OK | AC48: Fail
A49: 22 | B49: 324.5 | C49: 540.3888889 | E49: 324.5 | F49: 0.482 | G49: OK | I49: 18.47 | J49: 631.86 | K49: 5205.28 | L49: =ROUND(0.76-0.71*((($J$13*IF('HDPE Depth of Bury'!$D$12=3000,'HDPE-Data'!$K49,'HDPE-Data'!$J49)*$J$16/($J$10*$J$7))-1.17)/(($J$13*IF('HDPE Depth of Bury'!D$12=3000,'HDPE-Data'!$K49,'HDPE-Data'!$J49)*$J$16/($J$10*$J$7))+2.92)),3) -> 0.964 | M49: =ROUND(0.76-0.71*((($J$13*IF('HDPE Depth of Bury'!$D$12=3000,'HDPE-Data'!$K49,'HDPE-Data'!$J49)*$J$16/($J$11*$J$7))-1.17)/(($J$13*IF('HDPE Depth of Bury'!D$12=3000,'HDPE-Data'!$K49,'HDPE-Data'!$J49)*$J$16/($J$11*$J$7))+2.92)),3) -> 0.739 | O49: 335.3 | P49: 407 | Q49: Fail | T49: 21.5 | U49: OK | W49: 419 | X49: OK | Z49: 1.9 | AA49: OK | AC49: Fail
A50: 23 | B50: 339.25 | C50: 587.8888889 | E50: 339.25 | F50: 0.504 | G50: OK | I50: 19.3 | J50: 638.24 | K50: 5308.93 | L50: =ROUND(0.76-0.71*((($J$13*IF('HDPE Depth of Bury'!$D$12=3000,'HDPE-Data'!$K50,'HDPE-Data'!$J50)*$J$16/($J$10*$J$7))-1.17)/(($J$13*IF('HDPE Depth of Bury'!D$12=3000,'HDPE-Data'!$K50,'HDPE-Data'!$J50)*$J$16/($J$10*$J$7))+2.92)),3) -> 0.963 | M50: =ROUND(0.76-0.71*((($J$13*IF('HDPE Depth of Bury'!$D$12=3000,'HDPE-Data'!$K50,'HDPE-Data'!$J50)*$J$16/($J$11*$J$7))-1.17)/(($J$13*IF('HDPE Depth of Bury'!D$12=3000,'HDPE-Data'!$K50,'HDPE-Data'!$J50)*$J$16/($J$11*$J$7))+2.92)),3) -> 0.737 | O50: 350.2 | P50: 425.4 | Q50: Fail | T50: 22.49166667 | U50: OK | W50: 438 | X50: OK | Z50: 2 | AA50: OK | AC50: Fail
A51: 24 | B51: 354 | C51: 637.3888889 | E51: 354 | F51: 0.526 | G51: OK | I51: 20.14 | J51: 644.7 | K51: 5413.83 | L51: =ROUND(0.76-0.71*((($J$13*IF('HDPE Depth of Bury'!$D$12=3000,'HDPE-Data'!$K51,'HDPE-Data'!$J51)*$J$16/($J$10*$J$7))-1.17)/(($J$13*IF('HDPE Depth of Bury'!D$12=3000,'HDPE-Data'!$K51,'HDPE-Data'!$J51)*$J$16/($J$10*$J$7))+2.92)),3) -> 0.962 | M51: =ROUND(0.76-0.71*((($J$13*IF('HDPE Depth of Bury'!$D$12=3000,'HDPE-Data'!$K51,'HDPE-Data'!$J51)*$J$16/($J$11*$J$7))-1.17)/(($J$13*IF('HDPE Depth of Bury'!D$12=3000,'HDPE-Data'!$K51,'HDPE-Data'!$J51)*$J$16/($J$11*$J$7))+2.92)),3) -> 0.735 | O51: 365.1 | P51: 444 | Q51: Fail | T51: 23.48333333 | U51: OK | W51: 457 | X51: OK | Z51: 2.1 | AA51: OK | AC51: Fail
A52: 25 | B52: 368.75 | C52: 688.8888889 | E52: 368.75 | F52: 0.548 | G52: OK | I52: 20.97 | J52: 651.08 | K52: 5517.48 | L52: =ROUND(0.76-0.71*((($J$13*IF('HDPE Depth of Bury'!$D$12=3000,'HDPE-Data'!$K52,'HDPE-Data'!$J52)*$J$16/($J$10*$J$7))-1.17)/(($J$13*IF('HDPE Depth of Bury'!D$12=3000,'HDPE-Data'!$K52,'HDPE-Data'!$J52)*$J$16/($J$10*$J$7))+2.92)),3) -> 0.961 | M52: =ROUND(0.76-0.71*((($J$13*IF('HDPE Depth of Bury'!$D$12=3000,'HDPE-Data'!$K52,'HDPE-Data'!$J52)*$J$16/($J$11*$J$7))-1.17)/(($J$13*IF('HDPE Depth of Bury'!D$12=3000,'HDPE-Data'!$K52,'HDPE-Data'!$J52)*$J$16/($J$11*$J$7))+2.92)),3) -> 0.733 | O52: 379.9 | P52: 462.4 | Q52: Fail | T52: 24.475 | U52: OK | W52: 476 | X52: OK | Z52: 2.2 | AA52: OK | AC52: Fail
A53: 26 | B53: 383.5 | C53: 742.3888889 | E53: 383.5 | F53: 0.57 | G53: OK | I53: 21.8 | J53: =ROUND($AO$7+($I53-$AN$7)*(($AO$7-$AO$8)/($AN$7-$AN$8)),2) -> 658.15 | K53: =ROUND($AP$7+($I53-$AN$7)*(($AP$7-$AP$8)/($AN$7-$AN$8)),2) -> 5593.09 | L53: =ROUND(0.76-0.71*((($J$13*IF('HDPE Depth of Bury'!$D$12=3000,'HDPE-Data'!$K53,'HDPE-Data'!$J53)*$J$16/($J$10*$J$7))-1.17)/(($J$13*IF('HDPE Depth of Bury'!D$12=3000,'HDPE-Data'!$K53,'HDPE-Data'!$J53)*$J$16/($J$10*$J$7))+2.92)),3) -> 0.961 | M53: =ROUND(0.76-0.71*((($J$13*IF('HDPE Depth of Bury'!$D$12=3000,'HDPE-Data'!$K53,'HDPE-Data'!$J53)*$J$16/($J$11*$J$7))-1.17)/(($J$13*IF('HDPE Depth of Bury'!D$12=3000,'HDPE-Data'!$K53,'HDPE-Data'!$J53)*$J$16/($J$11*$J$7))+2.92)),3) -> 0.731 | O53: 394.7 | P53: 481.2 | Q53: Fail | T53: 25.46666667 | U53: OK | W53: 496 | X53: OK | Z53: 2.3 | AA53: OK | AC53: Fail
A54: 27 | B54: 398.25 | C54: 797.8888889 | E54: 398.25 | F54: 0.592 | G54: OK | I54: 22.64 | J54: 665.2 | K54: 5673.7 | L54: =ROUND(0.76-0.71*((($J$13*IF('HDPE Depth of Bury'!$D$12=3000,'HDPE-Data'!$K54,'HDPE-Data'!$J54)*$J$16/($J$10*$J$7))-1.17)/(($J$13*IF('HDPE Depth of Bury'!D$12=3000,'HDPE-Data'!$K54,'HDPE-Data'!$J54)*$J$16/($J$10*$J$7))+2.92)),3) -> 0.96 | M54: =ROUND(0.76-0.71*((($J$13*IF('HDPE Depth of Bury'!$D$12=3000,'HDPE-Data'!$K54,'HDPE-Data'!$J54)*$J$16/($J$11*$J$7))-1.17)/(($J$13*IF('HDPE Depth of Bury'!D$12=3000,'HDPE-Data'!$K54,'HDPE-Data'!$J54)*$J$16/($J$11*$J$7))+2.92)),3) -> 0.728 | O54: 409.1 | P54: 499.7 | Q54: Fail | T54: 26.45833333 | U54: OK | W54: 515 | X54: OK | Z54: 2.3 | AA54: OK | AC54: Fail
A55: 28 | B55: 413 | C55: 855.3888889 | E55: 413 | F55: 0.614 | G55: OK | I55: 23.47 | J55: 672.17 | K55: 5753.36 | L55: =ROUND(0.76-0.71*((($J$13*IF('HDPE Depth of Bury'!$D$12=3000,'HDPE-Data'!$K55,'HDPE-Data'!$J55)*$J$16/($J$10*$J$7))-1.17)/(($J$13*IF('HDPE Depth of Bury'!D$12=3000,'HDPE-Data'!$K55,'HDPE-Data'!$J55)*$J$16/($J$10*$J$7))+2.92)),3) -> 0.959 | M55: =ROUND(0.76-0.71*((($J$13*IF('HDPE Depth of Bury'!$D$12=3000,'HDPE-Data'!$K55,'HDPE-Data'!$J55)*$J$16/($J$11*$J$7))-1.17)/(($J$13*IF('HDPE Depth of Bury'!D$12=3000,'HDPE-Data'!$K55,'HDPE-Data'!$J55)*$J$16/($J$11*$J$7))+2.92)),3) -> 0.726 | O55: 423.7 | P55: 518.1 | Q55: Fail | T55: 27.45 | U55: OK | W55: 534 | X55: OK | Z55: 2.4 | AA55: OK | AC55: Fail
A56: 29 | B56: 427.75 | C56: 914.8888889 | E56: 427.75 | F56: 0.636 | G56: OK | I56: 24.3 | J56: 679.14 | K56: 5833.01 | L56: =ROUND(0.76-0.71*((($J$13*IF('HDPE Depth of Bury'!$D$12=3000,'HDPE-Data'!$K56,'HDPE-Data'!$J56)*$J$16/($J$10*$J$7))-1.17)/(($J$13*IF('HDPE Depth of Bury'!D$12=3000,'HDPE-Data'!$K56,'HDPE-Data'!$J56)*$J$16/($J$10*$J$7))+2.92)),3) -> 0.958 | M56: =ROUND(0.76-0.71*((($J$13*IF('HDPE Depth of Bury'!$D$12=3000,'HDPE-Data'!$K56,'HDPE-Data'!$J56)*$J$16/($J$11*$J$7))-1.17)/(($J$13*IF('HDPE Depth of Bury'!D$12=3000,'HDPE-Data'!$K56,'HDPE-Data'!$J56)*$J$16/($J$11*$J$7))+2.92)),3) -> 0.724 | O56: 438.2 | P56: 536.4 | Q56: Fail | T56: 28.44166667 | U56: OK | W56: 553 | X56: OK | Z56: 2.5 | AA56: OK | AC56: Fail
A57: 30 | B57: 442.5 | C57: 976.3888889 | E57: 442.5 | F57: 0.658 | G57: OK | I57: 25.14 | J57: 686.19 | K57: 5913.63 | L57: =ROUND(0.76-0.71*((($J$13*IF('HDPE Depth of Bury'!$D$12=3000,'HDPE-Data'!$K57,'HDPE-Data'!$J57)*$J$16/($J$10*$J$7))-1.17)/(($J$13*IF('HDPE Depth of Bury'!D$12=3000,'HDPE-Data'!$K57,'HDPE-Data'!$J57)*$J$16/($J$10*$J$7))+2.92)),3) -> 0.957 | M57: =ROUND(0.76-0.71*((($J$13*IF('HDPE Depth of Bury'!$D$12=3000,'HDPE-Data'!$K57,'HDPE-Data'!$J57)*$J$16/($J$11*$J$7))-1.17)/(($J$13*IF('HDPE Depth of Bury'!D$12=3000,'HDPE-Data'!$K57,'HDPE-Data'!$J57)*$J$16/($J$11*$J$7))+2.92)),3) -> 0.722 | O57: 452.8 | P57: 554.8 | Q57: Fail | T57: 29.43333333 | U57: OK | W57: 572 | X57: OK | Z57: 2.6 | AA57: OK | AC57: Fail
A58: 31 | B58: 457.25 | C58: 1039.888889 | E58: 457.25 | F58: 0.68 | G58: OK | I58: 25.97 | J58: 693.16 | K58: 5993.28 | L58: =ROUND(0.76-0.71*((($J$13*IF('HDPE Depth of Bury'!$D$12=3000,'HDPE-Data'!$K58,'HDPE-Data'!$J58)*$J$16/($J$10*$J$7))-1.17)/(($J$13*IF('HDPE Depth of Bury'!D$12=3000,'HDPE-Data'!$K58,'HDPE-Data'!$J58)*$J$16/($J$10*$J$7))+2.92)),3) -> 0.956 | M58: =ROUND(0.76-0.71*((($J$13*IF('HDPE Depth of Bury'!$D$12=3000,'HDPE-Data'!$K58,'HDPE-Data'!$J58)*$J$16/($J$11*$J$7))-1.17)/(($J$13*IF('HDPE Depth of Bury'!D$12=3000,'HDPE-Data'!$K58,'HDPE-Data'!$J58)*$J$16/($J$11*$J$7))+2.92)),3) -> 0.719 | O58: 466.8 | P58: 573 | Q58: Fail | T58: 30.425 | U58: OK | W58: 591 | X58: OK | Z58: 2.7 | AA58: OK | AC58: Fail
A59: 32 | B59: 472 | C59: 1105.388889 | E59: 472 | F59: 0.702 | G59: OK | I59: 26.8 | J59: 700.13 | K59: 6072.94 | L59: =ROUND(0.76-0.71*((($J$13*IF('HDPE Depth of Bury'!$D$12=3000,'HDPE-Data'!$K59,'HDPE-Data'!$J59)*$J$16/($J$10*$J$7))-1.17)/(($J$13*IF('HDPE Depth of Bury'!D$12=3000,'HDPE-Data'!$K59,'HDPE-Data'!$J59)*$J$16/($J$10*$J$7))+2.92)),3) -> 0.956 | M59: =ROUND(0.76-0.71*((($J$13*IF('HDPE Depth of Bury'!$D$12=3000,'HDPE-Data'!$K59,'HDPE-Data'!$J59)*$J$16/($J$11*$J$7))-1.17)/(($J$13*IF('HDPE Depth of Bury'!D$12=3000,'HDPE-Data'!$K59,'HDPE-Data'!$J59)*$J$16/($J$11*$J$7))+2.92)),3) -> 0.717 | O59: 481.2 | P59: 591.7 | Q59: Fail | T59: 31.41666667 | U59: OK | W59: 610 | X59: OK | Z59: 2.8 | AA59: OK | AC59: Fail
A60: 33 | B60: =(A60*$B$7/144)*(B$5) -> 486.75 | C60: =($F$5+$F$7*$A60)*($F$6+$F$7*$A60) -> 1172.888889 | E60: =(B60+D60) -> 486.75 | F60: =ROUND($E60*$B$9/(0.149*$B$6+0.061*$B$8),3) -> 0.724 | G60: =IF(F60<$B$11,"OK","Fail") -> OK | I60: =ROUND($J$4*(A60+0.11*$J$6/12)/144,2) -> 27.64 | J60: 707.19 | K60: 6153.55 | L60: =ROUND(0.76-0.71*((($J$13*IF('HDPE Depth of Bury'!$D$12=3000,'HDPE-Data'!$K60,'HDPE-Data'!$J60)*$J$16/($J$10*$J$7))-1.17)/(($J$13*IF('HDPE Depth of Bury'!D$12=3000,'HDPE-Data'!$K60,'HDPE-Data'!$J60)*$J$16/($J$10*$J$7))+2.92)),3) -> 0.955 | M60: =ROUND(0.76-0.71*((($J$13*IF('HDPE Depth of Bury'!$D$12=3000,'HDPE-Data'!$K60,'HDPE-Data'!$J60)*$J$16/($J$11*$J$7))-1.17)/(($J$13*IF('HDPE Depth of Bury'!D$12=3000,'HDPE-Data'!$K60,'HDPE-Data'!$J60)*$J$16/($J$11*$J$7))+2.92)),3) -> 0.715 | O60: =ROUND(1.3*(1.5*I60*M60+IF(A60-$J$17>0,A60-$J$17,0)*62.4/144)*($J$6/2),1) -> 495.6 | P60: =ROUND(1.3*(1.5*I60*L60+1.67*D60/$J$6*MIN(1,N60/$J$6)+IF(A60-$J$17>0,A60-$J$17,0)*62.4/144)*($J$6/2),1) -> 610.1 | Q60: =IF(AND(P60<$J$14,O60<$J$15),"OK","Fail") -> Fail | T60: =(1-0.33*(IF(A60-$U$7<0,0,A60-$U$7))/A60)*A60*$U$11/144+62.4*IF(A60-$U$7<0,0,A60-$U$7)/144+(D60/$U$5) -> 32.40833333 | U60: =IF(T60<$U$10,"OK","Fail") -> OK | W60: =ROUND(2*$X$8*$X$9*$F60*$X$10*$X$11/($X$6^2),0) -> 629 | X60: =IF(W60<$X$14,"OK","Fail") -> OK | Z60: =ROUND(2*$AA$8*F60*$AA$10*$AA$11/($AA$6^2)*100,1) -> 2.9 | AA60: =IF(Z60<$AA$14,"OK","Fail") -> OK | AC60: =IF(AND(AA60="OK",X60="OK",U60="OK",Q60="OK",G60="OK"),A60,"Fail") -> Fail
A61: 34 | B61: 501.5 | C61: 1242.388889 | E61: 501.5 | F61: 0.746 | G61: OK | I61: 28.47 | J61: 714.16 | K61: 6233.21 | L61: =ROUND(0.76-0.71*((($J$13*IF('HDPE Depth of Bury'!$D$12=3000,'HDPE-Data'!$K61,'HDPE-Data'!$J61)*$J$16/($J$10*$J$7))-1.17)/(($J$13*IF('HDPE Depth of Bury'!D$12=3000,'HDPE-Data'!$K61,'HDPE-Data'!$J61)*$J$16/($J$10*$J$7))+2.92)),3) -> 0.954 | M61: =ROUND(0.76-0.71*((($J$13*IF('HDPE Depth of Bury'!$D$12=3000,'HDPE-Data'!$K61,'HDPE-Data'!$J61)*$J$16/($J$11*$J$7))-1.17)/(($J$13*IF('HDPE Depth of Bury'!D$12=3000,'HDPE-Data'!$K61,'HDPE-Data'!$J61)*$J$16/($J$11*$J$7))+2.92)),3) -> 0.713 | O61: 509.8 | P61: 628.3 | Q61: Fail | T61: 33.4 | U61: OK | W61: 649 | X61: OK | Z61: 2.9 | AA61: OK | AC61: Fail
A62: 35 | B62: 516.25 | C62: 1313.888889 | E62: 516.25 | F62: 0.768 | G62: Fail | I62: 29.3 | J62: 721.13 | K62: 6312.86 | L62: =ROUND(0.76-0.71*((($J$13*IF('HDPE Depth of Bury'!$D$12=3000,'HDPE-Data'!$K62,'HDPE-Data'!$J62)*$J$16/($J$10*$J$7))-1.17)/(($J$13*IF('HDPE Depth of Bury'!D$12=3000,'HDPE-Data'!$K62,'HDPE-Data'!$J62)*$J$16/($J$10*$J$7))+2.92)),3) -> 0.953 | M62: =ROUND(0.76-0.71*((($J$13*IF('HDPE Depth of Bury'!$D$12=3000,'HDPE-Data'!$K62,'HDPE-Data'!$J62)*$J$16/($J$11*$J$7))-1.17)/(($J$13*IF('HDPE Depth of Bury'!D$12=3000,'HDPE-Data'!$K62,'HDPE-Data'!$J62)*$J$16/($J$11*$J$7))+2.92)),3) -> 0.711 | O62: 524 | P62: 646.4 | Q62: Fail | T62: 34.39166667 | U62: OK | W62: 668 | X62: OK | Z62: 3 | AA62: OK | AC62: Fail
A63: 36 | B63: 531 | C63: 1387.388889 | E63: 531 | F63: 0.789 | G63: Fail | I63: 30.14 | J63: 728.18 | K63: 6393.47 | L63: =ROUND(0.76-0.71*((($J$13*IF('HDPE Depth of Bury'!$D$12=3000,'HDPE-Data'!$K63,'HDPE-Data'!$J63)*$J$16/($J$10*$J$7))-1.17)/(($J$13*IF('HDPE Depth of Bury'!D$12=3000,'HDPE-Data'!$K63,'HDPE-Data'!$J63)*$J$16/($J$10*$J$7))+2.92)),3) -> 0.952 | M63: =ROUND(0.76-0.71*((($J$13*IF('HDPE Depth of Bury'!$D$12=3000,'HDPE-Data'!$K63,'HDPE-Data'!$J63)*$J$16/($J$11*$J$7))-1.17)/(($J$13*IF('HDPE Depth of Bury'!D$12=3000,'HDPE-Data'!$K63,'HDPE-Data'!$J63)*$J$16/($J$11*$J$7))+2.92)),3) -> 0.709 | O63: 538.3 | P63: 664.7 | Q63: Fail | T63: 35.38333333 | U63: OK | W63: 686 | X63: OK | Z63: 3.1 | AA63: OK | AC63: Fail
A64: 37 | B64: 545.75 | C64: 1462.888889 | E64: 545.75 | F64: 0.811 | G64: Fail | I64: 30.97 | J64: 735.15 | K64: 6473.13 | L64: =ROUND(0.76-0.71*((($J$13*IF('HDPE Depth of Bury'!$D$12=3000,'HDPE-Data'!$K64,'HDPE-Data'!$J64)*$J$16/($J$10*$J$7))-1.17)/(($J$13*IF('HDPE Depth of Bury'!D$12=3000,'HDPE-Data'!$K64,'HDPE-Data'!$J64)*$J$16/($J$10*$J$7))+2.92)),3) -> 0.952 | M64: =ROUND(0.76-0.71*((($J$13*IF('HDPE Depth of Bury'!$D$12=3000,'HDPE-Data'!$K64,'HDPE-Data'!$J64)*$J$16/($J$11*$J$7))-1.17)/(($J$13*IF('HDPE Depth of Bury'!D$12=3000,'HDPE-Data'!$K64,'HDPE-Data'!$J64)*$J$16/($J$11*$J$7))+2.92)),3) -> 0.706 | O64: 551.8 | P64: 683.3 | Q64: Fail | T64: 36.375 | U64: OK | W64: 705 | X64: OK | Z64: 3.2 | AA64: OK | AC64: Fail
A65: 38 | B65: 560.5 | C65: 1540.388889 | E65: 560.5 | F65: 0.833 | G65: Fail | I65: 31.8 | J65: 742.12 | K65: 6552.78 | L65: =ROUND(0.76-0.71*((($J$13*IF('HDPE Depth of Bury'!$D$12=3000,'HDPE-Data'!$K65,'HDPE-Data'!$J65)*$J$16/($J$10*$J$7))-1.17)/(($J$13*IF('HDPE Depth of Bury'!D$12=3000,'HDPE-Data'!$K65,'HDPE-Data'!$J65)*$J$16/($J$10*$J$7))+2.92)),3) -> 0.951 | M65: =ROUND(0.76-0.71*((($J$13*IF('HDPE Depth of Bury'!$D$12=3000,'HDPE-Data'!$K65,'HDPE-Data'!$J65)*$J$16/($J$11*$J$7))-1.17)/(($J$13*IF('HDPE Depth of Bury'!D$12=3000,'HDPE-Data'!$K65,'HDPE-Data'!$J65)*$J$16/($J$11*$J$7))+2.92)),3) -> 0.704 | O65: 565.8 | P65: 701.4 | Q65: Fail | T65: 37.36666667 | U65: OK | W65: 724 | X65: OK | Z65: 3.3 | AA65: OK | AC65: Fail
A66: 39 | B66: 575.25 | C66: 1619.888889 | E66: 575.25 | F66: 0.855 | G66: Fail | I66: 32.64 | J66: 749.17 | K66: 6633.4 | L66: =ROUND(0.76-0.71*((($J$13*IF('HDPE Depth of Bury'!$D$12=3000,'HDPE-Data'!$K66,'HDPE-Data'!$J66)*$J$16/($J$10*$J$7))-1.17)/(($J$13*IF('HDPE Depth of Bury'!D$12=3000,'HDPE-Data'!$K66,'HDPE-Data'!$J66)*$J$16/($J$10*$J$7))+2.92)),3) -> 0.95 | M66: =ROUND(0.76-0.71*((($J$13*IF('HDPE Depth of Bury'!$D$12=3000,'HDPE-Data'!$K66,'HDPE-Data'!$J66)*$J$16/($J$11*$J$7))-1.17)/(($J$13*IF('HDPE Depth of Bury'!D$12=3000,'HDPE-Data'!$K66,'HDPE-Data'!$J66)*$J$16/($J$11*$J$7))+2.92)),3) -> 0.702 | O66: 579.9 | P66: 719.6 | Q66: Fail | T66: 38.35833333 | U66: OK | W66: 743 | X66: OK | Z66: 3.4 | AA66: OK | AC66: Fail
A67: 40 | B67: 590 | C67: 1701.388889 | E67: 590 | F67: 0.877 | G67: Fail | I67: 33.47 | J67: 756.14 | K67: 6713.05 | L67: =ROUND(0.76-0.71*((($J$13*IF('HDPE Depth of Bury'!$D$12=3000,'HDPE-Data'!$K67,'HDPE-Data'!$J67)*$J$16/($J$10*$J$7))-1.17)/(($J$13*IF('HDPE Depth of Bury'!D$12=3000,'HDPE-Data'!$K67,'HDPE-Data'!$J67)*$J$16/($J$10*$J$7))+2.92)),3) -> 0.949 | M67: =ROUND(0.76-0.71*((($J$13*IF('HDPE Depth of Bury'!$D$12=3000,'HDPE-Data'!$K67,'HDPE-Data'!$J67)*$J$16/($J$11*$J$7))-1.17)/(($J$13*IF('HDPE Depth of Bury'!D$12=3000,'HDPE-Data'!$K67,'HDPE-Data'!$J67)*$J$16/($J$11*$J$7))+2.92)),3) -> 0.7 | O67: 593.8 | P67: 737.6 | Q67: Fail | T67: 39.35 | U67: OK | W67: 762 | X67: OK | Z67: 3.5 | AA67: OK | AC67: Fail
A68: 41 | B68: 604.75 | C68: 1784.888889 | E68: 604.75 | F68: 0.899 | G68: Fail | I68: 34.3 | J68: 763.11 | K68: 6792.71 | L68: =ROUND(0.76-0.71*((($J$13*IF('HDPE Depth of Bury'!$D$12=3000,'HDPE-Data'!$K68,'HDPE-Data'!$J68)*$J$16/($J$10*$J$7))-1.17)/(($J$13*IF('HDPE Depth of Bury'!D$12=3000,'HDPE-Data'!$K68,'HDPE-Data'!$J68)*$J$16/($J$10*$J$7))+2.92)),3) -> 0.948 | M68: =ROUND(0.76-0.71*((($J$13*IF('HDPE Depth of Bury'!$D$12=3000,'HDPE-Data'!$K68,'HDPE-Data'!$J68)*$J$16/($J$11*$J$7))-1.17)/(($J$13*IF('HDPE Depth of Bury'!D$12=3000,'HDPE-Data'!$K68,'HDPE-Data'!$J68)*$J$16/($J$11*$J$7))+2.92)),3) -> 0.698 | O68: 607.6 | P68: 755.6 | Q68: Fail | T68: 40.34166667 | U68: OK | W68: 782 | X68: OK | Z68: 3.6 | AA68: OK | AC68: Fail
A69: 42 | B69: 619.5 | C69: 1870.388889 | E69: 619.5 | F69: 0.921 | G69: Fail | I69: 35.14 | J69: 770.17 | K69: 6873.32 | L69: =ROUND(0.76-0.71*((($J$13*IF('HDPE Depth of Bury'!$D$12=3000,'HDPE-Data'!$K69,'HDPE-Data'!$J69)*$J$16/($J$10*$J$7))-1.17)/(($J$13*IF('HDPE Depth of Bury'!D$12=3000,'HDPE-Data'!$K69,'HDPE-Data'!$J69)*$J$16/($J$10*$J$7))+2.92)),3) -> 0.948 | M69: =ROUND(0.76-0.71*((($J$13*IF('HDPE Depth of Bury'!$D$12=3000,'HDPE-Data'!$K69,'HDPE-Data'!$J69)*$J$16/($J$11*$J$7))-1.17)/(($J$13*IF('HDPE Depth of Bury'!D$12=3000,'HDPE-Data'!$K69,'HDPE-Data'!$J69)*$J$16/($J$11*$J$7))+2.92)),3) -> 0.696 | O69: 621.5 | P69: 774.3 | Q69: Fail | T69: 41.33333333 | U69: OK | W69: 801 | X69: OK | Z69: 3.6 | AA69: OK | AC69: Fail
A70: 43 | B70: 634.25 | C70: 1957.888889 | E70: 634.25 | F70: 0.943 | G70: Fail | I70: 35.97 | J70: 777.14 | K70: 6952.98 | L70: =ROUND(0.76-0.71*((($J$13*IF('HDPE Depth of Bury'!$D$12=3000,'HDPE-Data'!$K70,'HDPE-Data'!$J70)*$J$16/($J$10*$J$7))-1.17)/(($J$13*IF('HDPE Depth of Bury'!D$12=3000,'HDPE-Data'!$K70,'HDPE-Data'!$J70)*$J$16/($J$10*$J$7))+2.92)),3) -> 0.947 | M70: =ROUND(0.76-0.71*((($J$13*IF('HDPE Depth of Bury'!$D$12=3000,'HDPE-Data'!$K70,'HDPE-Data'!$J70)*$J$16/($J$11*$J$7))-1.17)/(($J$13*IF('HDPE Depth of Bury'!D$12=3000,'HDPE-Data'!$K70,'HDPE-Data'!$J70)*$J$16/($J$11*$J$7))+2.92)),3) -> 0.694 | O70: 635.2 | P70: 792.3 | Q70: Fail | T70: 42.325 | U70: OK | W70: 820 | X70: OK | Z70: 3.7 | AA70: OK | AC70: Fail
A71: 44 | B71: 649 | C71: 2047.388889 | E71: 649 | F71: 0.965 | G71: Fail | I71: 36.8 | J71: 784.11 | K71: 7032.63 | L71: =ROUND(0.76-0.71*((($J$13*IF('HDPE Depth of Bury'!$D$12=3000,'HDPE-Data'!$K71,'HDPE-Data'!$J71)*$J$16/($J$10*$J$7))-1.17)/(($J$13*IF('HDPE Depth of Bury'!D$12=3000,'HDPE-Data'!$K71,'HDPE-Data'!$J71)*$J$16/($J$10*$J$7))+2.92)),3) -> 0.946 | M71: =ROUND(0.76-0.71*((($J$13*IF('HDPE Depth of Bury'!$D$12=3000,'HDPE-Data'!$K71,'HDPE-Data'!$J71)*$J$16/($J$11*$J$7))-1.17)/(($J$13*IF('HDPE Depth of Bury'!D$12=3000,'HDPE-Data'!$K71,'HDPE-Data'!$J71)*$J$16/($J$11*$J$7))+2.92)),3) -> 0.692 | O71: 648.9 | P71: 810.2 | Q71: Fail | T71: 43.31666667 | U71: OK | W71: 839 | X71: OK | Z71: 3.8 | AA71: OK | AC71: Fail
A72: 45 | B72: 663.75 | C72: 2138.888889 | E72: 663.75 | F72: 0.987 | G72: Fail | I72: 37.64 | J72: 791.16 | K72: 7113.24 | L72: =ROUND(0.76-0.71*((($J$13*IF('HDPE Depth of Bury'!$D$12=3000,'HDPE-Data'!$K72,'HDPE-Data'!$J72)*$J$16/($J$10*$J$7))-1.17)/(($J$13*IF('HDPE Depth of Bury'!D$12=3000,'HDPE-Data'!$K72,'HDPE-Data'!$J72)*$J$16/($J$10*$J$7))+2.92)),3) -> 0.945 | M72: =ROUND(0.76-0.71*((($J$13*IF('HDPE Depth of Bury'!$D$12=3000,'HDPE-Data'!$K72,'HDPE-Data'!$J72)*$J$16/($J$11*$J$7))-1.17)/(($J$13*IF('HDPE Depth of Bury'!D$12=3000,'HDPE-Data'!$K72,'HDPE-Data'!$J72)*$J$16/($J$11*$J$7))+2.92)),3) -> 0.69 | O72: 662.6 | P72: 828.2 | Q72: Fail | T72: 44.30833333 | U72: OK | W72: 858 | X72: OK | Z72: 3.9 | AA72: OK | AC72: Fail
A73: 46 | B73: 678.5 | C73: 2232.388889 | E73: 678.5 | F73: 1.009 | G73: Fail | I73: 38.47 | J73: 798.13 | K73: 7192.9 | L73: =ROUND(0.76-0.71*((($J$13*IF('HDPE Depth of Bury'!$D$12=3000,'HDPE-Data'!$K73,'HDPE-Data'!$J73)*$J$16/($J$10*$J$7))-1.17)/(($J$13*IF('HDPE Depth of Bury'!D$12=3000,'HDPE-Data'!$K73,'HDPE-Data'!$J73)*$J$16/($J$10*$J$7))+2.92)),3) -> 0.944 | M73: =ROUND(0.76-0.71*((($J$13*IF('HDPE Depth of Bury'!$D$12=3000,'HDPE-Data'!$K73,'HDPE-Data'!$J73)*$J$16/($J$11*$J$7))-1.17)/(($J$13*IF('HDPE Depth of Bury'!D$12=3000,'HDPE-Data'!$K73,'HDPE-Data'!$J73)*$J$16/($J$11*$J$7))+2.92)),3) -> 0.688 | O73: 676.1 | P73: 846.1 | Q73: Fail | T73: 45.3 | U73: OK | W73: 877 | X73: OK | Z73: 4 | AA73: OK | AC73: Fail
A74: 47 | B74: 693.25 | C74: 2327.888889 | E74: 693.25 | F74: 1.031 | G74: Fail | I74: 39.3 | J74: 805.1 | K74: 7272.55 | L74: =ROUND(0.76-0.71*((($J$13*IF('HDPE Depth of Bury'!$D$12=3000,'HDPE-Data'!$K74,'HDPE-Data'!$J74)*$J$16/($J$10*$J$7))-1.17)/(($J$13*IF('HDPE Depth of Bury'!D$12=3000,'HDPE-Data'!$K74,'HDPE-Data'!$J74)*$J$16/($J$10*$J$7))+2.92)),3) -> 0.944 | M74: =ROUND(0.76-0.71*((($J$13*IF('HDPE Depth of Bury'!$D$12=3000,'HDPE-Data'!$K74,'HDPE-Data'!$J74)*$J$16/($J$11*$J$7))-1.17)/(($J$13*IF('HDPE Depth of Bury'!D$12=3000,'HDPE-Data'!$K74,'HDPE-Data'!$J74)*$J$16/($J$11*$J$7))+2.92)),3) -> 0.686 | O74: 689.6 | P74: 864.6 | Q74: Fail | T74: 46.29166667 | U74: OK | W74: 896 | X74: OK | Z74: 4.1 | AA74: OK | AC74: Fail
A75: 48 | B75: 708 | C75: 2425.388889 | E75: 708 | F75: 1.053 | G75: Fail | I75: 40.14 | J75: 812.15 | K75: 7353.17 | L75: =ROUND(0.76-0.71*((($J$13*IF('HDPE Depth of Bury'!$D$12=3000,'HDPE-Data'!$K75,'HDPE-Data'!$J75)*$J$16/($J$10*$J$7))-1.17)/(($J$13*IF('HDPE Depth of Bury'!D$12=3000,'HDPE-Data'!$K75,'HDPE-Data'!$J75)*$J$16/($J$10*$J$7))+2.92)),3) -> 0.943 | M75: =ROUND(0.76-0.71*((($J$13*IF('HDPE Depth of Bury'!$D$12=3000,'HDPE-Data'!$K75,'HDPE-Data'!$J75)*$J$16/($J$11*$J$7))-1.17)/(($J$13*IF('HDPE Depth of Bury'!D$12=3000,'HDPE-Data'!$K75,'HDPE-Data'!$J75)*$J$16/($J$11*$J$7))+2.92)),3) -> 0.684 | O75: 703.2 | P75: 882.6 | Q75: Fail | T75: 47.28333333 | U75: OK | W75: 915 | X75: Fail | Z75: 4.2 | AA75: OK | AC75: Fail
A76: 49 | B76: 722.75 | C76: 2524.888889 | E76: 722.75 | F76: 1.075 | G76: Fail | I76: 40.97 | J76: 819.12 | K76: 7432.82 | L76: =ROUND(0.76-0.71*((($J$13*IF('HDPE Depth of Bury'!$D$12=3000,'HDPE-Data'!$K76,'HDPE-Data'!$J76)*$J$16/($J$10*$J$7))-1.17)/(($J$13*IF('HDPE Depth of Bury'!D$12=3000,'HDPE-Data'!$K76,'HDPE-Data'!$J76)*$J$16/($J$10*$J$7))+2.92)),3) -> 0.942 | M76: =ROUND(0.76-0.71*((($J$13*IF('HDPE Depth of Bury'!$D$12=3000,'HDPE-Data'!$K76,'HDPE-Data'!$J76)*$J$16/($J$11*$J$7))-1.17)/(($J$13*IF('HDPE Depth of Bury'!D$12=3000,'HDPE-Data'!$K76,'HDPE-Data'!$J76)*$J$16/($J$11*$J$7))+2.92)),3) -> 0.682 | O76: 716.5 | P76: 900.3 | Q76: Fail | T76: 48.275 | U76: OK | W76: 935 | X76: Fail | Z76: 4.2 | AA76: OK | AC76: Fail
A77: 50 | B77: 737.5 | C77: 2626.388889 | E77: 737.5 | F77: 1.097 | G77: Fail | I77: 41.8 | J77: =ROUND($AO$8+($I77-$AN$8)*(($AO$8-$AO$9)/($AN$8-$AN$9)),2) -> 826.09 | K77: =ROUND($AP$8+($I77-$AN$8)*(($AP$8-$AP$9)/($AN$8-$AN$9)),2) -> 7511.23 | L77: =ROUND(0.76-0.71*((($J$13*IF('HDPE Depth of Bury'!$D$12=3000,'HDPE-Data'!$K77,'HDPE-Data'!$J77)*$J$16/($J$10*$J$7))-1.17)/(($J$13*IF('HDPE Depth of Bury'!D$12=3000,'HDPE-Data'!$K77,'HDPE-Data'!$J77)*$J$16/($J$10*$J$7))+2.92)),3) -> 0.941 | M77: =ROUND(0.76-0.71*((($J$13*IF('HDPE Depth of Bury'!$D$12=3000,'HDPE-Data'!$K77,'HDPE-Data'!$J77)*$J$16/($J$11*$J$7))-1.17)/(($J$13*IF('HDPE Depth of Bury'!D$12=3000,'HDPE-Data'!$K77,'HDPE-Data'!$J77)*$J$16/($J$11*$J$7))+2.92)),3) -> 0.68 | O77: 729.8 | P77: 918.1 | Q77: Fail | T77: 49.26666667 | U77: OK | W77: 954 | X77: Fail | Z77: 4.3 | AA77: OK | AC77: Fail
A78: 51 | B78: 752.25 | C78: 2729.888889 | E78: 752.25 | F78: 1.118 | G78: Fail | I78: 42.64 | J78: 833.15 | K78: 7583.82 | L78: =ROUND(0.76-0.71*((($J$13*IF('HDPE Depth of Bury'!$D$12=3000,'HDPE-Data'!$K78,'HDPE-Data'!$J78)*$J$16/($J$10*$J$7))-1.17)/(($J$13*IF('HDPE Depth of Bury'!D$12=3000,'HDPE-Data'!$K78,'HDPE-Data'!$J78)*$J$16/($J$10*$J$7))+2.92)),3) -> 0.941 | M78: =ROUND(0.76-0.71*((($J$13*IF('HDPE Depth of Bury'!$D$12=3000,'HDPE-Data'!$K78,'HDPE-Data'!$J78)*$J$16/($J$11*$J$7))-1.17)/(($J$13*IF('HDPE Depth of Bury'!D$12=3000,'HDPE-Data'!$K78,'HDPE-Data'!$J78)*$J$16/($J$11*$J$7))+2.92)),3) -> 0.678 | O78: 743.2 | P78: 936.7 | Q78: Fail | T78: 50.25833333 | U78: OK | W78: 972 | X78: Fail | Z78: 4.4 | AA78: OK | AC78: Fail
A79: 52 | B79: 767 | C79: 2835.388889 | E79: 767 | F79: 1.14 | G79: Fail | I79: 43.47 | J79: 840.12 | K79: 7655.54 | L79: =ROUND(0.76-0.71*((($J$13*IF('HDPE Depth of Bury'!$D$12=3000,'HDPE-Data'!$K79,'HDPE-Data'!$J79)*$J$16/($J$10*$J$7))-1.17)/(($J$13*IF('HDPE Depth of Bury'!D$12=3000,'HDPE-Data'!$K79,'HDPE-Data'!$J79)*$J$16/($J$10*$J$7))+2.92)),3) -> 0.94 | M79: =ROUND(0.76-0.71*((($J$13*IF('HDPE Depth of Bury'!$D$12=3000,'HDPE-Data'!$K79,'HDPE-Data'!$J79)*$J$16/($J$11*$J$7))-1.17)/(($J$13*IF('HDPE Depth of Bury'!D$12=3000,'HDPE-Data'!$K79,'HDPE-Data'!$J79)*$J$16/($J$11*$J$7))+2.92)),3) -> 0.676 | O79: 756.4 | P79: 954.4 | Q79: Fail | T79: 51.25 | U79: OK | W79: 991 | X79: Fail | Z79: 4.5 | AA79: OK | AC79: Fail
A80: 53 | B80: 781.75 | C80: 2942.888889 | E80: 781.75 | F80: 1.162 | G80: Fail | I80: 44.3 | J80: 847.1 | K80: 7727.27 | L80: =ROUND(0.76-0.71*((($J$13*IF('HDPE Depth of Bury'!$D$12=3000,'HDPE-Data'!$K80,'HDPE-Data'!$J80)*$J$16/($J$10*$J$7))-1.17)/(($J$13*IF('HDPE Depth of Bury'!D$12=3000,'HDPE-Data'!$K80,'HDPE-Data'!$J80)*$J$16/($J$10*$J$7))+2.92)),3) -> 0.939 | M80: =ROUND(0.76-0.71*((($J$13*IF('HDPE Depth of Bury'!$D$12=3000,'HDPE-Data'!$K80,'HDPE-Data'!$J80)*$J$16/($J$11*$J$7))-1.17)/(($J$13*IF('HDPE Depth of Bury'!D$12=3000,'HDPE-Data'!$K80,'HDPE-Data'!$J80)*$J$16/($J$11*$J$7))+2.92)),3) -> 0.674 | O80: 769.5 | P80: 972.1 | Q80: Fail | T80: 52.24166667 | U80: OK | W80: 1010 | X80: Fail | Z80: 4.6 | AA80: OK | AC80: Fail
A81: 54 | B81: 796.5 | C81: 3052.388889 | E81: 796.5 | F81: 1.184 | G81: Fail | I81: 45.14 | J81: 854.15 | K81: 7799.86 | L81: =ROUND(0.76-0.71*((($J$13*IF('HDPE Depth of Bury'!$D$12=3000,'HDPE-Data'!$K81,'HDPE-Data'!$J81)*$J$16/($J$10*$J$7))-1.17)/(($J$13*IF('HDPE Depth of Bury'!D$12=3000,'HDPE-Data'!$K81,'HDPE-Data'!$J81)*$J$16/($J$10*$J$7))+2.92)),3) -> 0.938 | M81: =ROUND(0.76-0.71*((($J$13*IF('HDPE Depth of Bury'!$D$12=3000,'HDPE-Data'!$K81,'HDPE-Data'!$J81)*$J$16/($J$11*$J$7))-1.17)/(($J$13*IF('HDPE Depth of Bury'!D$12=3000,'HDPE-Data'!$K81,'HDPE-Data'!$J81)*$J$16/($J$11*$J$7))+2.92)),3) -> 0.672 | O81: 782.7 | P81: 990 | Q81: Fail | T81: 53.23333333 | U81: OK | W81: 1029 | X81: Fail | Z81: 4.7 | AA81: OK | AC81: Fail
A82: 55 | B82: 811.25 | C82: 3163.888889 | E82: 811.25 | F82: 1.206 | G82: Fail | I82: 45.97 | J82: 861.13 | K82: 7871.58 | L82: =ROUND(0.76-0.71*((($J$13*IF('HDPE Depth of Bury'!$D$12=3000,'HDPE-Data'!$K82,'HDPE-Data'!$J82)*$J$16/($J$10*$J$7))-1.17)/(($J$13*IF('HDPE Depth of Bury'!D$12=3000,'HDPE-Data'!$K82,'HDPE-Data'!$J82)*$J$16/($J$10*$J$7))+2.92)),3) -> 0.937 | M82: =ROUND(0.76-0.71*((($J$13*IF('HDPE Depth of Bury'!$D$12=3000,'HDPE-Data'!$K82,'HDPE-Data'!$J82)*$J$16/($J$11*$J$7))-1.17)/(($J$13*IF('HDPE Depth of Bury'!D$12=3000,'HDPE-Data'!$K82,'HDPE-Data'!$J82)*$J$16/($J$11*$J$7))+2.92)),3) -> 0.67 | O82: 795.8 | P82: 1007.6 | Q82: Fail | T82: 54.225 | U82: OK | W82: 1048 | X82: Fail | Z82: 4.8 | AA82: OK | AC82: Fail
A83: 56 | B83: 826 | C83: 3277.388889 | E83: 826 | F83: 1.228 | G83: Fail | I83: 46.8 | J83: 868.1 | K83: 7943.3 | L83: =ROUND(0.76-0.71*((($J$13*IF('HDPE Depth of Bury'!$D$12=3000,'HDPE-Data'!$K83,'HDPE-Data'!$J83)*$J$16/($J$10*$J$7))-1.17)/(($J$13*IF('HDPE Depth of Bury'!D$12=3000,'HDPE-Data'!$K83,'HDPE-Data'!$J83)*$J$16/($J$10*$J$7))+2.92)),3) -> 0.937 | M83: =ROUND(0.76-0.71*((($J$13*IF('HDPE Depth of Bury'!$D$12=3000,'HDPE-Data'!$K83,'HDPE-Data'!$J83)*$J$16/($J$11*$J$7))-1.17)/(($J$13*IF('HDPE Depth of Bury'!D$12=3000,'HDPE-Data'!$K83,'HDPE-Data'!$J83)*$J$16/($J$11*$J$7))+2.92)),3) -> 0.668 | O83: 808.7 | P83: 1026 | Q83: Fail | T83: 55.21666667 | U83: OK | W83: 1068 | X83: Fail | Z83: 4.9 | AA83: OK | AC83: Fail
A84: 57 | B84: 840.75 | C84: 3392.888889 | E84: 840.75 | F84: 1.25 | G84: Fail | I84: 47.64 | J84: 875.16 | K84: 8015.89 | L84: =ROUND(0.76-0.71*((($J$13*IF('HDPE Depth of Bury'!$D$12=3000,'HDPE-Data'!$K84,'HDPE-Data'!$J84)*$J$16/($J$10*$J$7))-1.17)/(($J$13*IF('HDPE Depth of Bury'!D$12=3000,'HDPE-Data'!$K84,'HDPE-Data'!$J84)*$J$16/($J$10*$J$7))+2.92)),3) -> 0.936 | M84: =ROUND(0.76-0.71*((($J$13*IF('HDPE Depth of Bury'!$D$12=3000,'HDPE-Data'!$K84,'HDPE-Data'!$J84)*$J$16/($J$11*$J$7))-1.17)/(($J$13*IF('HDPE Depth of Bury'!D$12=3000,'HDPE-Data'!$K84,'HDPE-Data'!$J84)*$J$16/($J$11*$J$7))+2.92)),3) -> 0.667 | O84: 822.6 | P84: 1043.7 | Q84: Fail | T84: 56.20833333 | U84: OK | W84: 1087 | X84: Fail | Z84: 4.9 | AA84: OK | AC84: Fail
A85: 58 | B85: 855.5 | C85: 3510.388889 | E85: 855.5 | F85: 1.272 | G85: Fail | I85: 48.47 | J85: 882.13 | K85: 8087.61 | L85: =ROUND(0.76-0.71*((($J$13*IF('HDPE Depth of Bury'!$D$12=3000,'HDPE-Data'!$K85,'HDPE-Data'!$J85)*$J$16/($J$10*$J$7))-1.17)/(($J$13*IF('HDPE Depth of Bury'!D$12=3000,'HDPE-Data'!$K85,'HDPE-Data'!$J85)*$J$16/($J$10*$J$7))+2.92)),3) -> 0.935 | M85: =ROUND(0.76-0.71*((($J$13*IF('HDPE Depth of Bury'!$D$12=3000,'HDPE-Data'!$K85,'HDPE-Data'!$J85)*$J$16/($J$11*$J$7))-1.17)/(($J$13*IF('HDPE Depth of Bury'!D$12=3000,'HDPE-Data'!$K85,'HDPE-Data'!$J85)*$J$16/($J$11*$J$7))+2.92)),3) -> 0.665 | O85: 835.4 | P85: 1061.3 | Q85: Fail | T85: 57.2 | U85: OK | W85: 1106 | X85: Fail | Z85: 5 | AA85: Fail | AC85: Fail
A86: 59 | B86: 870.25 | C86: 3629.888889 | E86: 870.25 | F86: 1.294 | G86: Fail | I86: 49.3 | J86: 889.1 | K86: 8159.34 | L86: =ROUND(0.76-0.71*((($J$13*IF('HDPE Depth of Bury'!$D$12=3000,'HDPE-Data'!$K86,'HDPE-Data'!$J86)*$J$16/($J$10*$J$7))-1.17)/(($J$13*IF('HDPE Depth of Bury'!D$12=3000,'HDPE-Data'!$K86,'HDPE-Data'!$J86)*$J$16/($J$10*$J$7))+2.92)),3) -> 0.934 | M86: =ROUND(0.76-0.71*((($J$13*IF('HDPE Depth of Bury'!$D$12=3000,'HDPE-Data'!$K86,'HDPE-Data'!$J86)*$J$16/($J$11*$J$7))-1.17)/(($J$13*IF('HDPE Depth of Bury'!D$12=3000,'HDPE-Data'!$K86,'HDPE-Data'!$J86)*$J$16/($J$11*$J$7))+2.92)),3) -> 0.663 | O86: 848.3 | P86: 1078.8 | Q86: Fail | T86: 58.19166667 | U86: OK | W86: 1125 | X86: Fail | Z86: 5.1 | AA86: Fail | AC86: Fail
A87: 60 | B87: 885 | C87: 3751.388889 | E87: 885 | F87: 1.316 | G87: Fail | I87: 50.14 | J87: 896.16 | K87: 8231.93 | L87: =ROUND(0.76-0.71*((($J$13*IF('HDPE Depth of Bury'!$D$12=3000,'HDPE-Data'!$K87,'HDPE-Data'!$J87)*$J$16/($J$10*$J$7))-1.17)/(($J$13*IF('HDPE Depth of Bury'!D$12=3000,'HDPE-Data'!$K87,'HDPE-Data'!$J87)*$J$16/($J$10*$J$7))+2.92)),3) -> 0.934 | M87: =ROUND(0.76-0.71*((($J$13*IF('HDPE Depth of Bury'!$D$12=3000,'HDPE-Data'!$K87,'HDPE-Data'!$J87)*$J$16/($J$11*$J$7))-1.17)/(($J$13*IF('HDPE Depth of Bury'!D$12=3000,'HDPE-Data'!$K87,'HDPE-Data'!$J87)*$J$16/($J$11*$J$7))+2.92)),3) -> 0.661 | O87: 861.1 | P87: 1097.3 | Q87: Fail | T87: 59.18333333 | U87: OK | W87: 1144 | X87: Fail | Z87: 5.2 | AA87: Fail | AC87: Fail
A88: 61 | B88: 899.75 | C88: 3874.888889 | E88: 899.75 | F88: 1.338 | G88: Fail | I88: 50.97 | J88: 903.13 | K88: 8303.65 | L88: =ROUND(0.76-0.71*((($J$13*IF('HDPE Depth of Bury'!$D$12=3000,'HDPE-Data'!$K88,'HDPE-Data'!$J88)*$J$16/($J$10*$J$7))-1.17)/(($J$13*IF('HDPE Depth of Bury'!D$12=3000,'HDPE-Data'!$K88,'HDPE-Data'!$J88)*$J$16/($J$10*$J$7))+2.92)),3) -> 0.933 | M88: =ROUND(0.76-0.71*((($J$13*IF('HDPE Depth of Bury'!$D$12=3000,'HDPE-Data'!$K88,'HDPE-Data'!$J88)*$J$16/($J$11*$J$7))-1.17)/(($J$13*IF('HDPE Depth of Bury'!D$12=3000,'HDPE-Data'!$K88,'HDPE-Data'!$J88)*$J$16/($J$11*$J$7))+2.92)),3) -> 0.659 | O88: 873.8 | P88: 1114.8 | Q88: Fail | T88: 60.175 | U88: OK | W88: 1163 | X88: Fail | Z88: 5.3 | AA88: Fail | AC88: Fail
A89: 62 | B89: 914.5 | C89: 4000.388889 | E89: 914.5 | F89: 1.36 | G89: Fail | I89: 51.8 | J89: 910.11 | K89: 8375.37 | L89: =ROUND(0.76-0.71*((($J$13*IF('HDPE Depth of Bury'!$D$12=3000,'HDPE-Data'!$K89,'HDPE-Data'!$J89)*$J$16/($J$10*$J$7))-1.17)/(($J$13*IF('HDPE Depth of Bury'!D$12=3000,'HDPE-Data'!$K89,'HDPE-Data'!$J89)*$J$16/($J$10*$J$7))+2.92)),3) -> 0.932 | M89: =ROUND(0.76-0.71*((($J$13*IF('HDPE Depth of Bury'!$D$12=3000,'HDPE-Data'!$K89,'HDPE-Data'!$J89)*$J$16/($J$11*$J$7))-1.17)/(($J$13*IF('HDPE Depth of Bury'!D$12=3000,'HDPE-Data'!$K89,'HDPE-Data'!$J89)*$J$16/($J$11*$J$7))+2.92)),3) -> 0.657 | O89: 886.4 | P89: 1132.3 | Q89: Fail | T89: 61.16666667 | U89: OK | W89: 1182 | X89: Fail | Z89: 5.4 | AA89: Fail | AC89: Fail
A90: 63 | B90: 929.25 | C90: 4127.888889 | E90: 929.25 | F90: 1.382 | G90: Fail | I90: 52.64 | J90: 917.16 | K90: 8447.96 | L90: =ROUND(0.76-0.71*((($J$13*IF('HDPE Depth of Bury'!$D$12=3000,'HDPE-Data'!$K90,'HDPE-Data'!$J90)*$J$16/($J$10*$J$7))-1.17)/(($J$13*IF('HDPE Depth of Bury'!D$12=3000,'HDPE-Data'!$K90,'HDPE-Data'!$J90)*$J$16/($J$10*$J$7))+2.92)),3) -> 0.931 | M90: =ROUND(0.76-0.71*((($J$13*IF('HDPE Depth of Bury'!$D$12=3000,'HDPE-Data'!$K90,'HDPE-Data'!$J90)*$J$16/($J$11*$J$7))-1.17)/(($J$13*IF('HDPE Depth of Bury'!D$12=3000,'HDPE-Data'!$K90,'HDPE-Data'!$J90)*$J$16/($J$11*$J$7))+2.92)),3) -> 0.655 | O90: 899.1 | P90: 1149.9 | Q90: Fail | T90: 62.15833333 | U90: OK | W90: 1201 | X90: Fail | Z90: 5.5 | AA90: Fail | AC90: Fail
A91: 64 | B91: 944 | C91: 4257.388889 | E91: 944 | F91: 1.404 | G91: Fail | I91: 53.47 | J91: 924.14 | K91: 8519.68 | L91: =ROUND(0.76-0.71*((($J$13*IF('HDPE Depth of Bury'!$D$12=3000,'HDPE-Data'!$K91,'HDPE-Data'!$J91)*$J$16/($J$10*$J$7))-1.17)/(($J$13*IF('HDPE Depth of Bury'!D$12=3000,'HDPE-Data'!$K91,'HDPE-Data'!$J91)*$J$16/($J$10*$J$7))+2.92)),3) -> 0.93 | M91: =ROUND(0.76-0.71*((($J$13*IF('HDPE Depth of Bury'!$D$12=3000,'HDPE-Data'!$K91,'HDPE-Data'!$J91)*$J$16/($J$11*$J$7))-1.17)/(($J$13*IF('HDPE Depth of Bury'!D$12=3000,'HDPE-Data'!$K91,'HDPE-Data'!$J91)*$J$16/($J$11*$J$7))+2.92)),3) -> 0.654 | O91: 912.6 | P91: 1167.3 | Q91: Fail | T91: 63.15 | U91: OK | W91: 1221 | X91: Fail | Z91: 5.5 | AA91: Fail | AC91: Fail
A92: 65 | B92: =(A92*$B$7/144)*(B$5) -> 958.75 | C92: =($F$5+$F$7*$A92)*($F$6+$F$7*$A92) -> 4388.888889 | E92: =(B92+D92) -> 958.75 | F92: =ROUND($E92*$B$9/(0.149*$B$6+0.061*$B$8),3) -> 1.425 | G92: =IF(F92<$B$11,"OK","Fail") -> Fail | I92: =ROUND($J$4*(A92+0.11*$J$6/12)/144,2) -> 54.3 | J92: 931.11 | K92: 8591.41 | L92: =ROUND(0.76-0.71*((($J$13*IF('HDPE Depth of Bury'!$D$12=3000,'HDPE-Data'!$K92,'HDPE-Data'!$J92)*$J$16/($J$10*$J$7))-1.17)/(($J$13*IF('HDPE Depth of Bury'!D$12=3000,'HDPE-Data'!$K92,'HDPE-Data'!$J92)*$J$16/($J$10*$J$7))+2.92)),3) -> 0.93 | M92: =ROUND(0.76-0.71*((($J$13*IF('HDPE Depth of Bury'!$D$12=3000,'HDPE-Data'!$K92,'HDPE-Data'!$J92)*$J$16/($J$11*$J$7))-1.17)/(($J$13*IF('HDPE Depth of Bury'!D$12=3000,'HDPE-Data'!$K92,'HDPE-Data'!$J92)*$J$16/($J$11*$J$7))+2.92)),3) -> 0.652 | O92: =ROUND(1.3*(1.5*I92*M92+IF(A92-$J$17>0,A92-$J$17,0)*62.4/144)*($J$6/2),1) -> 925.1 | P92: =ROUND(1.3*(1.5*I92*L92+1.67*D92/$J$6*MIN(1,N92/$J$6)+IF(A92-$J$17>0,A92-$J$17,0)*62.4/144)*($J$6/2),1) -> 1185.6 | Q92: =IF(AND(P92<$J$14,O92<$J$15),"OK","Fail") -> Fail | T92: =(1-0.33*(IF(A92-$U$7<0,0,A92-$U$7))/A92)*A92*$U$11/144+62.4*IF(A92-$U$7<0,0,A92-$U$7)/144+(D92/$U$5) -> 64.14166667 | U92: =IF(T92<$U$10,"OK","Fail") -> OK | W92: =ROUND(2*$X$8*$X$9*$F92*$X$10*$X$11/($X$6^2),0) -> 1239 | X92: =IF(W92<$X$14,"OK","Fail") -> Fail | Z92: =ROUND(2*$AA$8*F92*$AA$10*$AA$11/($AA$6^2)*100,1) -> 5.6 | AA92: =IF(Z92<$AA$14,"OK","Fail") -> Fail | AC92: =IF(AND(AA92="OK",X92="OK",U92="OK",Q92="OK",G92="OK"),A92,"Fail") -> Fail
A93: 66 | B93: 973.5 | C93: 4522.388889 | E93: 973.5 | F93: 1.447 | G93: Fail | I93: 55.14 | J93: 938.17 | K93: 8663.99 | L93: =ROUND(0.76-0.71*((($J$13*IF('HDPE Depth of Bury'!$D$12=3000,'HDPE-Data'!$K93,'HDPE-Data'!$J93)*$J$16/($J$10*$J$7))-1.17)/(($J$13*IF('HDPE Depth of Bury'!D$12=3000,'HDPE-Data'!$K93,'HDPE-Data'!$J93)*$J$16/($J$10*$J$7))+2.92)),3) -> 0.929 | M93: =ROUND(0.76-0.71*((($J$13*IF('HDPE Depth of Bury'!$D$12=3000,'HDPE-Data'!$K93,'HDPE-Data'!$J93)*$J$16/($J$11*$J$7))-1.17)/(($J$13*IF('HDPE Depth of Bury'!D$12=3000,'HDPE-Data'!$K93,'HDPE-Data'!$J93)*$J$16/($J$11*$J$7))+2.92)),3) -> 0.65 | O93: 937.6 | P93: 1203.1 | Q93: Fail | T93: 65.13333333 | U93: OK | W93: 1258 | X93: Fail | Z93: 5.7 | AA93: Fail | AC93: Fail
A94: 67 | B94: 988.25 | C94: 4657.888889 | E94: 988.25 | F94: 1.469 | G94: Fail | I94: 55.97 | J94: 945.14 | K94: 8735.72 | L94: =ROUND(0.76-0.71*((($J$13*IF('HDPE Depth of Bury'!$D$12=3000,'HDPE-Data'!$K94,'HDPE-Data'!$J94)*$J$16/($J$10*$J$7))-1.17)/(($J$13*IF('HDPE Depth of Bury'!D$12=3000,'HDPE-Data'!$K94,'HDPE-Data'!$J94)*$J$16/($J$10*$J$7))+2.92)),3) -> 0.928 | M94: =ROUND(0.76-0.71*((($J$13*IF('HDPE Depth of Bury'!$D$12=3000,'HDPE-Data'!$K94,'HDPE-Data'!$J94)*$J$16/($J$11*$J$7))-1.17)/(($J$13*IF('HDPE Depth of Bury'!D$12=3000,'HDPE-Data'!$K94,'HDPE-Data'!$J94)*$J$16/($J$11*$J$7))+2.92)),3) -> 0.648 | O94: 950 | P94: 1220.4 | Q94: Fail | T94: 66.125 | U94: OK | W94: 1277 | X94: Fail | Z94: 5.8 | AA94: Fail | AC94: Fail
A95: 68 | B95: 1003 | C95: 4795.388889 | E95: 1003 | F95: 1.491 | G95: Fail | I95: 56.8 | J95: 952.11 | K95: 8807.44 | L95: =ROUND(0.76-0.71*((($J$13*IF('HDPE Depth of Bury'!$D$12=3000,'HDPE-Data'!$K95,'HDPE-Data'!$J95)*$J$16/($J$10*$J$7))-1.17)/(($J$13*IF('HDPE Depth of Bury'!D$12=3000,'HDPE-Data'!$K95,'HDPE-Data'!$J95)*$J$16/($J$10*$J$7))+2.92)),3) -> 0.927 | M95: =ROUND(0.76-0.71*((($J$13*IF('HDPE Depth of Bury'!$D$12=3000,'HDPE-Data'!$K95,'HDPE-Data'!$J95)*$J$16/($J$11*$J$7))-1.17)/(($J$13*IF('HDPE Depth of Bury'!D$12=3000,'HDPE-Data'!$K95,'HDPE-Data'!$J95)*$J$16/($J$11*$J$7))+2.92)),3) -> 0.647 | O95: 963.2 | P95: 1237.7 | Q95: Fail | T95: 67.11666667 | U95: OK | W95: 1296 | X95: Fail | Z95: 5.9 | AA95: Fail | AC95: Fail
A96: 69 | B96: 1017.75 | C96: 4934.888889 | E96: 1017.75 | F96: 1.513 | G96: Fail | I96: 57.64 | J96: 959.17 | K96: 8880.03 | L96: =ROUND(0.76-0.71*((($J$13*IF('HDPE Depth of Bury'!$D$12=3000,'HDPE-Data'!$K96,'HDPE-Data'!$J96)*$J$16/($J$10*$J$7))-1.17)/(($J$13*IF('HDPE Depth of Bury'!D$12=3000,'HDPE-Data'!$K96,'HDPE-Data'!$J96)*$J$16/($J$10*$J$7))+2.92)),3) -> 0.927 | M96: =ROUND(0.76-0.71*((($J$13*IF('HDPE Depth of Bury'!$D$12=3000,'HDPE-Data'!$K96,'HDPE-Data'!$J96)*$J$16/($J$11*$J$7))-1.17)/(($J$13*IF('HDPE Depth of Bury'!D$12=3000,'HDPE-Data'!$K96,'HDPE-Data'!$J96)*$J$16/($J$11*$J$7))+2.92)),3) -> 0.645 | O96: 975.6 | P96: 1256.1 | Q96: Fail | T96: 68.10833333 | U96: OK | W96: 1315 | X96: Fail | Z96: 6 | AA96: Fail | AC96: Fail
A97: 70 | B97: 1032.5 | C97: 5076.388889 | E97: 1032.5 | F97: 1.535 | G97: Fail | I97: 58.47 | J97: 966.14 | K97: 8951.75 | L97: =ROUND(0.76-0.71*((($J$13*IF('HDPE Depth of Bury'!$D$12=3000,'HDPE-Data'!$K97,'HDPE-Data'!$J97)*$J$16/($J$10*$J$7))-1.17)/(($J$13*IF('HDPE Depth of Bury'!D$12=3000,'HDPE-Data'!$K97,'HDPE-Data'!$J97)*$J$16/($J$10*$J$7))+2.92)),3) -> 0.926 | M97: =ROUND(0.76-0.71*((($J$13*IF('HDPE Depth of Bury'!$D$12=3000,'HDPE-Data'!$K97,'HDPE-Data'!$J97)*$J$16/($J$11*$J$7))-1.17)/(($J$13*IF('HDPE Depth of Bury'!D$12=3000,'HDPE-Data'!$K97,'HDPE-Data'!$J97)*$J$16/($J$11*$J$7))+2.92)),3) -> 0.643 | O97: 987.8 | P97: 1273.4 | Q97: Fail | T97: 69.1 | U97: OK | W97: 1334 | X97: Fail | Z97: 6.1 | AA97: Fail | AC97: Fail
A98: 71 | B98: 1047.25 | C98: 5219.888889 | E98: 1047.25 | F98: 1.557 | G98: Fail | I98: 59.3 | J98: 973.12 | K98: 9023.48 | L98: =ROUND(0.76-0.71*((($J$13*IF('HDPE Depth of Bury'!$D$12=3000,'HDPE-Data'!$K98,'HDPE-Data'!$J98)*$J$16/($J$10*$J$7))-1.17)/(($J$13*IF('HDPE Depth of Bury'!D$12=3000,'HDPE-Data'!$K98,'HDPE-Data'!$J98)*$J$16/($J$10*$J$7))+2.92)),3) -> 0.925 | M98: =ROUND(0.76-0.71*((($J$13*IF('HDPE Depth of Bury'!$D$12=3000,'HDPE-Data'!$K98,'HDPE-Data'!$J98)*$J$16/($J$11*$J$7))-1.17)/(($J$13*IF('HDPE Depth of Bury'!D$12=3000,'HDPE-Data'!$K98,'HDPE-Data'!$J98)*$J$16/($J$11*$J$7))+2.92)),3) -> 0.641 | O98: 1000 | P98: 1290.6 | Q98: Fail | T98: 70.09166667 | U98: OK | W98: 1354 | X98: Fail | Z98: 6.2 | AA98: Fail | AC98: Fail
A99: 72 | B99: 1062 | C99: 5365.388889 | E99: 1062 | F99: 1.579 | G99: Fail | I99: 60.14 | J99: 980.17 | K99: 9096.06 | L99: =ROUND(0.76-0.71*((($J$13*IF('HDPE Depth of Bury'!$D$12=3000,'HDPE-Data'!$K99,'HDPE-Data'!$J99)*$J$16/($J$10*$J$7))-1.17)/(($J$13*IF('HDPE Depth of Bury'!D$12=3000,'HDPE-Data'!$K99,'HDPE-Data'!$J99)*$J$16/($J$10*$J$7))+2.92)),3) -> 0.924 | M99: =ROUND(0.76-0.71*((($J$13*IF('HDPE Depth of Bury'!$D$12=3000,'HDPE-Data'!$K99,'HDPE-Data'!$J99)*$J$16/($J$11*$J$7))-1.17)/(($J$13*IF('HDPE Depth of Bury'!D$12=3000,'HDPE-Data'!$K99,'HDPE-Data'!$J99)*$J$16/($J$11*$J$7))+2.92)),3) -> 0.64 | O99: 1013.2 | P99: 1308 | Q99: Fail | T99: 71.08333333 | U99: OK | W99: 1373 | X99: Fail | Z99: 6.2 | AA99: Fail | AC99: Fail
A100: 73 | B100: 1076.75 | C100: 5512.888889 | E100: 1076.75 | F100: 1.601 | G100: Fail | I100: 60.97 | J100: 987.15 | K100: 9167.79 | L100: =ROUND(0.76-0.71*((($J$13*IF('HDPE Depth of Bury'!$D$12=3000,'HDPE-Data'!$K100,'HDPE-Data'!$J100)*$J$16/($J$10*$J$7))-1.17)/(($J$13*IF('HDPE Depth of Bury'!D$12=3000,'HDPE-Data'!$K100,'HDPE-Data'!$J100)*$J$16/($J$10*$J$7))+2.92)),3) -> 0.924 | M100: =ROUND(0.76-0.71*((($J$13*IF('HDPE Depth of Bury'!$D$12=3000,'HDPE-Data'!$K100,'HDPE-Data'!$J100)*$J$16/($J$11*$J$7))-1.17)/(($J$13*IF('HDPE Depth of Bury'!D$12=3000,'HDPE-Data'!$K100,'HDPE-Data'!$J100)*$J$16/($J$11*$J$7))+2.92)),3) -> 0.638 | O100: 1025.3 | P100: 1326.2 | Q100: Fail | T100: 72.075 | U100: OK | W100: 1392 | X100: Fail | Z100: 6.3 | AA100: Fail | AC100: Fail
A101: 74 | B101: 1091.5 | C101: 5662.388889 | E101: 1091.5 | F101: 1.623 | G101: Fail | I101: 61.8 | J101: 994.12 | K101: 9239.51 | L101: =ROUND(0.76-0.71*((($J$13*IF('HDPE Depth of Bury'!$D$12=3000,'HDPE-Data'!$K101,'HDPE-Data'!$J101)*$J$16/($J$10*$J$7))-1.17)/(($J$13*IF('HDPE Depth of Bury'!D$12=3000,'HDPE-Data'!$K101,'HDPE-Data'!$J101)*$J$16/($J$10*$J$7))+2.92)),3) -> 0.923 | M101: =ROUND(0.76-0.71*((($J$13*IF('HDPE Depth of Bury'!$D$12=3000,'HDPE-Data'!$K101,'HDPE-Data'!$J101)*$J$16/($J$11*$J$7))-1.17)/(($J$13*IF('HDPE Depth of Bury'!D$12=3000,'HDPE-Data'!$K101,'HDPE-Data'!$J101)*$J$16/($J$11*$J$7))+2.92)),3) -> 0.636 | O101: 1037.3 | P101: 1343.3 | Q101: Fail | T101: 73.06666667 | U101: OK | W101: 1411 | X101: Fail | Z101: 6.4 | AA101: Fail | AC101: Fail
A102: 75 | B102: 1106.25 | C102: 5813.888889 | E102: 1106.25 | F102: 1.645 | G102: Fail | I102: 62.64 | J102: 1001.18 | K102: 9312.1 | L102: =ROUND(0.76-0.71*((($J$13*IF('HDPE Depth of Bury'!$D$12=3000,'HDPE-Data'!$K102,'HDPE-Data'!$J102)*$J$16/($J$10*$J$7))-1.17)/(($J$13*IF('HDPE Depth of Bury'!D$12=3000,'HDPE-Data'!$K102,'HDPE-Data'!$J102)*$J$16/($J$10*$J$7))+2.92)),3) -> 0.922 | M102: =ROUND(0.76-0.71*((($J$13*IF('HDPE Depth of Bury'!$D$12=3000,'HDPE-Data'!$K102,'HDPE-Data'!$J102)*$J$16/($J$11*$J$7))-1.17)/(($J$13*IF('HDPE Depth of Bury'!D$12=3000,'HDPE-Data'!$K102,'HDPE-Data'!$J102)*$J$16/($J$11*$J$7))+2.92)),3) -> 0.635 | O102: 1050.4 | P102: 1360.6 | Q102: Fail | T102: 74.05833333 | U102: OK | W102: 1430 | X102: Fail | Z102: 6.5 | AA102: Fail | AC102: Fail
A103: 76 | B103: 1121 | C103: 5967.388889 | E103: 1121 | F103: 1.667 | G103: Fail | I103: 63.47 | J103: 1008.15 | K103: 9383.82 | L103: =ROUND(0.76-0.71*((($J$13*IF('HDPE Depth of Bury'!$D$12=3000,'HDPE-Data'!$K103,'HDPE-Data'!$J103)*$J$16/($J$10*$J$7))-1.17)/(($J$13*IF('HDPE Depth of Bury'!D$12=3000,'HDPE-Data'!$K103,'HDPE-Data'!$J103)*$J$16/($J$10*$J$7))+2.92)),3) -> 0.921 | M103: =ROUND(0.76-0.71*((($J$13*IF('HDPE Depth of Bury'!$D$12=3000,'HDPE-Data'!$K103,'HDPE-Data'!$J103)*$J$16/($J$11*$J$7))-1.17)/(($J$13*IF('HDPE Depth of Bury'!D$12=3000,'HDPE-Data'!$K103,'HDPE-Data'!$J103)*$J$16/($J$11*$J$7))+2.92)),3) -> 0.633 | O103: 1062.3 | P103: 1377.7 | Q103: Fail | T103: 75.05 | U103: OK | W103: 1449 | X103: Fail | Z103: 6.6 | AA103: Fail | AC103: Fail
A104: 77 | B104: 1135.75 | C104: 6122.888889 | E104: 1135.75 | F104: 1.689 | G104: Fail | I104: 64.3 | J104: 1015.12 | K104: 9455.54 | L104: =ROUND(0.76-0.71*((($J$13*IF('HDPE Depth of Bury'!$D$12=3000,'HDPE-Data'!$K104,'HDPE-Data'!$J104)*$J$16/($J$10*$J$7))-1.17)/(($J$13*IF('HDPE Depth of Bury'!D$12=3000,'HDPE-Data'!$K104,'HDPE-Data'!$J104)*$J$16/($J$10*$J$7))+2.92)),3) -> 0.921 | M104: =ROUND(0.76-0.71*((($J$13*IF('HDPE Depth of Bury'!$D$12=3000,'HDPE-Data'!$K104,'HDPE-Data'!$J104)*$J$16/($J$11*$J$7))-1.17)/(($J$13*IF('HDPE Depth of Bury'!D$12=3000,'HDPE-Data'!$K104,'HDPE-Data'!$J104)*$J$16/($J$11*$J$7))+2.92)),3) -> 0.631 | O104: 1074.1 | P104: 1395.9 | Q104: Fail | T104: 76.04166667 | U104: OK | W104: 1468 | X104: Fail | Z104: 6.7 | AA104: Fail | AC104: Fail
A105: 78 | B105: 1150.5 | C105: 6280.388889 | E105: 1150.5 | F105: 1.711 | G105: Fail | I105: 65.14 | J105: 1022.18 | K105: 9528.13 | L105: =ROUND(0.76-0.71*((($J$13*IF('HDPE Depth of Bury'!$D$12=3000,'HDPE-Data'!$K105,'HDPE-Data'!$J105)*$J$16/($J$10*$J$7))-1.17)/(($J$13*IF('HDPE Depth of Bury'!D$12=3000,'HDPE-Data'!$K105,'HDPE-Data'!$J105)*$J$16/($J$10*$J$7))+2.92)),3) -> 0.92 | M105: =ROUND(0.76-0.71*((($J$13*IF('HDPE Depth of Bury'!$D$12=3000,'HDPE-Data'!$K105,'HDPE-Data'!$J105)*$J$16/($J$11*$J$7))-1.17)/(($J$13*IF('HDPE Depth of Bury'!D$12=3000,'HDPE-Data'!$K105,'HDPE-Data'!$J105)*$J$16/($J$11*$J$7))+2.92)),3) -> 0.63 | O105: 1087.1 | P105: 1413.1 | Q105: Fail | T105: 77.03333333 | U105: OK | W105: 1487 | X105: Fail | Z105: 6.8 | AA105: Fail | AC105: Fail
A106: 79 | B106: 1165.25 | C106: 6439.888889 | E106: 1165.25 | F106: 1.733 | G106: Fail | I106: 65.97 | J106: 1029.15 | K106: 9599.86 | L106: =ROUND(0.76-0.71*((($J$13*IF('HDPE Depth of Bury'!$D$12=3000,'HDPE-Data'!$K106,'HDPE-Data'!$J106)*$J$16/($J$10*$J$7))-1.17)/(($J$13*IF('HDPE Depth of Bury'!D$12=3000,'HDPE-Data'!$K106,'HDPE-Data'!$J106)*$J$16/($J$10*$J$7))+2.92)),3) -> 0.919 | M106: =ROUND(0.76-0.71*((($J$13*IF('HDPE Depth of Bury'!$D$12=3000,'HDPE-Data'!$K106,'HDPE-Data'!$J106)*$J$16/($J$11*$J$7))-1.17)/(($J$13*IF('HDPE Depth of Bury'!D$12=3000,'HDPE-Data'!$K106,'HDPE-Data'!$J106)*$J$16/($J$11*$J$7))+2.92)),3) -> 0.628 | O106: 1098.8 | P106: 1430.1 | Q106: Fail | T106: 78.025 | U106: OK | W106: 1507 | X106: Fail | Z106: 6.8 | AA106: Fail | AC106: Fail
A107: 80 | B107: 1180 | C107: 6601.388889 | E107: 1180 | F107: 1.754 | G107: Fail | I107: 66.8 | J107: 1036.13 | K107: 9671.58 | L107: =ROUND(0.76-0.71*((($J$13*IF('HDPE Depth of Bury'!$D$12=3000,'HDPE-Data'!$K107,'HDPE-Data'!$J107)*$J$16/($J$10*$J$7))-1.17)/(($J$13*IF('HDPE Depth of Bury'!D$12=3000,'HDPE-Data'!$K107,'HDPE-Data'!$J107)*$J$16/($J$10*$J$7))+2.92)),3) -> 0.918 | M107: =ROUND(0.76-0.71*((($J$13*IF('HDPE Depth of Bury'!$D$12=3000,'HDPE-Data'!$K107,'HDPE-Data'!$J107)*$J$16/($J$11*$J$7))-1.17)/(($J$13*IF('HDPE Depth of Bury'!D$12=3000,'HDPE-Data'!$K107,'HDPE-Data'!$J107)*$J$16/($J$11*$J$7))+2.92)),3) -> 0.626 | O107: 1110.5 | P107: 1447.1 | Q107: Fail | T107: 79.01666667 | U107: OK | W107: 1525 | X107: Fail | Z107: 6.9 | AA107: Fail | AC107: Fail
A108: 81 | B108: 1194.75 | C108: 6764.888889 | E108: 1194.75 | F108: 1.776 | G108: Fail | I108: 67.64 | J108: 1043.18 | K108: 9744.17 | L108: =ROUND(0.76-0.71*((($J$13*IF('HDPE Depth of Bury'!$D$12=3000,'HDPE-Data'!$K108,'HDPE-Data'!$J108)*$J$16/($J$10*$J$7))-1.17)/(($J$13*IF('HDPE Depth of Bury'!D$12=3000,'HDPE-Data'!$K108,'HDPE-Data'!$J108)*$J$16/($J$10*$J$7))+2.92)),3) -> 0.918 | M108: =ROUND(0.76-0.71*((($J$13*IF('HDPE Depth of Bury'!$D$12=3000,'HDPE-Data'!$K108,'HDPE-Data'!$J108)*$J$16/($J$11*$J$7))-1.17)/(($J$13*IF('HDPE Depth of Bury'!D$12=3000,'HDPE-Data'!$K108,'HDPE-Data'!$J108)*$J$16/($J$11*$J$7))+2.92)),3) -> 0.625 | O108: 1123.4 | P108: 1465.4 | Q108: Fail | T108: 80.00833333 | U108: OK | W108: 1544 | X108: Fail | Z108: 7 | AA108: Fail | AC108: Fail
A109: 82 | B109: 1209.5 | C109: 6930.388889 | E109: 1209.5 | F109: 1.798 | G109: Fail | I109: 68.47 | J109: =ROUND($AO$8+($I109-$AN$8)*(($AO$8-$AO$9)/($AN$8-$AN$9)),2) -> 1050.16 | K109: =ROUND($AP$8+($I109-$AN$8)*(($AP$8-$AP$9)/($AN$8-$AN$9)),2) -> 9815.89 | L109: =ROUND(0.76-0.71*((($J$13*IF('HDPE Depth of Bury'!$D$12=3000,'HDPE-Data'!$K109,'HDPE-Data'!$J109)*$J$16/($J$10*$J$7))-1.17)/(($J$13*IF('HDPE Depth of Bury'!D$12=3000,'HDPE-Data'!$K109,'HDPE-Data'!$J109)*$J$16/($J$10*$J$7))+2.92)),3) -> 0.917 | M109: =ROUND(0.76-0.71*((($J$13*IF('HDPE Depth of Bury'!$D$12=3000,'HDPE-Data'!$K109,'HDPE-Data'!$J109)*$J$16/($J$11*$J$7))-1.17)/(($J$13*IF('HDPE Depth of Bury'!D$12=3000,'HDPE-Data'!$K109,'HDPE-Data'!$J109)*$J$16/($J$11*$J$7))+2.92)),3) -> 0.623 | O109: 1135 | P109: 1482.4 | Q109: Fail | T109: 81 | U109: OK | W109: 1563 | X109: Fail | Z109: 7.1 | AA109: Fail | AC109: Fail
A110: 83 | B110: 1224.25 | C110: 7097.888889 | E110: 1224.25 | F110: 1.82 | G110: Fail | I110: 69.3 | J110: 1057.13 | K110: 9887.61 | L110: =ROUND(0.76-0.71*((($J$13*IF('HDPE Depth of Bury'!$D$12=3000,'HDPE-Data'!$K110,'HDPE-Data'!$J110)*$J$16/($J$10*$J$7))-1.17)/(($J$13*IF('HDPE Depth of Bury'!D$12=3000,'HDPE-Data'!$K110,'HDPE-Data'!$J110)*$J$16/($J$10*$J$7))+2.92)),3) -> 0.916 | M110: =ROUND(0.76-0.71*((($J$13*IF('HDPE Depth of Bury'!$D$12=3000,'HDPE-Data'!$K110,'HDPE-Data'!$J110)*$J$16/($J$11*$J$7))-1.17)/(($J$13*IF('HDPE Depth of Bury'!D$12=3000,'HDPE-Data'!$K110,'HDPE-Data'!$J110)*$J$16/($J$11*$J$7))+2.92)),3) -> 0.621 | O110: 1146.5 | P110: 1499.3 | Q110: Fail | T110: 81.99166667 | U110: OK | W110: 1582 | X110: Fail | Z110: 7.2 | AA110: Fail | AC110: Fail
A111: 84 | B111: 1239 | C111: 7267.388889 | E111: 1239 | F111: 1.842 | G111: Fail | I111: 70.14 | J111: 1064.19 | K111: 9960.2 | L111: =ROUND(0.76-0.71*((($J$13*IF('HDPE Depth of Bury'!$D$12=3000,'HDPE-Data'!$K111,'HDPE-Data'!$J111)*$J$16/($J$10*$J$7))-1.17)/(($J$13*IF('HDPE Depth of Bury'!D$12=3000,'HDPE-Data'!$K111,'HDPE-Data'!$J111)*$J$16/($J$10*$J$7))+2.92)),3) -> 0.915 | M111: =ROUND(0.76-0.71*((($J$13*IF('HDPE Depth of Bury'!$D$12=3000,'HDPE-Data'!$K111,'HDPE-Data'!$J111)*$J$16/($J$11*$J$7))-1.17)/(($J$13*IF('HDPE Depth of Bury'!D$12=3000,'HDPE-Data'!$K111,'HDPE-Data'!$J111)*$J$16/($J$11*$J$7))+2.92)),3) -> 0.62 | O111: 1159.3 | P111: 1516.4 | Q111: Fail | T111: 82.98333333 | U111: OK | W111: 1601 | X111: Fail | Z111: 7.3 | AA111: Fail | AC111: Fail
A112: 85 | B112: 1253.75 | C112: 7438.888889 | E112: 1253.75 | F112: 1.864 | G112: Fail | I112: 70.97 | J112: 1071.16 | K112: 10031.93 | L112: =ROUND(0.76-0.71*((($J$13*IF('HDPE Depth of Bury'!$D$12=3000,'HDPE-Data'!$K112,'HDPE-Data'!$J112)*$J$16/($J$10*$J$7))-1.17)/(($J$13*IF('HDPE Depth of Bury'!D$12=3000,'HDPE-Data'!$K112,'HDPE-Data'!$J112)*$J$16/($J$10*$J$7))+2.92)),3) -> 0.915 | M112: =ROUND(0.76-0.71*((($J$13*IF('HDPE Depth of Bury'!$D$12=3000,'HDPE-Data'!$K112,'HDPE-Data'!$J112)*$J$16/($J$11*$J$7))-1.17)/(($J$13*IF('HDPE Depth of Bury'!D$12=3000,'HDPE-Data'!$K112,'HDPE-Data'!$J112)*$J$16/($J$11*$J$7))+2.92)),3) -> 0.618 | O112: 1170.7 | P112: 1534.5 | Q112: Fail | T112: 83.975 | U112: OK | W112: 1620 | X112: Fail | Z112: 7.4 | AA112: Fail | AC112: Fail
A113: 86 | B113: 1268.5 | C113: 7612.388889 | E113: 1268.5 | F113: 1.886 | G113: Fail | I113: 71.8 | J113: 1078.13 | K113: 10103.65 | L113: =ROUND(0.76-0.71*((($J$13*IF('HDPE Depth of Bury'!$D$12=3000,'HDPE-Data'!$K113,'HDPE-Data'!$J113)*$J$16/($J$10*$J$7))-1.17)/(($J$13*IF('HDPE Depth of Bury'!D$12=3000,'HDPE-Data'!$K113,'HDPE-Data'!$J113)*$J$16/($J$10*$J$7))+2.92)),3) -> 0.914 | M113: =ROUND(0.76-0.71*((($J$13*IF('HDPE Depth of Bury'!$D$12=3000,'HDPE-Data'!$K113,'HDPE-Data'!$J113)*$J$16/($J$11*$J$7))-1.17)/(($J$13*IF('HDPE Depth of Bury'!D$12=3000,'HDPE-Data'!$K113,'HDPE-Data'!$J113)*$J$16/($J$11*$J$7))+2.92)),3) -> 0.617 | O113: 1183.3 | P113: 1551.3 | Q113: Fail | T113: 84.96666667 | U113: OK | W113: 1640 | X113: Fail | Z113: 7.5 | AA113: Fail | AC113: Fail
A114: 87 | B114: 1283.25 | C114: 7787.888889 | E114: 1283.25 | F114: 1.908 | G114: Fail | I114: 72.64 | J114: 1085.19 | K114: 10176.24 | L114: =ROUND(0.76-0.71*((($J$13*IF('HDPE Depth of Bury'!$D$12=3000,'HDPE-Data'!$K114,'HDPE-Data'!$J114)*$J$16/($J$10*$J$7))-1.17)/(($J$13*IF('HDPE Depth of Bury'!D$12=3000,'HDPE-Data'!$K114,'HDPE-Data'!$J114)*$J$16/($J$10*$J$7))+2.92)),3) -> 0.913 | M114: =ROUND(0.76-0.71*((($J$13*IF('HDPE Depth of Bury'!$D$12=3000,'HDPE-Data'!$K114,'HDPE-Data'!$J114)*$J$16/($J$11*$J$7))-1.17)/(($J$13*IF('HDPE Depth of Bury'!D$12=3000,'HDPE-Data'!$K114,'HDPE-Data'!$J114)*$J$16/($J$11*$J$7))+2.92)),3) -> 0.615 | O114: 1194.7 | P114: 1568.3 | Q114: Fail | T114: 85.95833333 | U114: OK | W114: 1659 | X114: Fail | Z114: 7.5 | AA114: Fail | AC114: Fail
A115: 88 | B115: 1298 | C115: 7965.388889 | E115: 1298 | F115: 1.93 | G115: Fail | I115: 73.47 | J115: 1092.16 | K115: 10247.96 | L115: =ROUND(0.76-0.71*((($J$13*IF('HDPE Depth of Bury'!$D$12=3000,'HDPE-Data'!$K115,'HDPE-Data'!$J115)*$J$16/($J$10*$J$7))-1.17)/(($J$13*IF('HDPE Depth of Bury'!D$12=3000,'HDPE-Data'!$K115,'HDPE-Data'!$J115)*$J$16/($J$10*$J$7))+2.92)),3) -> 0.913 | M115: =ROUND(0.76-0.71*((($J$13*IF('HDPE Depth of Bury'!$D$12=3000,'HDPE-Data'!$K115,'HDPE-Data'!$J115)*$J$16/($J$11*$J$7))-1.17)/(($J$13*IF('HDPE Depth of Bury'!D$12=3000,'HDPE-Data'!$K115,'HDPE-Data'!$J115)*$J$16/($J$11*$J$7))+2.92)),3) -> 0.613 | O115: 1206 | P115: 1586.4 | Q115: Fail | T115: 86.95 | U115: Fail | W115: 1678 | X115: Fail | Z115: 7.6 | AA115: Fail | AC115: Fail
A116: 89 | B116: 1312.75 | C116: 8144.888889 | E116: 1312.75 | F116: 1.952 | G116: Fail | I116: 74.3 | J116: 1099.14 | K116: 10319.68 | L116: =ROUND(0.76-0.71*((($J$13*IF('HDPE Depth of Bury'!$D$12=3000,'HDPE-Data'!$K116,'HDPE-Data'!$J116)*$J$16/($J$10*$J$7))-1.17)/(($J$13*IF('HDPE Depth of Bury'!D$12=3000,'HDPE-Data'!$K116,'HDPE-Data'!$J116)*$J$16/($J$10*$J$7))+2.92)),3) -> 0.912 | M116: =ROUND(0.76-0.71*((($J$13*IF('HDPE Depth of Bury'!$D$12=3000,'HDPE-Data'!$K116,'HDPE-Data'!$J116)*$J$16/($J$11*$J$7))-1.17)/(($J$13*IF('HDPE Depth of Bury'!D$12=3000,'HDPE-Data'!$K116,'HDPE-Data'!$J116)*$J$16/($J$11*$J$7))+2.92)),3) -> 0.612 | O116: 1218.5 | P116: 1603.1 | Q116: Fail | T116: 87.94166667 | U116: Fail | W116: 1697 | X116: Fail | Z116: 7.7 | AA116: Fail | AC116: Fail
A117: 90 | B117: 1327.5 | C117: 8326.388889 | E117: 1327.5 | F117: 1.974 | G117: Fail | I117: 75.14 | J117: 1106.19 | K117: 10392.27 | L117: =ROUND(0.76-0.71*((($J$13*IF('HDPE Depth of Bury'!$D$12=3000,'HDPE-Data'!$K117,'HDPE-Data'!$J117)*$J$16/($J$10*$J$7))-1.17)/(($J$13*IF('HDPE Depth of Bury'!D$12=3000,'HDPE-Data'!$K117,'HDPE-Data'!$J117)*$J$16/($J$10*$J$7))+2.92)),3) -> 0.911 | M117: =ROUND(0.76-0.71*((($J$13*IF('HDPE Depth of Bury'!$D$12=3000,'HDPE-Data'!$K117,'HDPE-Data'!$J117)*$J$16/($J$11*$J$7))-1.17)/(($J$13*IF('HDPE Depth of Bury'!D$12=3000,'HDPE-Data'!$K117,'HDPE-Data'!$J117)*$J$16/($J$11*$J$7))+2.92)),3) -> 0.61 | O117: 1229.7 | P117: 1620 | Q117: Fail | T117: 88.93333333 | U117: Fail | W117: 1716 | X117: Fail | Z117: 7.8 | AA117: Fail | AC117: Fail
A118: 91 | B118: 1342.25 | C118: 8509.888889 | E118: 1342.25 | F118: 1.996 | G118: Fail | I118: 75.97 | J118: 1113.17 | K118: 10463.99 | L118: =ROUND(0.76-0.71*((($J$13*IF('HDPE Depth of Bury'!$D$12=3000,'HDPE-Data'!$K118,'HDPE-Data'!$J118)*$J$16/($J$10*$J$7))-1.17)/(($J$13*IF('HDPE Depth of Bury'!D$12=3000,'HDPE-Data'!$K118,'HDPE-Data'!$J118)*$J$16/($J$10*$J$7))+2.92)),3) -> 0.91 | M118: =ROUND(0.76-0.71*((($J$13*IF('HDPE Depth of Bury'!$D$12=3000,'HDPE-Data'!$K118,'HDPE-Data'!$J118)*$J$16/($J$11*$J$7))-1.17)/(($J$13*IF('HDPE Depth of Bury'!D$12=3000,'HDPE-Data'!$K118,'HDPE-Data'!$J118)*$J$16/($J$11*$J$7))+2.92)),3) -> 0.609 | O118: 1242.1 | P118: 1636.8 | Q118: Fail | T118: 89.925 | U118: Fail | W118: 1735 | X118: Fail | Z118: 7.9 | AA118: Fail | AC118: Fail
A119: 92 | B119: 1357 | C119: 8695.388889 | E119: 1357 | F119: 2.018 | G119: Fail | I119: 76.8 | J119: 1120.14 | K119: 10535.72 | L119: =ROUND(0.76-0.71*((($J$13*IF('HDPE Depth of Bury'!$D$12=3000,'HDPE-Data'!$K119,'HDPE-Data'!$J119)*$J$16/($J$10*$J$7))-1.17)/(($J$13*IF('HDPE Depth of Bury'!D$12=3000,'HDPE-Data'!$K119,'HDPE-Data'!$J119)*$J$16/($J$10*$J$7))+2.92)),3) -> 0.91 | M119: =ROUND(0.76-0.71*((($J$13*IF('HDPE Depth of Bury'!$D$12=3000,'HDPE-Data'!$K119,'HDPE-Data'!$J119)*$J$16/($J$11*$J$7))-1.17)/(($J$13*IF('HDPE Depth of Bury'!D$12=3000,'HDPE-Data'!$K119,'HDPE-Data'!$J119)*$J$16/($J$11*$J$7))+2.92)),3) -> 0.607 | O119: 1253.2 | P119: 1654.8 | Q119: Fail | T119: 90.91666667 | U119: Fail | W119: 1754 | X119: Fail | Z119: 8 | AA119: Fail | AC119: Fail
A120: 93 | B120: 1371.75 | C120: 8882.888889 | E120: 1371.75 | F120: 2.04 | G120: Fail | I120: 77.64 | J120: 1127.2 | K120: 10608.31 | L120: =ROUND(0.76-0.71*((($J$13*IF('HDPE Depth of Bury'!$D$12=3000,'HDPE-Data'!$K120,'HDPE-Data'!$J120)*$J$16/($J$10*$J$7))-1.17)/(($J$13*IF('HDPE Depth of Bury'!D$12=3000,'HDPE-Data'!$K120,'HDPE-Data'!$J120)*$J$16/($J$10*$J$7))+2.92)),3) -> 0.909 | M120: =ROUND(0.76-0.71*((($J$13*IF('HDPE Depth of Bury'!$D$12=3000,'HDPE-Data'!$K120,'HDPE-Data'!$J120)*$J$16/($J$11*$J$7))-1.17)/(($J$13*IF('HDPE Depth of Bury'!D$12=3000,'HDPE-Data'!$K120,'HDPE-Data'!$J120)*$J$16/($J$11*$J$7))+2.92)),3) -> 0.606 | O120: 1265.6 | P120: 1671.6 | Q120: Fail | T120: 91.90833333 | U120: Fail | W120: 1773 | X120: Fail | Z120: 8.1 | AA120: Fail | AC120: Fail
A121: 94 | B121: 1386.5 | C121: 9072.388889 | E121: 1386.5 | F121: 2.061 | G121: Fail | I121: 78.47 | J121: 1134.17 | K121: 10680.03 | L121: =ROUND(0.76-0.71*((($J$13*IF('HDPE Depth of Bury'!$D$12=3000,'HDPE-Data'!$K121,'HDPE-Data'!$J121)*$J$16/($J$10*$J$7))-1.17)/(($J$13*IF('HDPE Depth of Bury'!D$12=3000,'HDPE-Data'!$K121,'HDPE-Data'!$J121)*$J$16/($J$10*$J$7))+2.92)),3) -> 0.908 | M121: =ROUND(0.76-0.71*((($J$13*IF('HDPE Depth of Bury'!$D$12=3000,'HDPE-Data'!$K121,'HDPE-Data'!$J121)*$J$16/($J$11*$J$7))-1.17)/(($J$13*IF('HDPE Depth of Bury'!D$12=3000,'HDPE-Data'!$K121,'HDPE-Data'!$J121)*$J$16/($J$11*$J$7))+2.92)),3) -> 0.604 | O121: 1276.6 | P121: 1688.3 | Q121: Fail | T121: 92.9 | U121: Fail | W121: 1792 | X121: Fail | Z121: 8.1 | AA121: Fail | AC121: Fail
A122: 95 | B122: 1401.25 | C122: 9263.888889 | E122: 1401.25 | F122: 2.083 | G122: Fail | I122: 79.3 | J122: 1141.14 | K122: 10751.75 | L122: =ROUND(0.76-0.71*((($J$13*IF('HDPE Depth of Bury'!$D$12=3000,'HDPE-Data'!$K122,'HDPE-Data'!$J122)*$J$16/($J$10*$J$7))-1.17)/(($J$13*IF('HDPE Depth of Bury'!D$12=3000,'HDPE-Data'!$K122,'HDPE-Data'!$J122)*$J$16/($J$10*$J$7))+2.92)),3) -> 0.907 | M122: =ROUND(0.76-0.71*((($J$13*IF('HDPE Depth of Bury'!$D$12=3000,'HDPE-Data'!$K122,'HDPE-Data'!$J122)*$J$16/($J$11*$J$7))-1.17)/(($J$13*IF('HDPE Depth of Bury'!D$12=3000,'HDPE-Data'!$K122,'HDPE-Data'!$J122)*$J$16/($J$11*$J$7))+2.92)),3) -> 0.603 | O122: 1288.9 | P122: 1704.9 | Q122: Fail | T122: 93.89166667 | U122: Fail | W122: 1811 | X122: Fail | Z122: 8.2 | AA122: Fail | AC122: Fail
A123: 96 | B123: 1416 | C123: 9457.388889 | E123: 1416 | F123: 2.105 | G123: Fail | I123: 80.14 | J123: 1148.2 | K123: 10824.34 | L123: =ROUND(0.76-0.71*((($J$13*IF('HDPE Depth of Bury'!$D$12=3000,'HDPE-Data'!$K123,'HDPE-Data'!$J123)*$J$16/($J$10*$J$7))-1.17)/(($J$13*IF('HDPE Depth of Bury'!D$12=3000,'HDPE-Data'!$K123,'HDPE-Data'!$J123)*$J$16/($J$10*$J$7))+2.92)),3) -> 0.907 | M123: =ROUND(0.76-0.71*((($J$13*IF('HDPE Depth of Bury'!$D$12=3000,'HDPE-Data'!$K123,'HDPE-Data'!$J123)*$J$16/($J$11*$J$7))-1.17)/(($J$13*IF('HDPE Depth of Bury'!D$12=3000,'HDPE-Data'!$K123,'HDPE-Data'!$J123)*$J$16/($J$11*$J$7))+2.92)),3) -> 0.601 | O123: 1299.8 | P123: 1723 | Q123: Fail | T123: 94.88333333 | U123: Fail | W123: 1830 | X123: Fail | Z123: 8.3 | AA123: Fail | AC123: Fail
A124: 97 | B124: =(A124*$B$7/144)*(B$5) -> 1430.75 | C124: 9652.888889 | E124: =(B124+D124) -> 1430.75 | F124: 2.127 | G124: =IF(F124<$B$11,"OK","Fail") -> Fail | I124: 80.97 | J124: 1155.17 | K124: 10896.06 | L124: =ROUND(0.76-0.71*((($J$13*IF('HDPE Depth of Bury'!$D$12=3000,'HDPE-Data'!$K124,'HDPE-Data'!$J124)*$J$16/($J$10*$J$7))-1.17)/(($J$13*IF('HDPE Depth of Bury'!D$12=3000,'HDPE-Data'!$K124,'HDPE-Data'!$J124)*$J$16/($J$10*$J$7))+2.92)),3) -> 0.906 | M124: =ROUND(0.76-0.71*((($J$13*IF('HDPE Depth of Bury'!$D$12=3000,'HDPE-Data'!$K124,'HDPE-Data'!$J124)*$J$16/($J$11*$J$7))-1.17)/(($J$13*IF('HDPE Depth of Bury'!D$12=3000,'HDPE-Data'!$K124,'HDPE-Data'!$J124)*$J$16/($J$11*$J$7))+2.92)),3) -> 0.6 | O124: 1312 | P124: 1739.6 | Q124: =IF(AND(P124<$J$14,O124<$J$15),"OK","Fail") -> Fail | T124: 95.875 | U124: =IF(T124<$U$10,"OK","Fail") -> Fail | W124: 1849 | X124: =IF(W124<$X$14,"OK","Fail") -> Fail | Z124: 8.4 | AA124: =IF(Z124<$AA$14,"OK","Fail") -> Fail | AC124: Fail
A125: 98 | B125: =(A125*$B$7/144)*(B$5) -> 1445.5 | C125: 9850.388889 | E125: =(B125+D125) -> 1445.5 | F125: 2.149 | G125: =IF(F125<$B$11,"OK","Fail") -> Fail | I125: 81.8 | J125: 1162.15 | K125: 10967.79 | L125: =ROUND(0.76-0.71*((($J$13*IF('HDPE Depth of Bury'!$D$12=3000,'HDPE-Data'!$K125,'HDPE-Data'!$J125)*$J$16/($J$10*$J$7))-1.17)/(($J$13*IF('HDPE Depth of Bury'!D$12=3000,'HDPE-Data'!$K125,'HDPE-Data'!$J125)*$J$16/($J$10*$J$7))+2.92)),3) -> 0.905 | M125: =ROUND(0.76-0.71*((($J$13*IF('HDPE Depth of Bury'!$D$12=3000,'HDPE-Data'!$K125,'HDPE-Data'!$J125)*$J$16/($J$11*$J$7))-1.17)/(($J$13*IF('HDPE Depth of Bury'!D$12=3000,'HDPE-Data'!$K125,'HDPE-Data'!$J125)*$J$16/($J$11*$J$7))+2.92)),3) -> 0.598 | O125: 1322.8 | P125: 1756.2 | Q125: =IF(AND(P125<$J$14,O125<$J$15),"OK","Fail") -> Fail | T125: 96.86666667 | U125: =IF(T125<$U$10,"OK","Fail") -> Fail | W125: 1868 | X125: =IF(W125<$X$14,"OK","Fail") -> Fail | Z125: 8.5 | AA125: =IF(Z125<$AA$14,"OK","Fail") -> Fail | AC125: Fail
A126: 99 | B126: =(A126*$B$7/144)*(B$5) -> 1460.25 | C126: 10049.88889 | E126: =(B126+D126) -> 1460.25 | F126: 2.171 | G126: =IF(F126<$B$11,"OK","Fail") -> Fail | I126: 82.64 | J126: 1169.2 | K126: 11040.37 | L126: =ROUND(0.76-0.71*((($J$13*IF('HDPE Depth of Bury'!$D$12=3000,'HDPE-Data'!$K126,'HDPE-Data'!$J126)*$J$16/($J$10*$J$7))-1.17)/(($J$13*IF('HDPE Depth of Bury'!D$12=3000,'HDPE-Data'!$K126,'HDPE-Data'!$J126)*$J$16/($J$10*$J$7))+2.92)),3) -> 0.905 | M126: =ROUND(0.76-0.71*((($J$13*IF('HDPE Depth of Bury'!$D$12=3000,'HDPE-Data'!$K126,'HDPE-Data'!$J126)*$J$16/($J$11*$J$7))-1.17)/(($J$13*IF('HDPE Depth of Bury'!D$12=3000,'HDPE-Data'!$K126,'HDPE-Data'!$J126)*$J$16/($J$11*$J$7))+2.92)),3) -> 0.597 | O126: 1335 | P126: 1774.3 | Q126: =IF(AND(P126<$J$14,O126<$J$15),"OK","Fail") -> Fail | T126: 97.85833333 | U126: =IF(T126<$U$10,"OK","Fail") -> Fail | W126: 1887 | X126: =IF(W126<$X$14,"OK","Fail") -> Fail | Z126: 8.6 | AA126: =IF(Z126<$AA$14,"OK","Fail") -> Fail | AC126: Fail
A127: 100 | B127: =(A127*$B$7/144)*(B$5) -> 1475 | C127: 10251.38889 | E127: =(B127+D127) -> 1475 | F127: 2.193 | G127: =IF(F127<$B$11,"OK","Fail") -> Fail | I127: 83.47 | J127: 1176.18 | K127: 11112.1 | L127: =ROUND(0.76-0.71*((($J$13*IF('HDPE Depth of Bury'!$D$12=3000,'HDPE-Data'!$K127,'HDPE-Data'!$J127)*$J$16/($J$10*$J$7))-1.17)/(($J$13*IF('HDPE Depth of Bury'!D$12=3000,'HDPE-Data'!$K127,'HDPE-Data'!$J127)*$J$16/($J$10*$J$7))+2.92)),3) -> 0.904 | M127: =ROUND(0.76-0.71*((($J$13*IF('HDPE Depth of Bury'!$D$12=3000,'HDPE-Data'!$K127,'HDPE-Data'!$J127)*$J$16/($J$11*$J$7))-1.17)/(($J$13*IF('HDPE Depth of Bury'!D$12=3000,'HDPE-Data'!$K127,'HDPE-Data'!$J127)*$J$16/($J$11*$J$7))+2.92)),3) -> 0.595 | O127: 1345.7 | P127: 1790.8 | Q127: =IF(AND(P127<$J$14,O127<$J$15),"OK","Fail") -> Fail | T127: 98.85 | U127: =IF(T127<$U$10,"OK","Fail") -> Fail | W127: 1906 | X127: =IF(W127<$X$14,"OK","Fail") -> Fail | Z127: 8.7 | AA127: =IF(Z127<$AA$14,"OK","Fail") -> Fail | AC127: Fail

Sheet HDPE-Assumptions
A1: HDPE Pipe Calculation Assumptions
A3: When live load is considered, an HS-20 load applied in an unpaved condition is assumed. If the pipe will not be subjected to live load, the minimum depth of bury is assumed to be 2 feet to provide adequate cover to protect pipe from damage.
A5: Prism loading is assumed for the backfill load calculation
A7: Pipe is checked for deflection, wall thrust, critical buckling pressure, bending stress, and bending strain.
A9: Return to Calculations

Sheet PVC Depth of Bury
C3: PVC Pipe
C4: Min / Max depth of bury with both Dead and Live Loads factored in | N4: AWWA C900 - DR14 | O4: 813 | Q4: Yes
N5: AWWA C900 - DR18 | O5: 364 | Q5: No
D6: User Inputs | N6: AWWA C900 - DR21 | O6: 223.5
N7: AWWA C900 - DR25 | O7: 129
C8: Pipe Type | D8: Solid Wall, DR 35 | N8: AWWA C900 - DR32.5 | O8: 57
C9: Allowable Deflection, % | D9: 5 | N9: AWWA C900 - DR41 | O9: 28
C10: Unit weight of soil, pcf | D10: 120 | N10: AWWA C905 - DR14 | O10: 813
C11: Modulus of soil reaction, E', psi | D11: 1000 | G11: Click for recommended E' values | N11: AWWA C905 - DR18 | O11: 364
C12: Deflection Accuracy Reduction, % | D12: 2 | G12: Click for recommended deflection reduction | N12: AWWA C905 - DR21 | O12: 223.5
C13: Bedding Constant, K | D13: 0.1 | N13: AWWA C905 - DR25 | O13: 129
C14: Consider Live Load? | D14: Yes | N14: AWWA C905 - DR32.5 | O14: 57
N15: AWWA C905 - DR41 | O15: 28
N16: AWWA C905 - DR51 | O16: 14
C17: Pipe Properties | N17: Closed Profile (ASTM F 1803) | O17: 46
C18: Design Deflection, % | D18: =D9-ABS(D12) -> 3 | N18: Corrugated (ASTM F 949) | O18: 46
C19: Pipe Stiffness, psi | D19: =LOOKUP(D8,N4:N22,O4:O22) -> 46 | N19: PVC Composite (truss) (ASTM D 2680) | O19: 200
C20: Pipe load capacity, psi | D20: =ROUND(D18*(0.149*D19+0.061*D11)/(D13*100),1) -> 20.4 | N20: Solid Wall, DR 23.5 | O20: 153
N21: Solid Wall, DR 26 | O21: 115
N22: Solid Wall, DR 35 | O22: 46
C24: Results:
C26: Allowable Depth of Bury | D26: Min. | E26: Max.
D27: =IF(MIN('PVC-Data'!F13:F111)=0,"Not",MIN('PVC-Data'!F13:F61)) -> 2 | E27: =IF(MAX('PVC-Data'!F13:F111)=0,"Allowed",MAX('PVC-Data'!F13:F61)) -> 24
C29: Notes:
C31: This spreadsheet is a tool for use in determining the allowable depth of bury for PVC pipe based upon the design method
C32: described in the Handbook of PVC Pipe: Design and Construction. The engineer should have a thorough understanding
C33: of this methodology prior to using this spreadsheet and is responsible for verifying the results.
C35: For additional information and to obtain a copy of the Handbook of PVC Pipe, contact the Uni-Bell PVC Pipe Association

Sheet Flexible XSects
A1: Back to Calculations
A15: SUDAS Class F-1 | F15: SUDAS Class F-2 | K15: SUDAS Class F-3
A16: Recommended E' = 0 psi | F16: Recommended E' = 200 psi | K16: Recommended E' = 1000 psi
G19: Key:
G20: OD = Outside diameter of pipe
G21: TW = Trench width
A23: Notes:
A24: Class F-1 is intended for Water Main and Force Main pipe only.
A25: Class F-2 may be used for Storm Sewer installations.
A26: Class F-3 is required for all PVC gravity flow Sanitary Sewer installations

Sheet PVC-Accuracy
C3: Back to Calculations
C4: Average Modulus of Soil Reaction, E'
D6: E' for Degree of Compaction of Bedding in pounds per square inch
D7: Dumped | E7: Slight: <85% Proctor <40% relative density | F7: Moderate: 85%-95% Proctor 40%-70% relative density | G7: High: >95% Proctor >70% relative density
C8: Fine-grained soils (LL >50) Soils with medium to high plasticity CH, MH, CH-MH | D8: No data is available; consult a competent soils engineer or use E'=0
C9: Fine-grained soils (LL<50) Soils with medium to no plasticity CL, ML, ML-CL with less than 25% coarse- grained particles | D9: 50 | E9: 200 | F9: 400 | G9: 1000
C10: Fine-grained soils (LL<50) Soils with medium to no plasticity CL, ML, ML-CL with more than 25% coarse- grained particles Coarse-grained soils with fines GM, GC, SM, SC containing more than 12% fines | D10: 100 | E10: 400 | F10: 1000 | G10: 2000
C11: Coarse-grained soils with little or no fines GW, GP, SW, SP contains less than 12% fines | D11: 200 | E11: 1000 | F11: 2000 | G11: 3000
C12: Crushed Stone (recommended installation) 1 | D12: 1000 | E12: 3000 | F12: 3000 | G12: 3000
C13: Accuracy in Terms of Percentage Deflection 2 | D13: +2 | E13: +2 | F13: +1 | G13: +0.5
C15: Notes:
C16: 1 Crushed stone bedding is recommended for most installations
C17: 2 For +1% accuracy and predicted deflection of 3%, actual deflection would be between 2% and 4%.
C18: Use values in the shaded region with caution. Required compaction levels are difficult to achieve. If values are selected, construction requires careful supervision and inspection.

Sheet PVC-E' Values
C3: Back to Calculations
C4: Average Modulus of Soil Reaction, E'
D6: E' for Degree of Compaction of Bedding in pounds per square inch
D7: Dumped | E7: Slight: <85% Proctor <40% relative density | F7: Moderate: 85%-95% Proctor 40%-70% relative density | G7: High: >95% Proctor >70% relative density
C8: Fine-grained soils (LL >50) Soils with medium to high plasticity CH, MH, CH-MH | D8: No data is available; consult a competent soils engineer or use E'=0
C9: Fine-grained soils (LL<50) Soils with medium to no plasticity CL, ML, ML-CL with less than 25% coarse- grained particles | D9: 50 | E9: 200 | F9: 400 | G9: 1000
C10: Fine-grained soils (LL<50) Soils with medium to no plasticity CL, ML, ML-CL with more than 25% coarse- grained particles Coarse-grained soils with fines GM, GC, SM, SC containing more than 12% fines | D10: 100 | E10: 400 | F10: 1000 | G10: 2000
C11: Coarse-grained soils with little or no fines GW, GP, SW, SP contains less than 12% fines | D11: 200 | E11: 1000 | F11: 2000 | G11: 3000
C12: Crushed Stone (recommended installation) | D12: 1000 | E12: 3000 | F12: 3000 | G12: 3000
C13: Accuracy in Terms of Percentage Deflection | D13: +2 | E13: +2 | F13: +1 | G13: +0.5
C15: Notes:
C16: 1 Crushed stone bedding is recommended for most installations
C17: 2 For +1% accuracy and predicted deflection of 3%, actual deflection would be between 2% and 4%.
C18: Use values in the shaded region with caution. Required compaction levels are difficult to achieve. If values are selected, construction requires careful supervision and inspection.

Sheet PVC-Data
A1: AASHTO Live Load Determination
A3: AASTHO Tire Distribution
A4: W | B4: =20/12 -> 1.666666667 | C4: sf
A5: L | B5: =10/12 -> 0.8333333333 | C5: sf
A6: alpha | B6: 1
A7: P | B7: 16000 | C7: lbs
B11: Dead load | C11: Live Load | E11: Total Load
A12: H | B12: P, psi | C12: Area of load, sf | D12: Pressure, W | E12: psi
A13: 2 | B13: =A13*'PVC Depth of Bury'!$D$10/144 -> 1.666666667 | C13: =($B$4+$B$6*$A13)*($B$5+$B$6*$A13) -> 10.38888889 | D13: =IF('PVC Depth of Bury'!$D$14="Yes",$B$7/C13/144,0) -> 10.69518717 | E13: =B13+D13 -> 12.36185383 | F13: =IF(E13>'PVC Depth of Bury'!$D$20,"Fail",A13) -> 2
A14: 3 | B14: =A14*'PVC Depth of Bury'!$D$10/144 -> 2.5 | C14: =($B$4+$B$6*$A14)*($B$5+$B$6*$A14) -> 17.88888889 | D14: =IF('PVC Depth of Bury'!$D$14="Yes",$B$7/C14/144,0) -> 6.211180124 | E14: =B14+D14 -> 8.711180124 | F14: =IF(E14>'PVC Depth of Bury'!$D$20,"Fail",A14) -> 3
A15: 4 | B15: =A15*'PVC Depth of Bury'!$D$10/144 -> 3.333333333 | C15: 27.38888889 | D15: =IF('PVC Depth of Bury'!$D$14="Yes",$B$7/C15/144,0) -> 4.056795132 | E15: 7.390128465 | F15: =IF(E15>'PVC Depth of Bury'!$D$20,"Fail",A15) -> 4
A16: 5 | B16: =A16*'PVC Depth of Bury'!$D$10/144 -> 4.166666667 | C16: 38.88888889 | D16: =IF('PVC Depth of Bury'!$D$14="Yes",$B$7/C16/144,0) -> 2.857142857 | E16: 7.023809524 | F16: =IF(E16>'PVC Depth of Bury'!$D$20,"Fail",A16) -> 5
A17: 6 | B17: =A17*'PVC Depth of Bury'!$D$10/144 -> 5 | C17: 52.38888889 | D17: =IF('PVC Depth of Bury'!$D$14="Yes",$B$7/C17/144,0) -> 2.120890774 | E17: 7.120890774 | F17: =IF(E17>'PVC Depth of Bury'!$D$20,"Fail",A17) -> 6
A18: 7 | B18: =A18*'PVC Depth of Bury'!$D$10/144 -> 5.833333333 | C18: 67.88888889 | D18: =IF('PVC Depth of Bury'!$D$14="Yes",$B$7/C18/144,0) -> 1.636661211 | E18: =B18+D18 -> 7.469994544 | F18: =IF(E18>'PVC Depth of Bury'!$D$20,"Fail",A18) -> 7
A19: 8 | B19: =A19*'PVC Depth of Bury'!$D$10/144 -> 6.666666667 | C19: 85.38888889 | D19: =IF('PVC Depth of Bury'!$D$14="Yes",$B$7/C19/144,0) -> 1.301236174 | E19: 7.967902841 | F19: =IF(E19>'PVC Depth of Bury'!$D$20,"Fail",A19) -> 8
A20: 9 | B20: =A20*'PVC Depth of Bury'!$D$10/144 -> 7.5 | E20: 7.5 | F20: =IF(E20>'PVC Depth of Bury'!$D$20,"Fail",A20) -> 9
A21: 10 | B21: =A21*'PVC Depth of Bury'!$D$10/144 -> 8.333333333 | E21: 8.333333333 | F21: =IF(E21>'PVC Depth of Bury'!$D$20,"Fail",A21) -> 10
A22: 11 | B22: =A22*'PVC Depth of Bury'!$D$10/144 -> 9.166666667 | E22: 9.166666667 | F22: =IF(E22>'PVC Depth of Bury'!$D$20,"Fail",A22) -> 11
A23: 12 | B23: =A23*'PVC Depth of Bury'!$D$10/144 -> 10 | E23: 10 | F23: =IF(E23>'PVC Depth of Bury'!$D$20,"Fail",A23) -> 12
A24: 13 | B24: =A24*'PVC Depth of Bury'!$D$10/144 -> 10.83333333 | E24: 10.83333333 | F24: =IF(E24>'PVC Depth of Bury'!$D$20,"Fail",A24) -> 13
A25: 14 | B25: =A25*'PVC Depth of Bury'!$D$10/144 -> 11.66666667 | E25: 11.66666667 | F25: =IF(E25>'PVC Depth of Bury'!$D$20,"Fail",A25) -> 14
A26: 15 | B26: =A26*'PVC Depth of Bury'!$D$10/144 -> 12.5 | E26: 12.5 | F26: =IF(E26>'PVC Depth of Bury'!$D$20,"Fail",A26) -> 15
A27: 16 | B27: =A27*'PVC Depth of Bury'!$D$10/144 -> 13.33333333 | E27: 13.33333333 | F27: =IF(E27>'PVC Depth of Bury'!$D$20,"Fail",A27) -> 16
A28: 17 | B28: =A28*'PVC Depth of Bury'!$D$10/144 -> 14.16666667 | E28: 14.16666667 | F28: =IF(E28>'PVC Depth of Bury'!$D$20,"Fail",A28) -> 17
A29: 18 | B29: =A29*'PVC Depth of Bury'!$D$10/144 -> 15 | E29: 15 | F29: =IF(E29>'PVC Depth of Bury'!$D$20,"Fail",A29) -> 18
A30: 19 | B30: =A30*'PVC Depth of Bury'!$D$10/144 -> 15.83333333 | E30: 15.83333333 | F30: =IF(E30>'PVC Depth of Bury'!$D$20,"Fail",A30) -> 19
A31: 20 | B31: =A31*'PVC Depth of Bury'!$D$10/144 -> 16.66666667 | E31: 16.66666667 | F31: =IF(E31>'PVC Depth of Bury'!$D$20,"Fail",A31) -> 20
A32: 21 | B32: =A32*'PVC Depth of Bury'!$D$10/144 -> 17.5 | E32: 17.5 | F32: =IF(E32>'PVC Depth of Bury'!$D$20,"Fail",A32) -> 21
A33: 22 | B33: =A33*'PVC Depth of Bury'!$D$10/144 -> 18.33333333 | E33: 18.33333333 | F33: =IF(E33>'PVC Depth of Bury'!$D$20,"Fail",A33) -> 22
A34: 23 | B34: =A34*'PVC Depth of Bury'!$D$10/144 -> 19.16666667 | E34: 19.16666667 | F34: =IF(E34>'PVC Depth of Bury'!$D$20,"Fail",A34) -> 23
A35: 24 | B35: =A35*'PVC Depth of Bury'!$D$10/144 -> 20 | E35: 20 | F35: =IF(E35>'PVC Depth of Bury'!$D$20,"Fail",A35) -> 24
A36: 25 | B36: =A36*'PVC Depth of Bury'!$D$10/144 -> 20.83333333 | E36: 20.83333333 | F36: =IF(E36>'PVC Depth of Bury'!$D$20,"Fail",A36) -> Fail
A37: 26 | B37: =A37*'PVC Depth of Bury'!$D$10/144 -> 21.66666667 | E37: 21.66666667 | F37: =IF(E37>'PVC Depth of Bury'!$D$20,"Fail",A37) -> Fail
A38: 27 | B38: =A38*'PVC Depth of Bury'!$D$10/144 -> 22.5 | E38: 22.5 | F38: =IF(E38>'PVC Depth of Bury'!$D$20,"Fail",A38) -> Fail
A39: 28 | B39: =A39*'PVC Depth of Bury'!$D$10/144 -> 23.33333333 | E39: 23.33333333 | F39: =IF(E39>'PVC Depth of Bury'!$D$20,"Fail",A39) -> Fail
A40: 29 | B40: =A40*'PVC Depth of Bury'!$D$10/144 -> 24.16666667 | E40: 24.16666667 | F40: =IF(E40>'PVC Depth of Bury'!$D$20,"Fail",A40) -> Fail
A41: 30 | B41: =A41*'PVC Depth of Bury'!$D$10/144 -> 25 | E41: 25 | F41: =IF(E41>'PVC Depth of Bury'!$D$20,"Fail",A41) -> Fail
A42: 31 | B42: =A42*'PVC Depth of Bury'!$D$10/144 -> 25.83333333 | E42: 25.83333333 | F42: =IF(E42>'PVC Depth of Bury'!$D$20,"Fail",A42) -> Fail
A43: 32 | B43: =A43*'PVC Depth of Bury'!$D$10/144 -> 26.66666667 | E43: 26.66666667 | F43: =IF(E43>'PVC Depth of Bury'!$D$20,"Fail",A43) -> Fail
A44: 33 | B44: =A44*'PVC Depth of Bury'!$D$10/144 -> 27.5 | E44: 27.5 | F44: =IF(E44>'PVC Depth of Bury'!$D$20,"Fail",A44) -> Fail
A45: 34 | B45: =A45*'PVC Depth of Bury'!$D$10/144 -> 28.33333333 | E45: 28.33333333 | F45: =IF(E45>'PVC Depth of Bury'!$D$20,"Fail",A45) -> Fail
A46: 35 | B46: =A46*'PVC Depth of Bury'!$D$10/144 -> 29.16666667 | E46: 29.16666667 | F46: =IF(E46>'PVC Depth of Bury'!$D$20,"Fail",A46) -> Fail
A47: 36 | B47: =A47*'PVC Depth of Bury'!$D$10/144 -> 30 | E47: 30 | F47: =IF(E47>'PVC Depth of Bury'!$D$20,"Fail",A47) -> Fail
A48: 37 | B48: =A48*'PVC Depth of Bury'!$D$10/144 -> 30.83333333 | E48: 30.83333333 | F48: =IF(E48>'PVC Depth of Bury'!$D$20,"Fail",A48) -> Fail
A49: 38 | B49: =A49*'PVC Depth of Bury'!$D$10/144 -> 31.66666667 | E49: 31.66666667 | F49: =IF(E49>'PVC Depth of Bury'!$D$20,"Fail",A49) -> Fail
A50: 39 | B50: =A50*'PVC Depth of Bury'!$D$10/144 -> 32.5 | E50: 32.5 | F50: =IF(E50>'PVC Depth of Bury'!$D$20,"Fail",A50) -> Fail
A51: 40 | B51: =A51*'PVC Depth of Bury'!$D$10/144 -> 33.33333333 | E51: 33.33333333 | F51: =IF(E51>'PVC Depth of Bury'!$D$20,"Fail",A51) -> Fail
A52: 41 | B52: =A52*'PVC Depth of Bury'!$D$10/144 -> 34.16666667 | E52: =B52+D52 -> 34.16666667 | F52: =IF(E52>'PVC Depth of Bury'!$D$20,"Fail",A52) -> Fail
A53: 42 | B53: =A53*'PVC Depth of Bury'!$D$10/144 -> 35 | E53: 35 | F53: =IF(E53>'PVC Depth of Bury'!$D$20,"Fail",A53) -> Fail
A54: 43 | B54: =A54*'PVC Depth of Bury'!$D$10/144 -> 35.83333333 | E54: 35.83333333 | F54: =IF(E54>'PVC Depth of Bury'!$D$20,"Fail",A54) -> Fail
A55: 44 | B55: =A55*'PVC Depth of Bury'!$D$10/144 -> 36.66666667 | E55: 36.66666667 | F55: =IF(E55>'PVC Depth of Bury'!$D$20,"Fail",A55) -> Fail
A56: 45 | B56: =A56*'PVC Depth of Bury'!$D$10/144 -> 37.5 | E56: 37.5 | F56: =IF(E56>'PVC Depth of Bury'!$D$20,"Fail",A56) -> Fail
A57: 46 | B57: =A57*'PVC Depth of Bury'!$D$10/144 -> 38.33333333 | E57: 38.33333333 | F57: =IF(E57>'PVC Depth of Bury'!$D$20,"Fail",A57) -> Fail
A58: 47 | B58: =A58*'PVC Depth of Bury'!$D$10/144 -> 39.16666667 | E58: 39.16666667 | F58: =IF(E58>'PVC Depth of Bury'!$D$20,"Fail",A58) -> Fail
A59: 48 | B59: =A59*'PVC Depth of Bury'!$D$10/144 -> 40 | E59: 40 | F59: =IF(E59>'PVC Depth of Bury'!$D$20,"Fail",A59) -> Fail
A60: 49 | B60: =A60*'PVC Depth of Bury'!$D$10/144 -> 40.83333333 | E60: 40.83333333 | F60: =IF(E60>'PVC Depth of Bury'!$D$20,"Fail",A60) -> Fail
A61: 50 | B61: =A61*'PVC Depth of Bury'!$D$10/144 -> 41.66666667 | E61: 41.66666667 | F61: =IF(E61>'PVC Depth of Bury'!$D$20,"Fail",A61) -> Fail

Sheet PVC-Assumptions
A1: PVC Pipe Calculation Assumptions
A3: When live load is considered, an HS-20 load applied in an unpaved condition is assumed. If the pipe will not be subjected to live load, the minimum depth of bury is assumed to be 2 feet to provide adequate cover to protect pipe from damage.
A5: Prism loading is assumed for the backfill load calculation
A7: Maximum allowable depth of bury is cut off at 50 feet. This is the maximum depth for which the soil modulus values apply.
A9: Return to Calculations

Sheet RCP Depth of Bury
C3: Reinforced Concrete Pipe
C4: Min / Max depth of bury with both Dead and Live Loads factored in | AJ4: Class III (SUDAS Default) | AK4: 1350 | AL4: (Iowa DOT: 2000D) | AO4: 0.110 - Wet Clay | AP4: 0.11 | AR4: Yes
V5: Type D | W5: Type C | X5: Type B | Y5: Type A | Z5: Type A | AA5: Type A | AJ5: Class IV | AK5: 2000 | AL5: (Iowa DOT: 3000D) | AO5: 0.130 - Dry Clay | AP5: 0.13 | AR5: No
D6: User inputs | U6: H / Load Factor | V6: 1.1 | W6: 1.5 | X6: 1.9 | Y6: 2.8 | Z6: 3.4 | AA6: 4.8 | AC6: Cd | AD6: Calculated Trench Load | AE6: Load at transition width | AF6: Controlling Earth Load | AG6: Live Load | AH6: Total Load | AJ6: Class V | AK6: 3000 | AL6: (Iowa DOT: 4000D) | AO6: 0.150- Saturated Topsoil | AP6: 0.15
U7: 1 | V7: =IF(($AH7/(V$6*($D$8/12)))>$J$9,"Fail",($AH7/(V$6*($D$8/12)))) -> Fail | W7: 1111.333333 | X7: 877.3684211 | Y7: 595.3571429 | Z7: 490.2941176 | AA7: 347.2916667 | AC7: =((1-EXP(-2*$G$11*($U7/$D$12)))/(2*$G$11)) -> 0.2168775751 | AD7: =((1-EXP(-2*$G$11*($U7/$D$12)))/(2*$G$11))*$D$10*$D$12^2 -> 527.0125075 | AE7: =$D$10/100*INDEX('RCP-Transition Width'!$B$6:$AQ$26, MATCH($D$8,'RCP-Transition Width'!$B$6:$B$26,), MATCH(U7,'RCP-Transition Width'!$B$6:$AQ$6,)) -> 324 | AF7: =MIN(AD7,AE7) -> 324 | AG7: =IF(D13="yes",VLOOKUP($D$8,'RCP-Live Load'!$A$7:$P$23,5),0) -> 3010 | AH7: =AG7+AF7 -> 3334 | AO7: 0.165 - Sand and Gravel | AP7: 0.165
C8: Pipe Diameter, in. | D8: 24 | U8: 2 | V8: 1127.636364 | W8: 826.9333333 | X8: 652.8421053 | Y8: 443 | Z8: 364.8235294 | AA8: 258.4166667 | AC8: 0.423407256 | AD8: 1028.879632 | AE8: =$D$10/100*INDEX('RCP-Transition Width'!$B$6:$AQ$26, MATCH($D$8,'RCP-Transition Width'!$B$6:$B$26,), MATCH(U8,'RCP-Transition Width'!$B$6:$AQ$6,)) -> 700.8 | AF8: 700.8 | AG8: =IF(D13="yes",VLOOKUP($D$8,'RCP-Live Load'!$A$7:$P$23,7),0) -> 1780 | AH8: 2480.8
C9: Pipe Class, lb/lf/ft dia. | D9: Class III (SUDAS Default) | G9: =LOOKUP(D9,AJ4:AJ6,AL4:AL6) -> (Iowa DOT: 2000D) | I9: D0.01 = | J9: =LOOKUP(D9,AJ4:AJ6,AK4:AK6) -> 1350 | U9: 3 | V9: 940.9090909 | W9: 690 | X9: 544.7368421 | Y9: 369.6428571 | Z9: 304.4117647 | AA9: 215.625 | AC9: 0.6200827725 | AD9: 1506.801137 | AE9: =$D$10/100*INDEX('RCP-Transition Width'!$B$6:$AQ$26, MATCH($D$8,'RCP-Transition Width'!$B$6:$B$26,), MATCH(U9,'RCP-Transition Width'!$B$6:$AQ$6,)) -> 1140 | AF9: 1140 | AG9: =IF(D13="yes",VLOOKUP($D$8,'RCP-Live Load'!$A$7:$P$23,9),0) -> 930 | AH9: 2070 | AJ9: 12
C10: Unit Weight of Soil, pcf | D10: 120 | U10: 4 | V10: 1041.454545 | W10: 763.7333333 | X10: 602.9473684 | Y10: 409.1428571 | Z10: 336.9411765 | AA10: 238.6666667 | AC10: 0.8073742971 | AD10: 1961.919542 | AE10: =$D$10/100*INDEX('RCP-Transition Width'!$B$6:$AQ$26, MATCH($D$8,'RCP-Transition Width'!$B$6:$B$26,), MATCH(U10,'RCP-Transition Width'!$B$6:$AQ$6,)) -> 1651.2 | AF10: 1651.2 | AG10: =IF(D13="yes",VLOOKUP($D$8,'RCP-Live Load'!$A$7:$P$23,11),0) -> 640 | AH10: 2291.2 | AJ10: 15
C11: ku' | D11: 0.110 - Wet Clay | G11: =LOOKUP(D11,AO4:AO7,AP4:AP7) -> 0.11 | U11: 5 | V11: 1219.454545 | W11: 894.2666667 | X11: 706 | Y11: 479.0714286 | Z11: 394.5294118 | AA11: 279.4583333 | AC11: 0.9857295686 | AD11: 2395.322852 | AE11: =$D$10/100*INDEX('RCP-Transition Width'!$B$6:$AQ$26, MATCH($D$8,'RCP-Transition Width'!$B$6:$B$26,), MATCH(U11,'RCP-Transition Width'!$B$6:$AQ$6,)) -> 2182.8 | AF11: 2182.8 | AG11: =IF(D13="yes",VLOOKUP($D$8,'RCP-Live Load'!$A$7:$P$23,12),) -> 500 | AH11: 2682.8 | AJ11: 18
C12: Trench Width, ft. | D12: =IF(ISNUMBER(H12),H12,MAX(1.25*(D8+2*(D8/12+1))/12+1,4.5)) -> 4.5 | I12: User defined trench width | U12: 6 | V12: Fail | W12: 999.7333333 | X12: 789.2631579 | Y12: 535.5714286 | Z12: 441.0588235 | AA12: 312.4166667 | AC12: 1.155574963 | AD12: 2808.047161 | AE12: =$D$10/100*INDEX('RCP-Transition Width'!$B$6:$AQ$26, MATCH($D$8,'RCP-Transition Width'!$B$6:$B$26,), MATCH(U12,'RCP-Transition Width'!$B$6:$AQ$6,)) -> 2599.2 | AF12: 2599.2 | AG12: =IF(D13="yes",VLOOKUP($D$8,'RCP-Live Load'!$A$7:$P$23,13),0) -> 400 | AH12: 2999.2 | AJ12: 21
C13: Consider Live Load? | D13: Yes | I13: (leave blank if using SUDAS default) | U13: 7 | V13: Fail | W13: 1140.4 | X13: 900.3157895 | Y13: 610.9285714 | Z13: 503.1176471 | AA13: 356.375 | AC13: 1.317316513 | AD13: 3201.079127 | AE13: =$D$10/100*INDEX('RCP-Transition Width'!$B$6:$AQ$26, MATCH($D$8,'RCP-Transition Width'!$B$6:$B$26,), MATCH(U13,'RCP-Transition Width'!$B$6:$AQ$6,)) -> 3091.2 | AF13: 3091.2 | AG13: =IF(D13="yes",VLOOKUP($D$8,'RCP-Live Load'!$A$7:$P$23,14),0) -> 330 | AH13: 3421.2 | AJ13: 24
U14: 8 | V14: Fail | W14: 1274.933333 | X14: 1006.526316 | Y14: 683 | Z14: 562.4705882 | AA14: 398.4166667 | AC14: 1.471340878 | AD14: 3575.358333 | AE14: =$D$10/100*INDEX('RCP-Transition Width'!$B$6:$AQ$26, MATCH($D$8,'RCP-Transition Width'!$B$6:$B$26,), MATCH(U14,'RCP-Transition Width'!$B$6:$AQ$6,)) -> 3544.8 | AF14: 3544.8 | AG14: =IF(D13="yes",VLOOKUP($D$8,'RCP-Live Load'!$A$7:$P$23,15),0) -> 280 | AH14: 3824.8 | AJ14: 27
U15: 9 | V15: Fail | W15: Fail | X15: 1097.836719 | Y15: 744.9606305 | Z15: 613.4969898 | AA15: 434.5603678 | AC15: 1.618016268 | AD15: 3931.779531 | AE15: =$D$10/100*INDEX('RCP-Transition Width'!$B$6:$AQ$26, MATCH($D$8,'RCP-Transition Width'!$B$6:$B$26,), MATCH(U15,'RCP-Transition Width'!$B$6:$AQ$6,)) -> 3997.2 | AF15: 3931.779531 | AG15: =IF(D13="yes",VLOOKUP($D$8,'RCP-Live Load'!$A$7:$P$23,16),0) -> 240 | AH15: 4171.779531 | AJ15: 30
U16: 10 | V16: Fail | W16: Fail | X16: 1123.998626 | Y16: 762.7133536 | Z16: 628.1168794 | AA16: 444.9161229 | AC16: 1.757693325 | AD16: 4271.19478 | AE16: =$D$10/100*INDEX('RCP-Transition Width'!$B$6:$AQ$26, MATCH($D$8,'RCP-Transition Width'!$B$6:$B$26,), MATCH(U16,'RCP-Transition Width'!$B$6:$AQ$6,)) -> 4446 | AF16: 4271.19478 | AH16: 4271.19478 | AJ16: 33
C17: Results: | U17: 11 | V17: =IF(($AH17/(V$6*($D$8/12)))>$J$9,"Fail",($AH17/(V$6*($D$8/12)))) -> Fail | W17: Fail | X17: 1209.056707 | Y17: 820.4313369 | Z17: 675.6493363 | AA17: 478.5849465 | AC17: 1.890705962 | AD17: 4594.415487 | AE17: =$D$10/100*INDEX('RCP-Transition Width'!$B$6:$AQ$26, MATCH($D$8,'RCP-Transition Width'!$B$6:$B$26,), MATCH(U17,'RCP-Transition Width'!$B$6:$AQ$6,)) -> 4897.2 | AF17: 4594.415487 | AH17: 4594.415487 | AJ17: 36
U18: 12 | V18: Fail | W18: Fail | X18: 1290.056406 | Y18: 875.3954183 | Z18: 720.9138739 | AA18: 510.6473273 | AC18: 2.017372157 | AD18: 4902.214342 | AE18: =$D$10/100*INDEX('RCP-Transition Width'!$B$6:$AQ$26, MATCH($D$8,'RCP-Transition Width'!$B$6:$B$26,), MATCH(U18,'RCP-Transition Width'!$B$6:$AQ$6,)) -> 5347.2 | AF18: 4902.214342 | AH18: 4902.214342 | AJ18: 42
D19: Bedding Types | U19: 13 | V19: Fail | W19: Fail | X19: Fail | Y19: 927.7369948 | Z19: 764.0187016 | AA19: 541.1799136 | AC19: 2.137994721 | AD19: 5195.327171 | AE19: =$D$10/100*INDEX('RCP-Transition Width'!$B$6:$AQ$26, MATCH($D$8,'RCP-Transition Width'!$B$6:$B$26,), MATCH(U19,'RCP-Transition Width'!$B$6:$AQ$6,)) -> 5803.2 | AF19: 5195.327171 | AH19: 5195.327171 | AJ19: 48
D20: SUDAS N/A | F20: SUDAS R-1 | H20: SUDAS R-2 | J20: SUDAS R-3 & R-4 | U20: 14 | V20: Fail | W20: Fail | X20: Fail | Y20: 977.5811942 | Z20: 805.0668658 | AA20: 570.2556966 | AC20: 2.252862011 | AD20: 5474.454688 | AE20: =$D$10/100*INDEX('RCP-Transition Width'!$B$6:$AQ$26, MATCH($D$8,'RCP-Transition Width'!$B$6:$B$26,), MATCH(U20,'RCP-Transition Width'!$B$6:$AQ$6,)) -> 6250.8 | AF20: 5474.454688 | AH20: 5474.454688 | AJ20: 54
D21: ACPA Class D | F21: ACPA Class C | H21: ACPA Class B | J21: ACPA Class A | L21: ACPA Class A | N21: ACPA Class A | U21: 15 | V21: Fail | W21: Fail | X21: Fail | Y21: 1025.047174 | Z21: 844.1564962 | AA21: 597.9441848 | AC21: 2.362248631 | AD21: 5740.264174 | AE21: =$D$10/100*INDEX('RCP-Transition Width'!$B$6:$AQ$26, MATCH($D$8,'RCP-Transition Width'!$B$6:$B$26,), MATCH(U21,'RCP-Transition Width'!$B$6:$AQ$6,)) -> 6696 | AF21: 5740.264174 | AH21: 5740.264174 | AJ21: 60
D22: Bedding Factor = 1.1 | F22: Bedding Factor = 1.5 | H22: Bedding Factor = 1.9 | J22: Bedding Factor = 2.8 | L22: Bedding Factor = 3.4 | N22: Bedding Factor = 4.8 | U22: 16 | V22: Fail | W22: Fail | X22: Fail | Y22: 1070.248406 | Z22: 881.3810405 | AA22: 624.3115704 | AC22: 2.46641608 | AD22: 5993.391075 | AE22: =$D$10/100*INDEX('RCP-Transition Width'!$B$6:$AQ$26, MATCH($D$8,'RCP-Transition Width'!$B$6:$B$26,), MATCH(U22,'RCP-Transition Width'!$B$6:$AQ$6,)) -> 7146 | AF22: 5993.391075 | AH22: 5993.391075 | AJ22: 66
D23: Click for Cross Section | F23: Click for Cross Section | H23: Click for Cross Section | J23: Click for Cross Section | L23: Click for Cross Section | N23: Click for Cross Section | U23: 17 | V23: Fail | W23: Fail | X23: Fail | Y23: 1113.292949 | Z23: 916.8294876 | AA23: 649.4208871 | AC23: 2.565613381 | AD23: 6234.440516 | AE23: =$D$10/100*INDEX('RCP-Transition Width'!$B$6:$AQ$26, MATCH($D$8,'RCP-Transition Width'!$B$6:$B$26,), MATCH(U23,'RCP-Transition Width'!$B$6:$AQ$6,)) -> 7596 | AF23: 6234.440516 | AH23: 6234.440516 | AJ23: 72
C24: Allowable Depth | D24: Min. | E24: Max. | F24: Min. | G24: Max | H24: Min | I24: Max | J24: Min | K24: Max | L24: Min | M24: Max | N24: Min | O24: Max | U24: 18 | V24: Fail | W24: Fail | X24: Fail | Y24: 1154.283705 | Z24: 950.5865806 | AA24: 673.3321613 | AC24: 2.660077674 | AD24: 6463.988748 | AE24: =$D$10/100*INDEX('RCP-Transition Width'!$B$6:$AQ$26, MATCH($D$8,'RCP-Transition Width'!$B$6:$B$26,), MATCH(U24,'RCP-Transition Width'!$B$6:$AQ$6,)) -> 8049.6 | AF24: 6463.988748 | AH24: 6463.988748
D25: =IF(D13="no","N/A",IF(ISNUMBER(V7),U7,IF(ISNUMBER(V8),U8,IF(ISNUMBER(V9),U9,IF(ISNUMBER(V10),U10,IF(ISNUMBER(V11),U11,IF(ISNUMBER(V12),U12))))))) -> 2 | E25: =LOOKUP(MAX(V$7:V$46),V$7:V$46,$U$7:$U$46) -> 5 | F25: =IF(D13="no","N/A",IF(ISNUMBER(W7),U7,IF(ISNUMBER(W8),U8,IF(ISNUMBER(W9),U9,IF(ISNUMBER(W10),U10,IF(ISNUMBER(W11),U11,IF(ISNUMBER(W12),U12))))))) -> 1 | G25: =LOOKUP(MAX(W$7:W$46),W$7:W$46,$U$7:$U$46) -> 8 | H25: =IF(D13="no","N/A",IF(ISNUMBER(X7),U7,IF(ISNUMBER(X8),U8,IF(ISNUMBER(X9),U9,IF(ISNUMBER(X10),U10,IF(ISNUMBER(X11),U11,IF(ISNUMBER(X12),U12))))))) -> 1 | I25: =LOOKUP(MAX(X$7:X$46),X$7:X$46,$U$7:$U$46) -> 12 | J25: =IF(D13="no","N/A",IF(ISNUMBER(Y7),U7,IF(ISNUMBER(Y8),U8,IF(ISNUMBER(Y9),U9,IF(ISNUMBER(Y10),U10,IF(ISNUMBER(Y11),U11,IF(ISNUMBER(Y12),U12))))))) -> 1 | K25: =LOOKUP(MAX(Y$7:Y$46),Y$7:Y$46,$U$7:$U$46) -> 23 | L25: =IF(D13="no","N/A",IF(ISNUMBER(Z7),U7,IF(ISNUMBER(Z8),U8,IF(ISNUMBER(Z9),U9,IF(ISNUMBER(Z10),U10,IF(ISNUMBER(Z11),U11,IF(ISNUMBER(Z12),U12))))))) -> 1 | M25: =LOOKUP(MAX(Z$7:Z$46),Z$7:Z$46,$U$7:$U$46) -> 36 | N25: =IF(D13="no","N/A",IF(ISNUMBER(AA7),U7,IF(ISNUMBER(AA8),U8,IF(ISNUMBER(AA9),U9,IF(ISNUMBER(AA10),U10,IF(ISNUMBER(AA11),U11,IF(ISNUMBER(AA12),U12))))))) -> 1 | O25: =LOOKUP(MAX(AA$7:AA$46),AA$7:AA$46,$U$7:$U$46) -> 40 | U25: 19 | V25: Fail | W25: Fail | X25: Fail | Y25: 1193.318666 | Z25: 982.7330192 | AA25: 696.1025553 | AC25: 2.750034786 | AD25: 6682.584531 | AE25: =$D$10/100*INDEX('RCP-Transition Width'!$B$6:$AQ$26, MATCH($D$8,'RCP-Transition Width'!$B$6:$B$26,), MATCH(U25,'RCP-Transition Width'!$B$6:$AQ$6,)) -> 8498.4 | AF25: 6682.584531 | AH25: 6682.584531
U26: 20 | V26: Fail | W26: Fail | X26: Fail | Y26: 1230.49115 | Z26: 1013.345653 | AA26: 717.7865039 | AC26: 2.835699769 | AD26: 6890.750438 | AE26: =$D$10/100*INDEX('RCP-Transition Width'!$B$6:$AQ$26, MATCH($D$8,'RCP-Transition Width'!$B$6:$B$26,), MATCH(U26,'RCP-Transition Width'!$B$6:$AQ$6,)) -> 8944.8 | AF26: 6890.750438 | AH26: 6890.750438
C27: Notes: | U27: 21 | V27: =IF(($AH27/(V$6*($D$8/12)))>$J$9,"Fail",($AH27/(V$6*($D$8/12)))) -> Fail | W27: Fail | X27: Fail | Y27: 1265.89002 | Z27: 1042.497663 | AA27: 738.4358449 | AC27: 2.917277412 | AD27: 7088.984111 | AE27: =$D$10/100*INDEX('RCP-Transition Width'!$B$6:$AQ$26, MATCH($D$8,'RCP-Transition Width'!$B$6:$B$26,), MATCH(U27,'RCP-Transition Width'!$B$6:$AQ$6,)) -> 9410.4 | AF27: 7088.984111 | AH27: 7088.984111
U28: 22 | V28: Fail | W28: Fail | X28: Fail | Y28: 1299.599901 | Z28: 1070.258742 | AA28: 758.0999425 | AC28: 2.994962736 | AD28: 7277.759448 | AE28: =$D$10/100*INDEX('RCP-Transition Width'!$B$6:$AQ$26, MATCH($D$8,'RCP-Transition Width'!$B$6:$B$26,), MATCH(U28,'RCP-Transition Width'!$B$6:$AQ$6,)) -> 9860.4 | AF28: 7277.759448 | AH28: 7277.759448
C29: This spreadsheet is a tool for use in determining the allowable depth of bury for RCP based upon the Marston / Spangler method described | U29: 23 | V29: Fail | W29: Fail | X29: Fail | Y29: 1331.701381 | Z29: 1096.695255 | AA29: 776.8258057 | AC29: 3.068941455 | AD29: 7457.527735 | AE29: =$D$10/100*INDEX('RCP-Transition Width'!$B$6:$AQ$26, MATCH($D$8,'RCP-Transition Width'!$B$6:$B$26,), MATCH(U29,'RCP-Transition Width'!$B$6:$AQ$6,)) -> 10317.6 | AF29: 7457.527735 | AH29: 7457.527735
C30: in the 2000 Concrete Pipe Design Manual. The engineer should have a thorough understanding of this methodology prior to using this | U30: 24 | V30: Fail | W30: Fail | X30: Fail | Y30: Fail | Z30: 1121.870401 | AA30: 794.6582006 | AC30: 3.139390422 | AD30: 7628.718726 | AE30: =$D$10/100*INDEX('RCP-Transition Width'!$B$6:$AQ$26, MATCH($D$8,'RCP-Transition Width'!$B$6:$B$26,), MATCH(U30,'RCP-Transition Width'!$B$6:$AQ$6,)) -> 10758 | AF30: 7628.718726 | AH30: 7628.718726
C31: spreadsheet and is responsible for verifying the results. | U31: 25 | V31: Fail | W31: Fail | X31: Fail | Y31: Fail | Z31: 1145.844363 | AA31: 811.6397572 | AC31: 3.206478053 | AD31: 7791.741669 | AE31: =$D$10/100*INDEX('RCP-Transition Width'!$B$6:$AQ$26, MATCH($D$8,'RCP-Transition Width'!$B$6:$B$26,), MATCH(U31,'RCP-Transition Width'!$B$6:$AQ$6,)) -> 11209.2 | AF31: 7791.741669 | AH31: 7791.741669
U32: 26 | V32: Fail | W32: Fail | X32: Fail | Y32: Fail | Z32: 1168.674454 | AA32: 827.8110717 | AC32: 3.270364728 | AD32: 7946.986288 | AE32: =$D$10/100*INDEX('RCP-Transition Width'!$B$6:$AQ$26, MATCH($D$8,'RCP-Transition Width'!$B$6:$B$26,), MATCH(U32,'RCP-Transition Width'!$B$6:$AQ$6,)) -> 11644.8 | AF32: 7946.986288 | AH32: 7946.986288
C33: For additional information and to view a copy of the Concrete Pipe Design Manual, contact the American Concrete Pipe Association. | U33: 27 | V33: Fail | W33: Fail | X33: Fail | Y33: Fail | Z33: 1190.415251 | AA33: 843.2108031 | AC33: 3.331203173 | AD33: 8094.82371 | AE33: =$D$10/100*INDEX('RCP-Transition Width'!$B$6:$AQ$26, MATCH($D$8,'RCP-Transition Width'!$B$6:$B$26,), MATCH(U33,'RCP-Transition Width'!$B$6:$AQ$6,)) -> 12096 | AF33: 8094.82371 | AH33: 8094.82371
U34: 28 | V34: Fail | W34: Fail | X34: Fail | Y34: Fail | Z34: 1211.118729 | AA34: 857.8757662 | AC34: 3.389138829 | AD34: 8235.607355 | AE34: =$D$10/100*INDEX('RCP-Transition Width'!$B$6:$AQ$26, MATCH($D$8,'RCP-Transition Width'!$B$6:$B$26,), MATCH(U34,'RCP-Transition Width'!$B$6:$AQ$6,)) -> 12540 | AF34: 8235.607355 | AH34: 8235.607355
U35: 29 | V35: Fail | W35: Fail | X35: Fail | Y35: Fail | Z35: 1230.83438 | AA35: 871.8410189 | AC35: 3.444310198 | AD35: 8369.673781 | AE35: =$D$10/100*INDEX('RCP-Transition Width'!$B$6:$AQ$26, MATCH($D$8,'RCP-Transition Width'!$B$6:$B$26,), MATCH(U35,'RCP-Transition Width'!$B$6:$AQ$6,)) -> 13008 | AF35: 8369.673781 | AH35: 8369.673781
U36: 30 | V36: Fail | W36: Fail | X36: Fail | Y36: Fail | Z36: 1249.609336 | AA36: 885.1399466 | AC36: 3.496849172 | AD36: 8497.343487 | AE36: =$D$10/100*INDEX('RCP-Transition Width'!$B$6:$AQ$26, MATCH($D$8,'RCP-Transition Width'!$B$6:$B$26,), MATCH(U36,'RCP-Transition Width'!$B$6:$AQ$6,)) -> 13464 | AF36: 8497.343487 | AH36: 8497.343487
U37: 31 | V37: =IF(($AH37/(V$6*($D$8/12)))>$J$9,"Fail",($AH37/(V$6*($D$8/12)))) -> Fail | W37: Fail | X37: Fail | Y37: Fail | Z37: 1267.488482 | AA37: 897.8043416 | AC37: 3.54688135 | AD37: 8618.921679 | AE37: =$D$10/100*INDEX('RCP-Transition Width'!$B$6:$AQ$26, MATCH($D$8,'RCP-Transition Width'!$B$6:$B$26,), MATCH(U37,'RCP-Transition Width'!$B$6:$AQ$6,)) -> 13896 | AF37: 8618.921679 | AH37: 8618.921679
U38: 32 | V38: Fail | W38: Fail | X38: Fail | Y38: Fail | Z38: 1284.514559 | AA38: 909.8644795 | AC38: 3.594526339 | AD38: 8734.699003 | AE38: =$D$10/100*INDEX('RCP-Transition Width'!$B$6:$AQ$26, MATCH($D$8,'RCP-Transition Width'!$B$6:$B$26,), MATCH(U38,'RCP-Transition Width'!$B$6:$AQ$6,)) -> 14388 | AF38: 8734.699003 | AH38: 8734.699003
U39: 33 | V39: Fail | W39: Fail | X39: Fail | Y39: Fail | Z39: 1300.72827 | AA39: 921.3491913 | AC39: 3.63989804 | AD39: 8844.952236 | AE39: =$D$10/100*INDEX('RCP-Transition Width'!$B$6:$AQ$26, MATCH($D$8,'RCP-Transition Width'!$B$6:$B$26,), MATCH(U39,'RCP-Transition Width'!$B$6:$AQ$6,)) -> 14796 | AF39: 8844.952236 | AH39: 8844.952236
U40: 34 | V40: Fail | W40: Fail | X40: Fail | Y40: Fail | Z40: 1316.168375 | AA40: 932.2859322 | AC40: 3.683104917 | AD40: 8949.944949 | AE40: =$D$10/100*INDEX('RCP-Transition Width'!$B$6:$AQ$26, MATCH($D$8,'RCP-Transition Width'!$B$6:$B$26,), MATCH(U40,'RCP-Transition Width'!$B$6:$AQ$6,)) -> 15264 | AF40: 8949.944949 | AH40: 8949.944949
U41: 35 | V41: Fail | W41: Fail | X41: Fail | Y41: Fail | Z41: 1330.871785 | AA41: 942.7008477 | AC41: 3.724250263 | AD41: 9049.928138 | AE41: =$D$10/100*INDEX('RCP-Transition Width'!$B$6:$AQ$26, MATCH($D$8,'RCP-Transition Width'!$B$6:$B$26,), MATCH(U41,'RCP-Transition Width'!$B$6:$AQ$6,)) -> 15708 | AF41: 9049.928138 | AH41: 9049.928138
U42: 36 | V42: Fail | W42: Fail | X42: Fail | Y42: Fail | Z42: 1344.87365 | AA42: 952.6188357 | AC42: 3.763432437 | AD42: 9145.140822 | AE42: =$D$10/100*INDEX('RCP-Transition Width'!$B$6:$AQ$26, MATCH($D$8,'RCP-Transition Width'!$B$6:$B$26,), MATCH(U42,'RCP-Transition Width'!$B$6:$AQ$6,)) -> 16140 | AF42: 9145.140822 | AH42: 9145.140822
U43: 37 | V43: Fail | W43: Fail | X43: Fail | Y43: Fail | Z43: Fail | AA43: 962.063606 | AC43: 3.80074511 | AD43: 9235.810617 | AE43: =$D$10/100*INDEX('RCP-Transition Width'!$B$6:$AQ$26, MATCH($D$8,'RCP-Transition Width'!$B$6:$B$26,), MATCH(U43,'RCP-Transition Width'!$B$6:$AQ$6,)) -> 16632 | AF43: 9235.810617 | AH43: 9235.810617
U44: 38 | V44: Fail | W44: Fail | X44: Fail | Y44: Fail | Z44: Fail | AA44: 971.0577373 | AC44: 3.836277481 | AD44: 9322.154279 | AE44: =$D$10/100*INDEX('RCP-Transition Width'!$B$6:$AQ$26, MATCH($D$8,'RCP-Transition Width'!$B$6:$B$26,), MATCH(U44,'RCP-Transition Width'!$B$6:$AQ$6,)) -> 17052 | AF44: 9322.154279 | AH44: 9322.154279
U45: 39 | V45: Fail | W45: Fail | X45: Fail | Y45: Fail | Z45: Fail | AA45: 979.6227311 | AC45: 3.870114493 | AD45: 9404.378219 | AE45: =$D$10/100*INDEX('RCP-Transition Width'!$B$6:$AQ$26, MATCH($D$8,'RCP-Transition Width'!$B$6:$B$26,), MATCH(U45,'RCP-Transition Width'!$B$6:$AQ$6,)) -> 17532 | AF45: 9404.378219 | AH45: 9404.378219
U46: 40 | V46: Fail | W46: Fail | X46: Fail | Y46: Fail | Z46: Fail | AA46: 987.7790628 | AC46: 3.902337038 | AD46: 9482.679003 | AE46: =$D$10/100*INDEX('RCP-Transition Width'!$B$6:$AQ$26, MATCH($D$8,'RCP-Transition Width'!$B$6:$B$26,), MATCH(U46,'RCP-Transition Width'!$B$6:$AQ$6,)) -> 17964 | AF46: 9482.679003 | AH46: 9482.679003

Sheet RCP-Class D
A1: Back to Calculations
B21: Key:
B22: OD = Outside pipe diameter
B23: TW = Trench width
A25: Note:
A26: Installation without bedding material is not recommended and should be done with caution

Sheet RCP-R-1
A1: Back to Calculations
B22: Key:
B23: d = depth of bedding under pipe; OD/8 or 4" min.
B24: OD = Outside pipe diameter
B25: TW = Trench width

Sheet RCP-R-2
A1: Back to Calculations
C22: Key:
C23: d = depth of bedding under pipe; OD/8 or 4" min.
C24: OD = Outside pipe diameter
C25: TW = Trench width

Sheet RCP-R-3-4 0%
A1: Back to Calculations
F21: Key:
F22: d = depth of bedding under pipe; OD/8 or 4" min.
F23: D = Pipe diameter
F24: OD = Outside pipe diameter

Sheet RCP-R-3-4 0.4%
A1: Back to Calculations
F21: Key:
F22: As = Area of reinforcing steel
F23: d = depth of bedding under pipe; OD/8 or 4" min.
F24: D = Pipe diameter
F25: OD = Outside pipe diameter

Sheet RCP-R-3-4 1.0%
A1: Back to Calculations
F21: Key:
F22: As = Area of reinforcing steel
F23: d = depth of bedding under pipe; OD/8 or 4" min.
F24: D = Pipe diameter
F25: OD = Outside pipe diameter

Sheet RCP-Assumptions
A1: RCP Calculation Assumptions
A3: When live load is considered, an HS-20 load applied in an unpaved condition is assumed. If the pipe will not be subjected to live load, the minimum depth of bury does not apply.
A5: The D0.01 pipe strength is used with a factor of safety of 1.0.
A7: A minimum trench width of 54 inches (this is the smallest excavator bucket commonly used by some contractors).
A9: Maximum allowable depth of bury was cut off at 40 feet. This is the limit of the design information provided by ACPA. For deeper installations, contact ACPA for additional information.
A11: Return to Calculations

Sheet RCP-Transition Width
A2: BACKFILL LOADS ON CIRCULAR RIGID PIPE AT TRANITION WIDTH
A3: 100 pcf backfill material*
D5: Height of Backfill H above top of pipe, feet
D6: 1 | E6: 2 | F6: 3 | G6: 4 | H6: 5 | I6: 6 | J6: 7 | K6: 8 | L6: 9 | M6: 10 | N6: 11 | O6: 12 | P6: 13 | Q6: 14 | R6: 15 | S6: 16 | T6: 17 | U6: 18 | V6: 19 | W6: 20 | X6: 21 | Y6: 22 | Z6: 23 | AA6: 24 | AB6: 25 | AC6: 26 | AD6: 27 | AE6: 28 | AF6: 29 | AG6: 30 | AH6: 31 | AI6: 32 | AJ6: 33 | AK6: 34 | AL6: 35 | AM6: 36 | AN6: 37 | AO6: 38 | AP6: 39 | AQ6: 40
A7: Do | B7: Pipe dia., in
A8: =((B8/12+1)*2+B8)/12 -> 0.9444444444 | B8: 8 | H8: 603 | I8: 724 | J8: 847 | K8: 969 | L8: 1088 | M8: 1213 | N8: 1332 | O8: 1458 | P8: 1575 | Q8: 1698 | R8: 1818 | S8: 1942 | T8: 2065 | U8: 2182 | V8: 2308 | W8: 2429 | X8: 2429 | Y8: 2553 | Z8: 2673 | AA8: 2910 | AB8: 2788 | AC8: 2910 | AD8: 3041 | AE8: 3398 | AF8: 3514 | AG8: 3646 | AH8: 3776 | AI8: 3880 | AJ8: 4004 | AK8: 4124 | AL8: 4241 | AM8: 4384 | AN8: 4495 | AO8: 4603 | AP8: 4740 | AQ8: 4877
A9: 1.138888889 | B9: 10 | H9: 743 | I9: 893 | J9: 1043 | K9: 1193 | L9: 1344 | M9: 1495 | N9: 1645 | O9: 1795 | P9: 1946 | Q9: 2094 | R9: 2241 | S9: 2395 | T9: 2547 | U9: 2698 | V9: 2842 | W9: 2994 | X9: 3150 | Y9: 3301 | Z9: 3445 | AA9: 3595 | AB9: 3739 | AC9: 3892 | AD9: 4041 | AE9: 4201 | AF9: 4340 | AG9: 4493 | AH9: 4642 | AI9: 4786 | AJ9: 4950 | AK9: 5085 | AL9: 5243 | AM9: 4397 | AN9: 5549 | AO9: 5697 | AP9: 5842 | AQ9: 5983
A10: 1.333333333 | B10: 12 | D10: =ROUND((EXP((2*$D$37*D$6/((($B10/12+1)*2+$B10)/12)))-1)/(2*$D$37)*(100)*((($B10/12+1)*2+$B10)/12)^2,0) -> 154 | E10: 359 | F10: 575 | G10: 775 | H10: 985 | I10: 1185 | J10: 1385 | K10: 1585 | L10: 1786 | M10: 1982 | N10: 2182 | O10: 2385 | P10: 2581 | Q10: 2785 | R10: 2986 | S10: 3186 | T10: 3385 | U10: 3588 | V10: 3780 | W10: 3979 | X10: 4177 | Y10: 4377 | Z10: 4581 | AA10: 4777 | AB10: 4979 | AC10: 5174 | AD10: 5377 | AE10: 5575 | AF10: 5784 | AG10: 5969 | AH10: 6188 | AI10: 6381 | AJ10: 6569 | AK10: 6774 | AL10: 6976 | AM10: 7173 | AN10: 7365 | AO10: 7583 | AP10: 7765 | AQ10: 7976
A11: 1.625 | B11: 15 | D11: 183 | E11: 414 | F11: =ROUND((EXP((2*$D$37*F$6/((($B11/12+1)*2+$B11)/12)))-1)/(2*$D$37)*(100)*((($B11/12+1)*2+$B11)/12)^2,0) -> 707 | G11: 945 | H11: 1203 | I11: 1448 | J11: 1692 | K11: 1938 | L11: 2183 | M11: 2429 | N11: 2672 | O11: 2920 | P11: 3162 | Q11: 3408 | R11: 3647 | S11: 3900 | T11: 4142 | U11: 4382 | V11: 4624 | W11: 4870 | X11: 5123 | Y11: 5368 | Z11: 5603 | AA11: 5851 | AB11: 6091 | AC11: 6350 | AD11: 6588 | AE11: 6833 | AF11: 7070 | AG11: 7319 | AH11: 7561 | AI11: 7818 | AJ11: 8046 | AK11: 8290 | AL11: 8556 | AM11: 8789 | AN11: 9045 | AO11: 9265 | AP11: 9510 | AQ11: 9785
A12: 1.916666667 | B12: 18 | D12: 212 | E12: 470 | F12: 786 | G12: 1300 | H12: 1411 | I12: 1700 | J12: 1989 | K12: 2277 | L12: 2566 | M12: 2855 | N12: 3145 | O12: 3431 | P12: 3718 | Q12: 4012 | R12: 4298 | S12: 4584 | T12: 4877 | U12: 5168 | V12: 5444 | W12: 5737 | X12: 6035 | Y12: 6324 | Z12: 6600 | AA12: 6887 | AB12: 7189 | AC12: 7455 | AD12: 7768 | AE12: 8044 | AF12: 8344 | AG12: 8636 | AH12: 8901 | AI12: 9198 | AJ12: 9488 | AK12: 9771 | AL12: 10070 | AM12: 10340 | AN12: 10630 | AO12: 10940 | AP12: 11220 | AQ12: 11520
A13: 2.208333333 | B13: 21 | D13: 241 | E13: 527 | F13: 867 | G13: =ROUND((EXP((2*$D$37*G$6/((($B13/12+1)*2+$B13)/12)))-1)/(2*$D$37)*(100)*((($B13/12+1)*2+$B13)/12)^2,0) -> 1271 | H13: 1617 | I13: 1951 | J13: 2284 | K13: 2617 | L13: 2950 | M13: 3282 | N13: 3612 | O13: 3947 | P13: 4280 | Q13: 4610 | R13: 4942 | S13: 5273 | T13: 5606 | U13: 5934 | V13: 6247 | W13: 6598 | X13: 6942 | Y13: 7273 | Z13: 7591 | AA13: 7916 | AB13: 8255 | AC13: 8582 | AD13: 8928 | AE13: 9266 | AF13: 9593 | AG13: 9910 | AH13: 10260 | AI13: 10590 | AJ13: 10920 | AK13: 11250 | AL13: 11580 | AM13: 11910 | AN13: 12230 | AO13: 12580 | AP13: 12920 | AQ13: 13250
A14: 2.5 | B14: 24 | D14: 270 | E14: 584 | F14: 950 | G14: 1376 | H14: 1819 | I14: 2166 | J14: 2576 | K14: 2954 | L14: 3331 | M14: 3705 | N14: 4081 | O14: 4456 | P14: 4836 | Q14: 5209 | R14: 5580 | S14: 5955 | T14: 6330 | U14: 6708 | V14: 7082 | W14: 7454 | X14: 7842 | Y14: 8217 | Z14: 8598 | AA14: 8965 | AB14: 9341 | AC14: 9704 | AD14: 10080 | AE14: 10450 | AF14: 10840 | AG14: 11220 | AH14: 11580 | AI14: 11990 | AJ14: 12330 | AK14: 12720 | AL14: 13090 | AM14: 13450 | AN14: 13860 | AO14: 14210 | AP14: 14610 | AQ14: 14970
A15: 2.791666667 | B15: 27 | D15: 299 | E15: 642 | F15: 1034 | G15: 1484 | H15: 1988 | I15: 2444 | J15: 2868 | K15: 3288 | L15: 3708 | M15: 4129 | N15: 4550 | O15: 4968 | P15: 5385 | Q15: 5809 | R15: 6229 | S15: 6641 | T15: 7069 | U15: 7489 | V15: 7900 | W15: 8319 | X15: 8737 | Y15: 9155 | Z15: 9577 | AA15: 10010 | AB15: 10420 | AC15: 10850 | AD15: 11260 | AE15: 11660 | AF15: 12080 | AG15: 12520 | AH15: 12910 | AI15: 13330 | AJ15: 13780 | AK15: 14180 | AL15: 14620 | AM15: 15040 | AN15: 15460 | AO15: 15870 | AP15: 16270 | AQ15: 16720
A16: 3.083333333 | B16: 30 | D16: 328 | E16: 699 | F16: 1119 | G16: 1594 | H16: 2119 | I16: 2686 | J16: 3155 | K16: 3620 | L16: 4085 | M16: 4551 | N16: 5015 | O16: 5478 | P16: 5938 | Q16: 6401 | R16: 6862 | S16: 7330 | T16: 7791 | U16: 8250 | V16: 8711 | W16: 9179 | X16: 9643 | Y16: 10110 | Z16: 10570 | AA16: 11020 | AB16: 11500 | AC16: 11960 | AD16: 12400 | AE16: 12860 | AF16: 13340 | AG16: 13810 | AH16: 14270 | AI16: 14710 | AJ16: 15180 | AK16: 15640 | AL16: 16140 | AM16: 16570 | AN16: 17050 | AO16: 17520 | AP16: 17980 | AQ16: 18430
A17: 3.375 | B17: 33 | D17: 357 | E17: 757 | F17: 1204 | G17: 1705 | H17: 2258 | I17: 2880 | J17: 3450 | K17: 3963 | L17: 4474 | M17: 4983 | N17: 5492 | O17: 6003 | P17: 6512 | Q17: 7019 | R17: 7526 | S17: 8034 | T17: 8542 | U17: 9045 | V17: 9559 | W17: 10060 | X17: 10580 | Y17: 11070 | Z17: 11580 | AA17: 12090 | AB17: 12610 | AC17: 13110 | AD17: 13630 | AE17: 14120 | AF17: 14630 | AG17: 15130 | AH17: 15650 | AI17: 16150 | AJ17: 16640 | AK17: 17170 | AL17: 17680 | AM17: 18180 | AN17: 18670 | AO17: 19200 | AP17: 19730 | AQ17: 20240
A18: 3.666666667 | B18: 36 | D18: 386 | E18: 815 | F18: 1290 | G18: 1817 | H18: 2394 | I18: 3038 | J18: 3730 | K18: 4289 | L18: 4846 | M18: 5401 | N18: 5952 | O18: 6508 | P18: 7060 | Q18: 7609 | R18: 8160 | S18: 8717 | T18: 9261 | U18: 9817 | V18: 10370 | W18: 10930 | X18: 10930 | Y18: 12030 | Z18: 12580 | AA18: 13120 | AB18: 13670 | AC18: 14240 | AD18: 14790 | AE18: 15350 | AF18: 15890 | AG18: 16450 | AH18: 16990 | AI18: 17520 | AJ18: 18080 | AK18: 18620 | AL18: 19190 | AM18: 19750 | AN18: 20300 | AO18: 20840 | AP18: 21370 | AQ18: 21940
A19: 4.25 | B19: 42 | D19: 445 | E19: 931 | F19: 1462 | G19: 2044 | H19: 2671 | I19: 3361 | J19: 4114 | K19: 4932 | L19: 5582 | M19: 6227 | N19: 6869 | O19: 7510 | P19: 8150 | Q19: 8789 | R19: 9434 | S19: 10070 | T19: 10710 | U19: 11350 | V19: 11980 | W19: 12630 | X19: 13270 | Y19: 13900 | Z19: 14550 | AA19: 15190 | AB19: 15830 | AC19: 16470 | AD19: 17090 | AE19: 17740 | AF19: 18380 | AG19: 19000 | AH19: 19670 | AI19: 20280 | AJ19: 20920 | AK19: 21540 | AL19: 22190 | AM19: 22830 | AN19: 23500 | AO19: 24110 | AP19: 24760 | AQ19: 25400
A20: 4.833333333 | B20: 48 | D20: 503 | E20: 1047 | F20: 1635 | G20: 2272 | H20: 2950 | I20: 3691 | J20: 4490 | K20: 5354 | L20: 6287 | M20: 7041 | N20: 7776 | O20: 8508 | P20: 9235 | Q20: 9966 | R20: 10690 | S20: 11420 | T20: 12150 | U20: 12870 | V20: 13600 | W20: 14330 | X20: 15060 | Y20: 15770 | Z20: 16510 | AA20: 17230 | AB20: 17960 | AC20: 18680 | AD20: 19400 | AE20: 20120 | AF20: 20850 | AG20: 21590 | AH20: 22320 | AI20: 23020 | AJ20: 23740 | AK20: 24490 | AL20: 25220 | AM20: 25930 | AN20: 26680 | AO20: 27410 | AP20: 28130 | AQ20: 28820
A21: 5.416666667 | B21: 54 | D21: 561 | E21: 1163 | F21: 1809 | G21: 2501 | H21: 3238 | I21: 4030 | J21: 4880 | K21: 5790 | L21: 6765 | M21: 7809 | N21: 8683 | O21: 9507 | P21: 10330 | Q21: 11150 | R21: 11970 | S21: 12780 | T21: 13600 | U21: 14420 | V21: 15230 | W21: 16050 | X21: 16860 | Y21: 17680 | Z21: 18490 | AA21: 19310 | AB21: 20120 | AC21: 20930 | AD21: 21750 | AE21: 22580 | AF21: 23380 | AG21: 24190 | AH21: 25010 | AI21: 25840 | AJ21: 26650 | AK21: 27440 | AL21: 28250 | AM21: 29090 | AN21: 29910 | AO21: 30720 | AP21: 31500 | AQ21: 32330
A22: 6 | B22: 60 | D22: 619 | E22: 1279 | F22: 1982 | G22: 2731 | H22: 3522 | I22: 4368 | J22: 5268 | K22: 6226 | L22: 7246 | M22: 8331 | N22: 9486 | O22: 10480 | P22: 11390 | Q22: 12300 | R22: 13210 | S22: 14120 | T22: 15020 | U22: 15930 | V22: 16830 | W22: 17740 | X22: 18640 | Y22: 19540 | Z22: 20440 | AA22: 21340 | AB22: 22240 | AC22: 23150 | AD22: 24060 | AE22: 24960 | AF22: 25860 | AG22: 26760 | AH22: 27680 | AI22: 28560 | AJ22: 29460 | AK22: 30380 | AL22: 31270 | AM22: 32140 | AN22: 33090 | AO22: 33970 | AP22: 34880 | AQ22: 35770
A23: 6.583333333 | B23: 66 | D23: 678 | E23: 1396 | F23: 2156 | G23: 2962 | H23: 3807 | I23: 4707 | J23: 5660 | K23: 6668 | L23: 7735 | M23: 8865 | N23: 10060 | O23: 11330 | P23: 12440 | Q23: 13440 | R23: 14450 | S23: 15440 | T23: 16440 | U23: 17430 | V23: 18420 | W23: 19410 | X23: 20410 | Y23: 21390 | Z23: 22380 | AA23: 23370 | AB23: 24360 | AC23: 25360 | AD23: 26350 | AE23: 27330 | AF23: 28340 | AG23: 29310 | AH23: 30320 | AI23: 31300 | AJ23: 32280 | AK23: 33290 | AL23: 34270 | AM23: 35270 | AN23: 36240 | AO23: 37250 | AP23: 38230 | AQ23: 39190
A24: 7.166666667 | B24: 72 | D24: 736 | E24: 1512 | F24: 2330 | G24: 3193 | H24: 4097 | I24: 5053 | J24: 6060 | K24: 7121 | L24: 8239 | M24: 9417 | N24: 10660 | O24: 11960 | P24: 13340 | Q24: 14590 | R24: 15690 | S24: 16780 | T24: 17860 | U24: 18950 | V24: 20030 | W24: 21110 | X24: 22200 | Y24: 23270 | Z24: 24360 | AA24: 25420 | AB24: 26520 | AC24: 27590 | AD24: 28670 | AE24: 29760 | AF24: 30840 | AG24: 31910 | AH24: 30320 | AI24: 31300 | AJ24: 32280 | AK24: 33290 | AL24: 34270 | AM24: 35270 | AN24: 36240 | AO24: 37250 | AP24: 38230 | AQ24: 39190
A25: 7.75 | B25: 78 | D25: 794 | E25: 1629 | F25: 2505 | G25: 3425 | H25: 4384 | I25: 5395 | J25: 6457 | K25: 7570 | L25: 8739 | M25: 9966 | N25: 11520 | O25: 12600 | P25: 14020 | Q25: 15510 | R25: 16890 | S25: 18080 | T25: 19250 | U25: 20430 | V25: 21600 | W25: 22780 | X25: 23940 | Y25: 25110 | Z25: 26280 | AA25: 27450 | AB25: 28610 | AC25: 29780 | AD25: 30940 | AE25: 32120 | AF25: 33280 | AG25: 34460 | AH25: 35600 | AI25: 36770 | AJ25: 37950 | AK25: 39100 | AL25: 40290 | AM25: 41460 | AN25: 42600 | AO25: 43760 | AP25: 44940 | AQ25: 46100
A26: 8.333333333 | B26: 84 | D26: 853 | E26: 1745 | F26: 2679 | G26: 3657 | H26: 4671 | I26: 5738 | J26: 6854 | K26: 8021 | L26: 9242 | M26: 10520 | N26: 11860 | O26: 13250 | P26: 14710 | Q26: 16240 | R26: 17840 | S26: 19360 | T26: 20630 | U26: 21900 | V26: 23160 | W26: 24420 | X26: 25680 | Y26: 26940 | Z26: 28200 | AA26: 29460 | AB26: 30720 | AC26: 31970 | AD26: 33230 | AE26: 34470 | AF26: 35740 | AG26: 36970 | AH26: 38250 | AI26: 39490 | AJ26: 40720 | AK26: 42000 | AL26: 43240 | AM26: 44500 | AN26: 45770 | AO26: 47010 | AP26: 48270 | AQ26: 49500
B27: *For backfill weighing 110 pcf, increase loads 10%, 120pcf, 20%; etc
A30: From 2000 ACPA Concrete Pipe Design Manual
A33: Loads for depths 1'-5' are based upon Figure B-12 and equation B4
A34: in the 2000 ACPA Concrete Pipe Design Manual
A35: (Values left of the H=He line are calculated with Equation B4 - values to right of line were read from the table)
B37: Ku= | D37: 0.19
B38: unit wt.= | D38: 100

Sheet RCP-Live Load
A1: Highway Loads on Circular Pipe
A2: (From 2000 ACPA Concrete Pipe Design Manual - Table 42)
A5: Pipe Diameter | B5: Do | D5: Height of Fill Above Top of Pipe in Feet | R5: All
D6: 0.5 | E6: 1 | F6: 1.5 | G6: 2 | H6: 2.5 | I6: 3 | J6: 3.5 | K6: 4 | L6: 5 | M6: 6 | N6: 7 | O6: 8 | P6: 9
A7: 12 | B7: =((A7/12+1)*2+A7)/12 -> 1.333333333 | D7: 3780 | E7: 2080 | F7: 1470 | G7: 1080 | H7: 760 | I7: 550 | J7: 450 | K7: 380 | L7: 290 | M7: 230 | N7: 190 | O7: 160 | P7: 130
A8: 15 | B8: 1.625 | D8: 4240 | E8: 2360 | F8: 1740 | G8: 1280 | H8: 900 | I8: 660 | J8: 540 | K8: 450 | L8: 350 | M8: 280 | N8: 230 | O8: 190 | P8: 160
A9: 18 | B9: 1.916666667 | D9: 4110 | E9: 2610 | F9: 1970 | G9: 1460 | H9: 1030 | I9: 750 | J9: 620 | K9: 520 | L9: 400 | M9: 320 | N9: 260 | O9: 220 | P9: 190
A10: 21 | B10: 2.208333333 | D10: 3920 | E10: 2820 | F10: 2190 | G10: 1620 | H10: 1150 | I10: 840 | J10: 690 | K10: 580 | L10: 450 | M10: 360 | N10: 300 | O10: 250 | P10: 210
A11: 24 | B11: 2.5 | D11: 4100 | E11: 3010 | F11: 2400 | G11: 1780 | H11: 1270 | I11: 930 | J11: 760 | K11: 640 | L11: 500 | M11: 400 | N11: 330 | O11: 280 | P11: 240
A12: 27 | B12: 2.791666667 | D12: 3880 | E12: 2940 | F12: 2590 | G12: 1930 | H12: 1380 | I12: 1010 | J12: 830 | K12: 700 | L12: 560 | M12: 440 | N12: 360 | O12: 300 | P12: 260
A13: 30 | B13: 3.083333333 | D13: 3620 | E13: 2830 | F13: 2770 | G13: 2070 | H13: 1480 | I13: 1080 | J13: 890 | K13: 750 | L13: 590 | M13: 480 | N13: 390 | O13: 330 | P13: 280
A14: 33 | B14: 3.375 | D14: 3390 | E14: 2930 | F14: 2950 | G14: 2200 | H14: 1580 | I14: 1160 | J14: 960 | K14: 810 | L14: 630 | M14: 510 | N14: 420 | O14: 360 | P14: 300
A15: 36 | B15: 3.666666667 | D15: 3190 | E15: 2810 | F15: 2930 | G15: 2330 | H15: 1670 | I15: 1230 | J15: 1020 | K15: 860 | L15: 670 | M15: 550 | N15: 450 | O15: 380 | P15: 330
A16: 42 | B16: 4.25 | D16: 2860 | E16: 2550 | F16: 2770 | G16: 2560 | H16: 1840 | I16: 1360 | J16: 1130 | K16: 950 | L16: 750 | M16: 610 | N16: 510 | O16: 430 | P16: 370
A17: 48 | B17: 4.833333333 | D17: 2590 | E17: 2330 | F17: 2620 | G17: 2480 | H17: 1990 | I17: 1470 | J17: 1230 | K17: 1040 | L17: 820 | M17: 670 | N17: 560 | O17: 470 | P17: 410
A18: 54 | B18: 5.416666667 | D18: 2360 | E18: 2150 | F18: 2490 | G18: 2360 | H18: 2050 | I18: 1580 | J18: 1320 | K18: 1120 | L18: 890 | M18: 730 | N18: 610 | O18: 520 | P18: 440
A19: 60 | B19: 6 | D19: 2170 | E19: 1990 | F19: 2450 | G19: 2250 | H19: 1960 | I19: 1680 | J19: 1400 | K19: 1190 | L19: 950 | M19: 780 | N19: 650 | O19: 560 | P19: 480
A20: 66 | B20: 6.583333333 | D20: 2010 | E20: 1850 | F20: 2520 | G20: 2160 | H20: 1880 | I20: 1640 | J20: 1480 | K20: 1260 | L20: 1010 | M20: 830 | N20: 700 | O20: 590 | P20: 510
A21: 72 | B21: 7.166666667 | D21: 1870 | E21: 1730 | F21: 2580 | G21: 2190 | H21: 1810 | I21: 1570 | J21: 1510 | K21: 1330 | L21: 1060 | M21: 880 | N21: 740 | O21: 630 | P21: 540
A22: 78 | B22: 7.75 | D22: 1750 | E22: 1630 | F22: 2630 | G22: 2240 | H22: 1770 | I22: 1520 | J22: 1460 | K22: 1390 | L22: 1110 | M22: 920 | N22: 780 | O22: 660 | P22: 570
A23: 84 | B23: 8.333333333 | D23: 1650 | E23: 1540 | F23: 2730 | G23: 2290 | H23: 1810 | I23: 1460 | J23: 1410 | K23: 1360 | L23: 1160 | M23: 960 | N23: 810 | O23: 690 | P23: 600

Sheet RCAP Depth of Bury
C3: Reinforced Concrete Arch Pipe | AE3: Wall | AF3: Outside | AG3: Outside
C4: Min / Max depth of bury with both Dead and Live Loads factored in | AB4: Equivalent Diameter | AC4: Span | AD4: Rise | AE4: Thickness | AF4: Span | AG4: Rise | AI4: Class III - SUDAS default | AJ4: 1350 | AK4: (Iowa DOT: 2000D) | AN4: Yes | AP4: 0.110 - Wet Clay | AQ4: 0.11
N5: Type D | O5: Type C | P5: Type B | Q5: Type A | R5: Type A | S5: Type A | AB5: 15 | AC5: 18 | AD5: 11 | AE5: 2.25 | AF5: =(AC5+2*AE5)/12 -> 1.875 | AG5: =(AD5+2*AE5)/12 -> 1.291666667 | AI5: Class IV | AJ5: 2000 | AK5: (Iowa DOT: 3000D) | AN5: No | AP5: 0.130 - Dry Clay | AQ5: 0.13
D6: User Inputs | M6: H / Load Factor | N6: 1.1 | O6: 1.5 | P6: 1.9 | Q6: 2.8 | R6: 3.4 | S6: 4.8 | U6: Cd | V6: Calculated Trench Load | W6: Load at transition width | X6: Controlling Earth Load | Y6: Live Load | Z6: Total Load | AB6: 18 | AC6: 22 | AD6: 13 | AE6: 2.5 | AF6: 2.25 | AG6: 1.5 | AP6: 0.150- Saturated Topsoil | AQ6: 0.15
M7: 1 | N7: =IF(($Z7/(N$6*($G$9/12)))>$I$10,"Fail",($Z7/(N$6*($G$9/12)))) -> Fail | O7: Fail | P7: Fail | Q7: 1229.047619 | R7: 1012.156863 | S7: 716.9444444 | U7: =((1-EXP(-2*$F$12*($M7/$D$13)))/(2*$F$12)) -> 0.2168775751 | V7: =((1-EXP(-2*$F$12*($M7/$D$13)))/(2*$F$12))*$D$11*$D$13^2 -> 527.0125075 | W7: =$D$11/100*INDEX('RCAP-Transition Width'!$C$6:$AS$19, MATCH($D$9,'RCAP-Transition Width'!$C$6:$C$19,), MATCH(M7,'RCAP-Transition Width'!$C$6:$AS$6)) -> 252 | X7: =MIN(V7,W7) -> 252 | Y7: =IF(D14="yes",VLOOKUP($D$9,'RCAP-Live Load'!$A$7:$T$18,8),0) -> 4910 | Z7: =Y7+X7 -> 5162 | AB7: 21 | AC7: 26 | AD7: 15 | AE7: 2.75 | AF7: 2.625 | AG7: 1.708333333 | AP7: 0.165 - Sand and Gravel | AQ7: 0.165
F8: Rise | G8: Span | M8: 2 | N8: Fail | O8: 1174.222222 | P8: 927.0175439 | Q8: 629.047619 | R8: 518.0392157 | S8: 366.9444444 | U8: 0.423407256 | V8: 1028.879632 | W8: =$D$11/100*INDEX('RCAP-Transition Width'!$C$6:$AS$19, MATCH($D$9,'RCAP-Transition Width'!$C$6:$C$19,), MATCH(M8,'RCAP-Transition Width'!$C$6:$AS$6)) -> 552 | X8: 552 | Y8: =IF(D14="yes",VLOOKUP($D$9,'RCAP-Live Load'!$A$7:$T$18,10),0) -> 2090 | Z8: 2642 | AB8: 24 | AC8: 29 | AD8: 18 | AE8: 3 | AF8: 2.916666667 | AG8: 2
C9: Equiv. Pipe Dia., in. | D9: 15 | F9: =LOOKUP($D9,$AB5:$AB16,AD5:AD16) -> 11 | G9: =LOOKUP($D9,$AB5:$AB16,AC5:AC16) -> 18 | I9: =LOOKUP($D9,$AB5:$AB16,AG5:AG16) -> 1.291666667 | J9: =LOOKUP($D9,$AB5:$AB16,AF5:AF16) -> 1.875 | M9: 3 | N9: 1214.545455 | O9: 890.6666667 | P9: 703.1578947 | Q9: 477.1428571 | R9: 392.9411765 | S9: 278.3333333 | U9: 0.6200827725 | V9: 1506.801137 | W9: =$D$11/100*INDEX('RCAP-Transition Width'!$C$6:$AS$19, MATCH($D$9,'RCAP-Transition Width'!$C$6:$C$19,), MATCH(M9,'RCAP-Transition Width'!$C$6:$AS$6)) -> 924 | X9: 924 | Y9: =IF(D14="yes",VLOOKUP($D$9,'RCAP-Live Load'!$A$7:$T$18,12),0) -> 1080 | Z9: 2004 | AB9: 30 | AC9: 36 | AD9: 22 | AE9: 3.5 | AF9: 3.583333333 | AG9: 2.416666667
C10: Pipe Class, lb/lf/ft | D10: Class III (SUDAS Default) | F10: =LOOKUP(D10,AI4:AI5,AK4:AK5) -> (Iowa DOT: 2000D) | H10: D0.01 = | I10: =LOOKUP(D10,AI4:AI5,AJ4:AJ5) -> 1350 | M10: 4 | N10: 1296.969697 | O10: 951.1111111 | P10: 750.877193 | Q10: 509.5238095 | R10: 419.6078431 | S10: 297.2222222 | U10: 0.8073742971 | V10: 1961.919542 | W10: =$D$11/100*INDEX('RCAP-Transition Width'!$C$6:$AS$19, MATCH($D$9,'RCAP-Transition Width'!$C$6:$C$19,), MATCH(M10,'RCAP-Transition Width'!$C$6:$AS$6)) -> 1500 | X10: 1500 | Y10: =IF(D14="yes",VLOOKUP($D$9,'RCAP-Live Load'!$A$7:$T$18,14),0) -> 640 | Z10: 2140 | AB10: 36 | AC10: 44 | AD10: 27 | AE10: 4 | AF10: 4.333333333 | AG10: 2.916666667
C11: Unit Weight of Soil, pcf | D11: 120 | M11: 5 | N11: 1324.848485 | O11: 971.5555556 | P11: 767.0175439 | Q11: 520.4761905 | R11: 428.627451 | S11: 303.6111111 | U11: 0.9857295686 | V11: 2395.322852 | W11: =$D$11/100*INDEX('RCAP-Transition Width'!$C$6:$AS$19, MATCH($D$9,'RCAP-Transition Width'!$C$6:$C$19,), MATCH(M11,'RCAP-Transition Width'!$C$6:$AS$6)) -> 1656 | X11: 1656 | Y11: =IF(D14="yes",VLOOKUP($D$9,'RCAP-Live Load'!$A$7:$T$18,15),0) -> 530 | Z11: 2186 | AB11: 42 | AC11: 51 | AD11: 31 | AE11: 4.5 | AF11: 5 | AG11: 3.333333333
C12: ku' | D12: 0.110 - Wet Clay | F12: =LOOKUP(D12,AP4:AP7,AQ4:AQ7) -> 0.11 | M12: 6 | N12: Fail | O12: 1067.555556 | P12: 842.8070175 | Q12: 571.9047619 | R12: 470.9803922 | S12: 333.6111111 | U12: 1.155574963 | V12: 2808.047161 | W12: =$D$11/100*INDEX('RCAP-Transition Width'!$C$6:$AS$19, MATCH($D$9,'RCAP-Transition Width'!$C$6:$C$19,), MATCH(M12,'RCAP-Transition Width'!$C$6:$AS$6)) -> 1992 | X12: 1992 | Y12: =IF(D14="yes",VLOOKUP($D$9,'RCAP-Live Load'!$A$7:$T$18,16),0) -> 410 | Z12: 2402 | AB12: 48 | AC12: 58 | AD12: 36 | AE12: 5 | AF12: 5.666666667 | AG12: 3.833333333
C13: Trench Width | D13: =IF(ISNUMBER(G13),G13,MAX(1.25*J9+1,4.5)) -> 4.5 | H13: User defined trench width | M13: 7 | N13: Fail | O13: 1186.666667 | P13: 936.8421053 | Q13: 635.7142857 | R13: 523.5294118 | S13: 370.8333333 | U13: 1.317316513 | V13: 3201.079127 | W13: =$D$11/100*INDEX('RCAP-Transition Width'!$C$6:$AS$19, MATCH($D$9,'RCAP-Transition Width'!$C$6:$C$19,), MATCH(M13,'RCAP-Transition Width'!$C$6:$AS$6)) -> 2340 | X13: 2340 | Y13: =IF(D14="yes",VLOOKUP($D$9,'RCAP-Live Load'!$A$7:$T$18,17),0) -> 330 | Z13: 2670 | AB13: 54 | AC13: 65 | AD13: 40 | AE13: 5.5 | AF13: 6.333333333 | AG13: 4.25
C14: Consider Live Load? | D14: Yes | H14: (leave blank if using SUDAS default) | M14: 8 | N14: Fail | O14: 1309.333333 | P14: 1033.684211 | Q14: 701.4285714 | R14: 577.6470588 | S14: 409.1666667 | U14: 1.471340878 | V14: 3575.358333 | W14: =$D$11/100*INDEX('RCAP-Transition Width'!$C$6:$AS$19, MATCH($D$9,'RCAP-Transition Width'!$C$6:$C$19,), MATCH(M14,'RCAP-Transition Width'!$C$6:$AS$6)) -> 2676 | X14: 2676 | Y14: =IF(D14="yes",VLOOKUP($D$9,'RCAP-Live Load'!$A$7:$T$18,18),0) -> 270 | Z14: 2946 | AB14: 60 | AC14: 73 | AD14: 45 | AE14: 6 | AF14: 7.083333333 | AG14: 4.75
M15: 9 | N15: Fail | O15: Fail | P15: 1134.035088 | Q15: 769.5238095 | R15: 633.7254902 | S15: 448.8888889 | U15: 1.618016268 | V15: 3931.779531 | W15: =$D$11/100*INDEX('RCAP-Transition Width'!$C$6:$AS$19, MATCH($D$9,'RCAP-Transition Width'!$C$6:$C$19,), MATCH(M15,'RCAP-Transition Width'!$C$6:$AS$6)) -> 3012 | X15: 3012 | Y15: =IF(D14="yes",VLOOKUP($D$9,'RCAP-Live Load'!$A$7:$T$18,19),0) -> 220 | Z15: 3232 | AB15: 72 | AC15: 88 | AD15: 54 | AE15: 7 | AF15: 8.5 | AG15: 5.666666667
M16: 10 | N16: Fail | O16: Fail | P16: 1174.736842 | Q16: 797.1428571 | R16: 656.4705882 | S16: 465 | U16: 1.757693325 | V16: 4271.19478 | W16: =$D$11/100*INDEX('RCAP-Transition Width'!$C$6:$AS$19, MATCH($D$9,'RCAP-Transition Width'!$C$6:$C$19,), MATCH(M16,'RCAP-Transition Width'!$C$6:$AS$6)) -> 3348 | X16: 3348 | Z16: 3348 | AB16: 84 | AC16: 102 | AD16: 62 | AE16: 8 | AF16: 9.833333333 | AG16: 6.5
M17: 11 | N17: =IF(($Z17/(N$6*($G$9/12)))>$I$10,"Fail",($Z17/(N$6*($G$9/12)))) -> Fail | O17: Fail | P17: 1296.842105 | Q17: 880 | R17: 724.7058824 | S17: 513.3333333 | U17: 1.890705962 | V17: 4594.415487 | W17: =$D$11/100*INDEX('RCAP-Transition Width'!$C$6:$AS$19, MATCH($D$9,'RCAP-Transition Width'!$C$6:$C$19,), MATCH(M17,'RCAP-Transition Width'!$C$6:$AS$6)) -> 3696 | X17: 3696 | Z17: 3696
C18: Results: | M18: 12 | N18: Fail | O18: Fail | P18: Fail | Q18: 960 | R18: 790.5882353 | S18: 560 | U18: 2.017372157 | V18: 4902.214342 | W18: =$D$11/100*INDEX('RCAP-Transition Width'!$C$6:$AS$19, MATCH($D$9,'RCAP-Transition Width'!$C$6:$C$19,), MATCH(M18,'RCAP-Transition Width'!$C$6:$AS$6)) -> 4032 | X18: 4032 | Z18: 4032
M19: 13 | N19: Fail | O19: Fail | P19: Fail | Q19: 1040 | R19: 856.4705882 | S19: 606.6666667 | U19: 2.137994721 | V19: 5195.327171 | W19: =$D$11/100*INDEX('RCAP-Transition Width'!$C$6:$AS$19, MATCH($D$9,'RCAP-Transition Width'!$C$6:$C$19,), MATCH(M19,'RCAP-Transition Width'!$C$6:$AS$6)) -> 4368 | X19: 4368 | Z19: 4368
D20: Bedding Type: | M20: 14 | N20: Fail | O20: Fail | P20: Fail | Q20: 1122.857143 | R20: 924.7058824 | S20: 655 | U20: 2.252862011 | V20: 5474.454688 | W20: =$D$11/100*INDEX('RCAP-Transition Width'!$C$6:$AS$19, MATCH($D$9,'RCAP-Transition Width'!$C$6:$C$19,), MATCH(M20,'RCAP-Transition Width'!$C$6:$AS$6)) -> 4716 | X20: 4716 | Z20: 4716
D21: SUDAS R-5 | M21: 15 | N21: Fail | O21: Fail | P21: Fail | Q21: 1202.857143 | R21: 990.5882353 | S21: 701.6666667 | U21: 2.362248631 | V21: 5740.264174 | W21: =$D$11/100*INDEX('RCAP-Transition Width'!$C$6:$AS$19, MATCH($D$9,'RCAP-Transition Width'!$C$6:$C$19,), MATCH(M21,'RCAP-Transition Width'!$C$6:$AS$6)) -> 5052 | X21: 5052 | Z21: 5052
D22: Bedding Factor = 1.9 | M22: 16 | N22: Fail | O22: Fail | P22: Fail | Q22: 1282.857143 | R22: 1056.470588 | S22: 748.3333333 | U22: 2.46641608 | V22: 5993.391075 | W22: =$D$11/100*INDEX('RCAP-Transition Width'!$C$6:$AS$19, MATCH($D$9,'RCAP-Transition Width'!$C$6:$C$19,), MATCH(M22,'RCAP-Transition Width'!$C$6:$AS$6)) -> 5388 | X22: 5388 | Z22: 5388
D23: Click for Cross Section | M23: 17 | N23: Fail | O23: Fail | P23: Fail | Q23: Fail | R23: 1122.352941 | S23: 795 | U23: 2.565613381 | V23: 6234.440516 | W23: =$D$11/100*INDEX('RCAP-Transition Width'!$C$6:$AS$19, MATCH($D$9,'RCAP-Transition Width'!$C$6:$C$19,), MATCH(M23,'RCAP-Transition Width'!$C$6:$AS$6)) -> 5724 | X23: 5724 | Z23: 5724
C24: Allowable Depth | D24: Min. | E24: Max | M24: 18 | N24: Fail | O24: Fail | P24: Fail | Q24: Fail | R24: 1190.588235 | S24: 843.3333333 | U24: 2.660077674 | V24: 6463.988748 | W24: =$D$11/100*INDEX('RCAP-Transition Width'!$C$6:$AS$19, MATCH($D$9,'RCAP-Transition Width'!$C$6:$C$19,), MATCH(M24,'RCAP-Transition Width'!$C$6:$AS$6)) -> 6072 | X24: 6072 | Z24: 6072
D25: =IF(ISNUMBER(O7),M7,IF(ISNUMBER(O8),M8,IF(ISNUMBER(O9),M9,IF(ISNUMBER(O10),M10,IF(ISNUMBER(O11),M11,IF(ISNUMBER(O12),M12)))))) -> 2 | E25: =LOOKUP(MAX(P$7:P$46),P$7:P$46,$M$7:$M$46) -> 11 | M25: 19 | N25: Fail | O25: Fail | P25: Fail | Q25: Fail | R25: 1254.117647 | S25: 888.3333333 | U25: 2.750034786 | V25: 6682.584531 | W25: =$D$11/100*INDEX('RCAP-Transition Width'!$C$6:$AS$19, MATCH($D$9,'RCAP-Transition Width'!$C$6:$C$19,), MATCH(M25,'RCAP-Transition Width'!$C$6:$AS$6)) -> 6396 | X25: 6396 | Z25: 6396
M26: 20 | N26: Fail | O26: Fail | P26: Fail | Q26: Fail | R26: 1320 | S26: 935 | U26: 2.835699769 | V26: 6890.750438 | W26: =$D$11/100*INDEX('RCAP-Transition Width'!$C$6:$AS$19, MATCH($D$9,'RCAP-Transition Width'!$C$6:$C$19,), MATCH(M26,'RCAP-Transition Width'!$C$6:$AS$6)) -> 6732 | X26: 6732 | Z26: 6732
C27: Notes: | M27: 21 | N27: =IF(($Z27/(N$6*($G$9/12)))>$I$10,"Fail",($Z27/(N$6*($G$9/12)))) -> Fail | O27: Fail | P27: Fail | Q27: Fail | R27: Fail | S27: 983.3333333 | U27: 2.917277412 | V27: 7088.984111 | W27: =$D$11/100*INDEX('RCAP-Transition Width'!$C$6:$AS$19, MATCH($D$9,'RCAP-Transition Width'!$C$6:$C$19,), MATCH(M27,'RCAP-Transition Width'!$C$6:$AS$6)) -> 7080 | X27: 7080 | Z27: 7080
M28: 22 | N28: Fail | O28: Fail | P28: Fail | Q28: Fail | R28: Fail | S28: 1010.799923 | U28: 2.994962736 | V28: 7277.759448 | W28: =$D$11/100*INDEX('RCAP-Transition Width'!$C$6:$AS$19, MATCH($D$9,'RCAP-Transition Width'!$C$6:$C$19,), MATCH(M28,'RCAP-Transition Width'!$C$6:$AS$6)) -> 7428 | X28: 7277.759448 | Z28: 7277.759448
C29: This spreadsheet is a tool for use in determining the allowable depth of bury for RCP based upon the Marston / Spangler method | M29: 23 | N29: Fail | O29: Fail | P29: Fail | Q29: Fail | R29: Fail | S29: 1035.767741 | U29: 3.068941455 | V29: 7457.527735 | W29: =$D$11/100*INDEX('RCAP-Transition Width'!$C$6:$AS$19, MATCH($D$9,'RCAP-Transition Width'!$C$6:$C$19,), MATCH(M29,'RCAP-Transition Width'!$C$6:$AS$6)) -> 7752 | X29: 7457.527735 | Z29: 7457.527735
C30: described in the 2000 Concrete Pipe Design Manual. The engineer should have a thorough understanding of this methodology | M30: 24 | N30: Fail | O30: Fail | P30: Fail | Q30: Fail | R30: Fail | S30: 1059.544267 | U30: 3.139390422 | V30: 7628.718726 | W30: =$D$11/100*INDEX('RCAP-Transition Width'!$C$6:$AS$19, MATCH($D$9,'RCAP-Transition Width'!$C$6:$C$19,), MATCH(M30,'RCAP-Transition Width'!$C$6:$AS$6)) -> 8088 | X30: 7628.718726 | Z30: 7628.718726
C31: prior to using this spreadsheet and is responsible for verifying the results. | M31: 25 | N31: Fail | O31: Fail | P31: Fail | Q31: Fail | R31: Fail | S31: 1082.186343 | U31: 3.206478053 | V31: 7791.741669 | W31: =$D$11/100*INDEX('RCAP-Transition Width'!$C$6:$AS$19, MATCH($D$9,'RCAP-Transition Width'!$C$6:$C$19,), MATCH(M31,'RCAP-Transition Width'!$C$6:$AS$6)) -> 8436 | X31: 7791.741669 | Z31: 7791.741669
M32: 26 | N32: Fail | O32: Fail | P32: Fail | Q32: Fail | R32: Fail | S32: 1103.748096 | U32: 3.270364728 | V32: 7946.986288 | W32: =$D$11/100*INDEX('RCAP-Transition Width'!$C$6:$AS$19, MATCH($D$9,'RCAP-Transition Width'!$C$6:$C$19,), MATCH(M32,'RCAP-Transition Width'!$C$6:$AS$6)) -> 8760 | X32: 7946.986288 | Z32: 7946.986288
C33: For additional information and to view a copy of the Concrete Pipe Design Manual, contact the American Concrete Pipe Association. | M33: 27 | N33: Fail | O33: Fail | P33: Fail | Q33: Fail | R33: Fail | S33: 1124.281071 | U33: 3.331203173 | V33: 8094.82371 | W33: =$D$11/100*INDEX('RCAP-Transition Width'!$C$6:$AS$19, MATCH($D$9,'RCAP-Transition Width'!$C$6:$C$19,), MATCH(M33,'RCAP-Transition Width'!$C$6:$AS$6)) -> 9120 | X33: 8094.82371 | Z33: 8094.82371
M34: 28 | N34: Fail | O34: Fail | P34: Fail | Q34: Fail | R34: Fail | S34: 1143.834355 | U34: 3.389138829 | V34: 8235.607355 | W34: =$D$11/100*INDEX('RCAP-Transition Width'!$C$6:$AS$19, MATCH($D$9,'RCAP-Transition Width'!$C$6:$C$19,), MATCH(M34,'RCAP-Transition Width'!$C$6:$AS$6)) -> 9444 | X34: 8235.607355 | Z34: 8235.607355
M35: 29 | N35: Fail | O35: Fail | P35: Fail | Q35: Fail | R35: Fail | S35: 1162.454692 | U35: 3.444310198 | V35: 8369.673781 | W35: =$D$11/100*INDEX('RCAP-Transition Width'!$C$6:$AS$19, MATCH($D$9,'RCAP-Transition Width'!$C$6:$C$19,), MATCH(M35,'RCAP-Transition Width'!$C$6:$AS$6)) -> 9792 | X35: 8369.673781 | Z35: 8369.673781
M36: 30 | N36: Fail | O36: Fail | P36: Fail | Q36: Fail | R36: Fail | S36: 1180.186595 | U36: 3.496849172 | V36: 8497.343487 | W36: =$D$11/100*INDEX('RCAP-Transition Width'!$C$6:$AS$19, MATCH($D$9,'RCAP-Transition Width'!$C$6:$C$19,), MATCH(M36,'RCAP-Transition Width'!$C$6:$AS$6)) -> 10140 | X36: 8497.343487 | Z36: 8497.343487
M37: 31 | N37: =IF(($Z37/(N$6*($G$9/12)))>$I$10,"Fail",($Z37/(N$6*($G$9/12)))) -> Fail | O37: Fail | P37: Fail | Q37: Fail | R37: Fail | S37: 1197.072455 | U37: 3.54688135 | V37: 8618.921679 | W37: =$D$11/100*INDEX('RCAP-Transition Width'!$C$6:$AS$19, MATCH($D$9,'RCAP-Transition Width'!$C$6:$C$19,), MATCH(M37,'RCAP-Transition Width'!$C$6:$AS$6)) -> 10452 | X37: 8618.921679 | Z37: 8618.921679
M38: 32 | N38: Fail | O38: Fail | P38: Fail | Q38: Fail | R38: Fail | S38: 1213.152639 | U38: 3.594526339 | V38: 8734.699003 | W38: =$D$11/100*INDEX('RCAP-Transition Width'!$C$6:$AS$19, MATCH($D$9,'RCAP-Transition Width'!$C$6:$C$19,), MATCH(M38,'RCAP-Transition Width'!$C$6:$AS$6)) -> 10800 | X38: 8734.699003 | Z38: 8734.699003
M39: 33 | N39: Fail | O39: Fail | P39: Fail | Q39: Fail | R39: Fail | S39: 1228.465588 | U39: 3.63989804 | V39: 8844.952236 | W39: =$D$11/100*INDEX('RCAP-Transition Width'!$C$6:$AS$19, MATCH($D$9,'RCAP-Transition Width'!$C$6:$C$19,), MATCH(M39,'RCAP-Transition Width'!$C$6:$AS$6)) -> 11136 | X39: 8844.952236 | Z39: 8844.952236
M40: 34 | N40: Fail | O40: Fail | P40: Fail | Q40: Fail | R40: Fail | S40: 1243.04791 | U40: 3.683104917 | V40: 8949.944949 | W40: =$D$11/100*INDEX('RCAP-Transition Width'!$C$6:$AS$19, MATCH($D$9,'RCAP-Transition Width'!$C$6:$C$19,), MATCH(M40,'RCAP-Transition Width'!$C$6:$AS$6)) -> 11472 | X40: 8949.944949 | Z40: 8949.944949
M41: 35 | N41: Fail | O41: Fail | P41: Fail | Q41: Fail | R41: Fail | S41: 1256.934464 | U41: 3.724250263 | V41: 9049.928138 | W41: =$D$11/100*INDEX('RCAP-Transition Width'!$C$6:$AS$19, MATCH($D$9,'RCAP-Transition Width'!$C$6:$C$19,), MATCH(M41,'RCAP-Transition Width'!$C$6:$AS$6)) -> 11820 | X41: 9049.928138 | Z41: 9049.928138
M42: 36 | N42: Fail | O42: Fail | P42: Fail | Q42: Fail | R42: Fail | S42: 1270.158448 | U42: 3.763432437 | V42: 9145.140822 | W42: =$D$11/100*INDEX('RCAP-Transition Width'!$C$6:$AS$19, MATCH($D$9,'RCAP-Transition Width'!$C$6:$C$19,), MATCH(M42,'RCAP-Transition Width'!$C$6:$AS$6)) -> 12144 | X42: 9145.140822 | Z42: 9145.140822
M43: 37 | N43: Fail | O43: Fail | P43: Fail | Q43: Fail | R43: Fail | S43: 1282.751475 | U43: 3.80074511 | V43: 9235.810617 | W43: =$D$11/100*INDEX('RCAP-Transition Width'!$C$6:$AS$19, MATCH($D$9,'RCAP-Transition Width'!$C$6:$C$19,), MATCH(M43,'RCAP-Transition Width'!$C$6:$AS$6)) -> 12480 | X43: 9235.810617 | Z43: 9235.810617
M44: 38 | N44: Fail | O44: Fail | P44: Fail | Q44: Fail | R44: Fail | S44: 1294.74365 | U44: 3.836277481 | V44: 9322.154279 | W44: =$D$11/100*INDEX('RCAP-Transition Width'!$C$6:$AS$19, MATCH($D$9,'RCAP-Transition Width'!$C$6:$C$19,), MATCH(M44,'RCAP-Transition Width'!$C$6:$AS$6)) -> 12840 | X44: 9322.154279 | Z44: 9322.154279
M45: 39 | N45: Fail | O45: Fail | P45: Fail | Q45: Fail | R45: Fail | S45: 1306.163641 | U45: 3.870114493 | V45: 9404.378219 | W45: =$D$11/100*INDEX('RCAP-Transition Width'!$C$6:$AS$19, MATCH($D$9,'RCAP-Transition Width'!$C$6:$C$19,), MATCH(M45,'RCAP-Transition Width'!$C$6:$AS$6)) -> 13176 | X45: 9404.378219 | Z45: 9404.378219
M46: 40 | N46: Fail | O46: Fail | P46: Fail | Q46: Fail | R46: Fail | S46: 1317.03875 | U46: 3.902337038 | V46: 9482.679003 | W46: =$D$11/100*INDEX('RCAP-Transition Width'!$C$6:$AS$19, MATCH($D$9,'RCAP-Transition Width'!$C$6:$C$19,), MATCH(M46,'RCAP-Transition Width'!$C$6:$AS$6)) -> 13524 | X46: 9482.679003 | Z46: 9482.679003

Sheet RCAP-Transition Width
A2: BACKFILL LOADS ON CIRCULAR RIGID PIPE AT TRANITION WIDTH
A3: 100 pcf backfill material*
F5: Height of Backfill H above top of pipe, feet
F6: 1 | G6: 2 | H6: 3 | I6: 4 | J6: 5 | K6: 6 | L6: 7 | M6: 8 | N6: 9 | O6: 10 | P6: 11 | Q6: 12 | R6: 13 | S6: 14 | T6: 15 | U6: 16 | V6: 17 | W6: 18 | X6: 19 | Y6: 20 | Z6: 21 | AA6: 22 | AB6: 23 | AC6: 24 | AD6: 25 | AE6: 26 | AF6: 27 | AG6: 28 | AH6: 29 | AI6: 30 | AJ6: 31 | AK6: 32 | AL6: 33 | AM6: 34 | AN6: 35 | AO6: 36 | AP6: 37 | AQ6: 38 | AR6: 39 | AS6: 40
A7: Rise | B7: Span | C7: Equiv. Pipe dia., in | D7: Wall thickness | E7: Outside span
A8: 11 | B8: 18 | C8: 15 | D8: 2.25 | E8: =(B8+2*D8)/12 -> 1.875 | F8: =ROUND(FORECAST($E8,F$39:F$40,$E$39:$E$40),-1) -> 210 | G8: =ROUND(FORECAST($E$8,G$39:G$40,$E$39:$E$40),-1) -> 460 | H8: 770 | I8: 1250 | J8: 1380 | K8: 1660 | L8: 1950 | M8: 2230 | N8: 2510 | O8: 2790 | P8: 3080 | Q8: 3360 | R8: 3640 | S8: 3930 | T8: 4210 | U8: 4490 | V8: 4770 | W8: 5060 | X8: 5330 | Y8: 5610 | Z8: 5900 | AA8: 6190 | AB8: 6460 | AC8: 6740 | AD8: 7030 | AE8: 7300 | AF8: 7600 | AG8: 7870 | AH8: 8160 | AI8: 8450 | AJ8: 8710 | AK8: 9000 | AL8: 9280 | AM8: 9560 | AN8: 9850 | AO8: 10120 | AP8: 10400 | AQ8: 10700 | AR8: 10980 | AS8: 11270
A9: 13 | B9: 22 | C9: 18 | D9: 2.5 | E9: 2.25 | F9: =ROUND(FORECAST($E9,F$41:F$42,$E$41:$E$42),-1) -> 250 | G9: 540 | H9: 880 | I9: 1290 | J9: 1650 | K9: 1980 | L9: 2330 | M9: 2670 | N9: 3000 | O9: 3340 | P9: 3680 | Q9: 4020 | R9: 4360 | S9: 4700 | T9: 5030 | U9: 5370 | V9: 5710 | W9: 6040 | X9: 6370 | Y9: 6720 | Z9: 7070 | AA9: 7410 | AB9: 7730 | AC9: 8070 | AD9: 8410 | AE9: 8740 | AF9: 9090 | AG9: 9440 | AH9: 9770 | AI9: 10100 | AJ9: 10450 | AK9: 10790 | AL9: 11120 | AM9: 11460 | AN9: 11800 | AO9: 12130 | AP9: 12460 | AQ9: 12810 | AR9: 13160 | AS9: 13500
A10: 15 | B10: 26 | C10: 21 | D10: 2.75 | E10: 2.625 | F10: =ROUND(FORECAST($E10,F$42:F$43,$E$42:$E$43),-1) -> 280 | G10: 610 | H10: 990 | I10: 1420 | J10: 1890 | K10: 2290 | L10: 2700 | M10: 3100 | N10: 3490 | O10: 3890 | P10: 4280 | Q10: 4680 | R10: 5070 | S10: 5470 | T10: 5860 | U10: 6250 | V10: 6650 | W10: 7040 | X10: 7430 | Y10: 7820 | Z10: 8230 | AA10: 8620 | AB10: 9020 | AC10: 9410 | AD10: 9800 | AE10: 10200 | AF10: 10590 | AG10: 10970 | AH10: 11370 | AI10: 11780 | AJ10: 12150 | AK10: 12560 | AL10: 12950 | AM10: 13350 | AN10: 13750 | AO10: 14130 | AP10: 14550 | AQ10: 14920 | AR10: 15320 | AS10: 15720
A11: 18 | B11: 29 | C11: 24 | D11: 3 | E11: 2.916666667 | F11: =ROUND(FORECAST($E11,F$43:F$44,$E$43:$E$44),-1) -> 310 | G11: 670 | H11: 1070 | I11: 1530 | J11: 2040 | K11: 2550 | L11: 2990 | M11: 3430 | N11: 3870 | O11: 4310 | P11: 4750 | Q11: 5190 | R11: 5620 | S11: 6060 | T11: 6500 | U11: 6940 | V11: 7380 | W11: 7820 | X11: 8250 | Y11: 8690 | Z11: 9130 | AA11: 9560 | AB11: 10000 | AC11: 10440 | AD11: 10880 | AE11: 11330 | AF11: 11750 | AG11: 12170 | AH11: 12620 | AI11: 13070 | AJ11: 13490 | AK11: 13920 | AL11: 14380 | AM11: 14810 | AN11: 15270 | AO11: 15700 | AP11: 16140 | AQ11: 16580 | AR11: 17000 | AS11: 17450
A12: 22 | B12: 36 | C12: 30 | D12: 3.5 | E12: 3.583333333 | F12: =ROUND(FORECAST($E12,F$45:F$46,$E$45:$E$46),-1) -> 380 | G12: 800 | H12: 1270 | I12: 1790 | J12: 2360 | K12: 2990 | L12: 3650 | M12: 4200 | N12: 4740 | O12: 5280 | P12: 5820 | Q12: 6360 | R12: 6900 | S12: 7440 | T12: 7980 | U12: 8520 | V12: 9060 | W12: 9600 | X12: 10140 | Y12: 10680 | Z12: 10830 | AA12: 11760 | AB12: 12290 | AC12: 12830 | AD12: 13370 | AE12: 13920 | AF12: 14460 | AG12: 15000 | AH12: 15530 | AI12: 16070 | AJ12: 16610 | AK12: 17130 | AL12: 17670 | AM12: 18210 | AN12: 18760 | AO12: 19300 | AP12: 19830 | AQ12: 20370 | AR12: 20900 | AS12: 21450
A13: 27 | B13: 44 | C13: 36 | D13: 4 | E13: 4.333333333 | F13: =ROUND(FORECAST($E13,F$47:F$48,$E$47:$E$48),-1) -> 450 | G13: 950 | H13: 1490 | I13: 2080 | J13: 2710 | K13: 3410 | L13: 4170 | M13: 4990 | N13: 5680 | O13: 6340 | P13: 7000 | Q13: 7650 | R13: 8310 | S13: 8960 | T13: 9610 | U13: 10260 | V13: 10920 | W13: 11570 | X13: 12210 | Y13: 12870 | Z13: 13530 | AA13: 14170 | AB13: 14830 | AC13: 15480 | AD13: 16130 | AE13: 16790 | AF13: 17420 | AG13: 18080 | AH13: 18730 | AI13: 19370 | AJ13: 20050 | AK13: 20670 | AL13: 21320 | AM13: 21960 | AN13: 22620 | AO13: 23270 | AP13: 23950 | AQ13: 24580 | AR13: 25240 | AS13: 25890
A14: 31 | B14: 51 | C14: 42 | D14: 4.5 | E14: 5 | F14: =ROUND(FORECAST($E14,F$48:F$49,$E$48:$E$49),-1) -> 520 | G14: 1080 | H14: 1680 | I14: 2340 | J14: 3030 | K14: 3790 | L14: 4600 | M14: 5480 | N14: 6420 | O14: 7260 | P14: 8040 | Q14: 8790 | R14: 9550 | S14: 10300 | T14: 11060 | U14: 11810 | V14: 12560 | W14: 13310 | X14: 14070 | Y14: 14820 | Z14: 15570 | AA14: 16320 | AB14: 17080 | AC14: 17820 | AD14: 18580 | AE14: 19320 | AF14: 20070 | AG14: 20820 | AH14: 21570 | AI14: 22330 | AJ14: 23090 | AK14: 23830 | AL14: 24570 | AM14: 25330 | AN14: 26090 | AO14: 26830 | AP14: 27600 | AQ14: 28360 | AR14: 29090 | AS14: 29820
A15: 36 | B15: 58 | C15: 48 | D15: 5 | E15: 5.666666667 | F15: =ROUND(FORECAST($E15,F$49:F$50,$E$49:$E$50),-1) -> 590 | G15: 1210 | H15: 1880 | I15: 2600 | J15: 3360 | K15: 4170 | L15: 5050 | M15: 5980 | N15: 6970 | O15: 8030 | P15: 9030 | Q15: 9920 | R15: 10780 | S15: 11640 | T15: 12500 | U15: 13350 | V15: 14210 | W15: 15070 | X15: 15920 | Y15: 16770 | Z15: 17620 | AA15: 18480 | AB15: 19330 | AC15: 20180 | AD15: 21030 | AE15: 21880 | AF15: 22740 | AG15: 23600 | AH15: 24440 | AI15: 25290 | AJ15: 26150 | AK15: 27010 | AL15: 27850 | AM15: 28700 | AN15: 29540 | AO15: 30400 | AP15: 31270 | AQ15: 32110 | AR15: 32950 | AS15: 33800
A16: 40 | B16: 65 | C16: 54 | D16: 5.5 | E16: 6.333333333 | F16: =ROUND(FORECAST($E16,F$50:F$51,$E$50:$E$51),-1) -> 650 | G16: 1350 | H16: 2080 | I16: 2860 | J16: 3680 | K16: 4560 | L16: 5490 | M16: 6480 | N16: 7530 | O16: 8640 | P16: 9810 | Q16: 10970 | R16: 11990 | S16: 12950 | T16: 13920 | U16: 14870 | V16: 15830 | W16: 16790 | X16: 17740 | Y16: 18690 | Z16: 19650 | AA16: 20600 | AB16: 21550 | AC16: 22500 | AD16: 23450 | AE16: 24410 | AF16: 25370 | AG16: 26310 | AH16: 27280 | AI16: 28220 | AJ16: 29190 | AK16: 30130 | AL16: 31070 | AM16: 32040 | AN16: 32980 | AO16: 33930 | AP16: 34890 | AQ16: 35840 | AR16: 36790 | AS16: 37720
A17: 45 | B17: 73 | C17: 60 | D17: 6 | E17: 7.083333333 | F17: =ROUND(FORECAST($E17,F$51:F$52,$E$51:$E$52),-1) -> 730 | G17: 1500 | H17: 2310 | I17: 3160 | J17: 4060 | K17: 5000 | L17: 6000 | M17: 7060 | N17: 8170 | O17: 9340 | P17: 10570 | Q17: 11870 | R17: 13210 | S17: 14430 | T17: 15510 | U17: 16590 | V17: 17660 | W17: 18730 | X17: 19800 | Y17: 20870 | Z17: 21940 | AA17: 23000 | AB17: 24080 | AC17: 25130 | AD17: 26210 | AE17: 27270 | AF17: 28340 | AG17: 29410 | AH17: 30480 | AI17: 31540 | AJ17: 30320 | AK17: 31300 | AL17: 32280 | AM17: 33290 | AN17: 34270 | AO17: 35270 | AP17: 36240 | AQ17: 37250 | AR17: 38230 | AS17: 39190
A18: 54 | B18: 88 | C18: 72 | D18: 7 | E18: 8.5 | F18: =ROUND(FORECAST($E18,F$54:F$55,$E$54:$E$55),-1) -> 870 | G18: 1780 | H18: 2730 | I18: 3720 | J18: 4750 | K18: 5840 | L18: 6970 | M18: 8150 | N18: 9390 | O18: 10680 | P18: 12030 | Q18: 13440 | R18: 14920 | S18: 16460 | T18: 18070 | U18: 19640 | V18: 21020 | W18: 22320 | X18: 23610 | Y18: 24900 | Z18: 26180 | AA18: 27470 | AB18: 28760 | AC18: 30040 | AD18: 31330 | AE18: 32600 | AF18: 33880 | AG18: 35150 | AH18: 36450 | AI18: 37710 | AJ18: 39000 | AK18: 40270 | AL18: 41530 | AM18: 42840 | AN18: 44110 | AO18: 45390 | AP18: 46680 | AQ18: 47950 | AR18: 49240 | AS18: 50490
A19: 62 | B19: 102 | C19: 84 | D19: 8 | E19: 9.833333333 | F19: =ROUND(FORECAST($E19,F$56:F$57,$E$56:$E$57),-1) -> 1000 | G19: 2040 | H19: 3130 | I19: 4250 | J19: 5420 | K19: 6630 | L19: 7890 | M19: 9200 | N19: 10560 | O19: 11970 | P19: 13430 | Q19: 14960 | R19: 16540 | S19: 18180 | T19: 19890 | U19: 21670 | V19: 23510 | W19: 25390 | X19: 27130 | Y19: 28640 | Z19: 30140 | AA19: 31630 | AB19: 33130 | AC19: 34610 | AD19: 36090 | AE19: 37570 | AF19: 39060 | AG19: 40540 | AH19: 42030 | AI19: 43510 | AJ19: 45000 | AK19: 46480 | AL19: 47960 | AM19: 49430 | AN19: 50910 | AO19: 52390 | AP19: 53870 | AQ19: 55350 | AR19: 56820 | AS19: 58310
B20: *For backfill weighing 110 pcf, increase loads 10%, 120pcf, 20%; etc
A23: The preceding table is interpolated from the Transition width table for circular pipe using the outside span of the Arch instead of the outside diameter of the pipe.
B25: Ku= | F25: 0.19
B26: unit wt.= | F26: 100
A30: BACKFILL LOADS ON CIRCULAR RIGID PIPE AT TRANITION WIDTH
A31: 100 pcf backfill material*
F33: Height of Backfill H above top of pipe, feet
F34: 1 | G34: 2 | H34: 3 | I34: 4 | J34: 5 | K34: 6 | L34: 7 | M34: 8 | N34: 9 | O34: 10 | P34: 11 | Q34: 12 | R34: 13 | S34: 14 | T34: 15 | U34: 16 | V34: 17 | W34: 18 | X34: 19 | Y34: 20 | Z34: 21 | AA34: 22 | AB34: 23 | AC34: 24 | AD34: 25 | AE34: 26 | AF34: 27 | AG34: 28 | AH34: 29 | AI34: 30 | AJ34: 31 | AK34: 32 | AL34: 33 | AM34: 34 | AN34: 35 | AO34: 36 | AP34: 37 | AQ34: 38 | AR34: 39 | AS34: 40
B35: Pipe dia., in | E35: Do
B36: 8 | E36: =((B36/12+1)*2+B36)/12 -> 0.9444444444 | J36: 603 | K36: 724 | L36: 847 | M36: 969 | N36: 1088 | O36: 1213 | P36: 1332 | Q36: 1458 | R36: 1575 | S36: 1698 | T36: 1818 | U36: 1942 | V36: 2065 | W36: 2182 | X36: 2308 | Y36: 2429 | Z36: 2429 | AA36: 2553 | AB36: 2673 | AC36: 2910 | AD36: 2788 | AE36: 2910 | AF36: 3041 | AG36: 3398 | AH36: 3514 | AI36: 3646 | AJ36: 3776 | AK36: 3880 | AL36: 4004 | AM36: 4124 | AN36: 4241 | AO36: 4384 | AP36: 4495 | AQ36: 4603 | AR36: 4740 | AS36: 4877
B37: 10 | E37: 1.138888889 | J37: 743 | K37: 893 | L37: 1043 | M37: 1193 | N37: 1344 | O37: 1495 | P37: 1645 | Q37: 1795 | R37: 1946 | S37: 2094 | T37: 2241 | U37: 2395 | V37: 2547 | W37: 2698 | X37: 2842 | Y37: 2994 | Z37: 3150 | AA37: 3301 | AB37: 3445 | AC37: 3595 | AD37: 3739 | AE37: 3892 | AF37: 4041 | AG37: 4201 | AH37: 4340 | AI37: 4493 | AJ37: 4642 | AK37: 4786 | AL37: 4950 | AM37: 5085 | AN37: 5243 | AO37: 4397 | AP37: 5549 | AQ37: 5697 | AR37: 5842 | AS37: 5983
B38: 12 | E38: 1.333333333 | F38: =ROUND((EXP((2*$F$25*F$6/((($B38/12+1)*2+$B38)/12)))-1)/(2*$F$25)*(100)*((($B38/12+1)*2+$B38)/12)^2,0) -> 154 | G38: 359 | H38: 575 | I38: 775 | J38: 985 | K38: 1185 | L38: 1385 | M38: 1585 | N38: 1786 | O38: 1982 | P38: 2182 | Q38: 2385 | R38: 2581 | S38: 2785 | T38: 2986 | U38: 3186 | V38: 3385 | W38: 3588 | X38: 3780 | Y38: 3979 | Z38: 4177 | AA38: 4377 | AB38: 4581 | AC38: 4777 | AD38: 4979 | AE38: 5174 | AF38: 5377 | AG38: 5575 | AH38: 5784 | AI38: 5969 | AJ38: 6188 | AK38: 6381 | AL38: 6569 | AM38: 6774 | AN38: 6976 | AO38: 7173 | AP38: 7365 | AQ38: 7583 | AR38: 7765 | AS38: 7976
B39: 15 | E39: 1.625 | F39: 183 | G39: 414 | H39: =ROUND((EXP((2*$F$25*H$6/((($B39/12+1)*2+$B39)/12)))-1)/(2*$F$25)*(100)*((($B39/12+1)*2+$B39)/12)^2,0) -> 707 | I39: 945 | J39: 1203 | K39: 1448 | L39: 1692 | M39: 1938 | N39: 2183 | O39: 2429 | P39: 2672 | Q39: 2920 | R39: 3162 | S39: 3408 | T39: 3647 | U39: 3900 | V39: 4142 | W39: 4382 | X39: 4624 | Y39: 4870 | Z39: 5123 | AA39: 5368 | AB39: 5603 | AC39: 5851 | AD39: 6091 | AE39: 6350 | AF39: 6588 | AG39: 6833 | AH39: 7070 | AI39: 7319 | AJ39: 7561 | AK39: 7818 | AL39: 8046 | AM39: 8290 | AN39: 8556 | AO39: 8789 | AP39: 9045 | AQ39: 9265 | AR39: 9510 | AS39: 9785
B40: 18 | E40: 1.916666667 | F40: 212 | G40: 470 | H40: 786 | I40: 1300 | J40: 1411 | K40: 1700 | L40: 1989 | M40: 2277 | N40: 2566 | O40: 2855 | P40: 3145 | Q40: 3431 | R40: 3718 | S40: 4012 | T40: 4298 | U40: 4584 | V40: 4877 | W40: 5168 | X40: 5444 | Y40: 5737 | Z40: 6035 | AA40: 6324 | AB40: 6600 | AC40: 6887 | AD40: 7189 | AE40: 7455 | AF40: 7768 | AG40: 8044 | AH40: 8344 | AI40: 8636 | AJ40: 8901 | AK40: 9198 | AL40: 9488 | AM40: 9771 | AN40: 10070 | AO40: 10340 | AP40: 10630 | AQ40: 10940 | AR40: 11220 | AS40: 11520
B41: 21 | E41: 2.208333333 | F41: 241 | G41: 527 | H41: 867 | I41: =ROUND((EXP((2*$F$25*I$6/((($B41/12+1)*2+$B41)/12)))-1)/(2*$F$25)*(100)*((($B41/12+1)*2+$B41)/12)^2,0) -> 1271 | J41: 1617 | K41: 1951 | L41: 2284 | M41: 2617 | N41: 2950 | O41: 3282 | P41: 3612 | Q41: 3947 | R41: 4280 | S41: 4610 | T41: 4942 | U41: 5273 | V41: 5606 | W41: 5934 | X41: 6247 | Y41: 6598 | Z41: 6942 | AA41: 7273 | AB41: 7591 | AC41: 7916 | AD41: 8255 | AE41: 8582 | AF41: 8928 | AG41: 9266 | AH41: 9593 | AI41: 9910 | AJ41: 10260 | AK41: 10590 | AL41: 10920 | AM41: 11250 | AN41: 11580 | AO41: 11910 | AP41: 12230 | AQ41: 12580 | AR41: 12920 | AS41: 13250
B42: 24 | E42: 2.5 | F42: 270 | G42: 584 | H42: 950 | I42: 1376 | J42: 1819 | K42: 2166 | L42: 2576 | M42: 2954 | N42: 3331 | O42: 3705 | P42: 4081 | Q42: 4456 | R42: 4836 | S42: 5209 | T42: 5580 | U42: 5955 | V42: 6330 | W42: 6708 | X42: 7082 | Y42: 7454 | Z42: 7842 | AA42: 8217 | AB42: 8598 | AC42: 8965 | AD42: 9341 | AE42: 9704 | AF42: 10080 | AG42: 10450 | AH42: 10840 | AI42: 11220 | AJ42: 11580 | AK42: 11990 | AL42: 12330 | AM42: 12720 | AN42: 13090 | AO42: 13450 | AP42: 13860 | AQ42: 14210 | AR42: 14610 | AS42: 14970
B43: 27 | E43: 2.791666667 | F43: 299 | G43: 642 | H43: 1034 | I43: 1484 | J43: 1988 | K43: 2444 | L43: 2868 | M43: 3288 | N43: 3708 | O43: 4129 | P43: 4550 | Q43: 4968 | R43: 5385 | S43: 5809 | T43: 6229 | U43: 6641 | V43: 7069 | W43: 7489 | X43: 7900 | Y43: 8319 | Z43: 8737 | AA43: 9155 | AB43: 9577 | AC43: 10010 | AD43: 10420 | AE43: 10850 | AF43: 11260 | AG43: 11660 | AH43: 12080 | AI43: 12520 | AJ43: 12910 | AK43: 13330 | AL43: 13780 | AM43: 14180 | AN43: 14620 | AO43: 15040 | AP43: 15460 | AQ43: 15870 | AR43: 16270 | AS43: 16720
B44: 30 | E44: 3.083333333 | F44: 328 | G44: 699 | H44: 1119 | I44: 1594 | J44: 2119 | K44: 2686 | L44: 3155 | M44: 3620 | N44: 4085 | O44: 4551 | P44: 5015 | Q44: 5478 | R44: 5938 | S44: 6401 | T44: 6862 | U44: 7330 | V44: 7791 | W44: 8250 | X44: 8711 | Y44: 9179 | Z44: 9643 | AA44: 10110 | AB44: 10570 | AC44: 11020 | AD44: 11500 | AE44: 11960 | AF44: 12400 | AG44: 12860 | AH44: 13340 | AI44: 13810 | AJ44: 14270 | AK44: 14710 | AL44: 15180 | AM44: 15640 | AN44: 16140 | AO44: 16570 | AP44: 17050 | AQ44: 17520 | AR44: 17980 | AS44: 18430
B45: 33 | E45: 3.375 | F45: 357 | G45: 757 | H45: 1204 | I45: 1705 | J45: 2258 | K45: 2880 | L45: 3450 | M45: 3963 | N45: 4474 | O45: 4983 | P45: 5492 | Q45: 6003 | R45: 6512 | S45: 7019 | T45: 7526 | U45: 8034 | V45: 8542 | W45: 9045 | X45: 9559 | Y45: 10060 | Z45: 10580 | AA45: 11070 | AB45: 11580 | AC45: 12090 | AD45: 12610 | AE45: 13110 | AF45: 13630 | AG45: 14120 | AH45: 14630 | AI45: 15130 | AJ45: 15650 | AK45: 16150 | AL45: 16640 | AM45: 17170 | AN45: 17680 | AO45: 18180 | AP45: 18670 | AQ45: 19200 | AR45: 19730 | AS45: 20240
B46: 36 | E46: 3.666666667 | F46: 386 | G46: 815 | H46: 1290 | I46: 1817 | J46: 2394 | K46: 3038 | L46: 3730 | M46: 4289 | N46: 4846 | O46: 5401 | P46: 5952 | Q46: 6508 | R46: 7060 | S46: 7609 | T46: 8160 | U46: 8717 | V46: 9261 | W46: 9817 | X46: 10370 | Y46: 10930 | Z46: 10930 | AA46: 12030 | AB46: 12580 | AC46: 13120 | AD46: 13670 | AE46: 14240 | AF46: 14790 | AG46: 15350 | AH46: 15890 | AI46: 16450 | AJ46: 16990 | AK46: 17520 | AL46: 18080 | AM46: 18620 | AN46: 19190 | AO46: 19750 | AP46: 20300 | AQ46: 20840 | AR46: 21370 | AS46: 21940
B47: 42 | E47: 4.25 | F47: 445 | G47: 931 | H47: 1462 | I47: 2044 | J47: 2671 | K47: 3361 | L47: 4114 | M47: 4932 | N47: 5582 | O47: 6227 | P47: 6869 | Q47: 7510 | R47: 8150 | S47: 8789 | T47: 9434 | U47: 10070 | V47: 10710 | W47: 11350 | X47: 11980 | Y47: 12630 | Z47: 13270 | AA47: 13900 | AB47: 14550 | AC47: 15190 | AD47: 15830 | AE47: 16470 | AF47: 17090 | AG47: 17740 | AH47: 18380 | AI47: 19000 | AJ47: 19670 | AK47: 20280 | AL47: 20920 | AM47: 21540 | AN47: 22190 | AO47: 22830 | AP47: 23500 | AQ47: 24110 | AR47: 24760 | AS47: 25400
B48: 48 | E48: 4.833333333 | F48: 503 | G48: 1047 | H48: 1635 | I48: 2272 | J48: 2950 | K48: 3691 | L48: 4490 | M48: 5354 | N48: 6287 | O48: 7041 | P48: 7776 | Q48: 8508 | R48: 9235 | S48: 9966 | T48: 10690 | U48: 11420 | V48: 12150 | W48: 12870 | X48: 13600 | Y48: 14330 | Z48: 15060 | AA48: 15770 | AB48: 16510 | AC48: 17230 | AD48: 17960 | AE48: 18680 | AF48: 19400 | AG48: 20120 | AH48: 20850 | AI48: 21590 | AJ48: 22320 | AK48: 23020 | AL48: 23740 | AM48: 24490 | AN48: 25220 | AO48: 25930 | AP48: 26680 | AQ48: 27410 | AR48: 28130 | AS48: 28820
B49: 54 | E49: 5.416666667 | F49: 561 | G49: 1163 | H49: 1809 | I49: 2501 | J49: 3238 | K49: 4030 | L49: 4880 | M49: 5790 | N49: 6765 | O49: 7809 | P49: 8683 | Q49: 9507 | R49: 10330 | S49: 11150 | T49: 11970 | U49: 12780 | V49: 13600 | W49: 14420 | X49: 15230 | Y49: 16050 | Z49: 16860 | AA49: 17680 | AB49: 18490 | AC49: 19310 | AD49: 20120 | AE49: 20930 | AF49: 21750 | AG49: 22580 | AH49: 23380 | AI49: 24190 | AJ49: 25010 | AK49: 25840 | AL49: 26650 | AM49: 27440 | AN49: 28250 | AO49: 29090 | AP49: 29910 | AQ49: 30720 | AR49: 31500 | AS49: 32330
B50: 60 | E50: 6 | F50: 619 | G50: 1279 | H50: 1982 | I50: 2731 | J50: 3522 | K50: 4368 | L50: 5268 | M50: 6226 | N50: 7246 | O50: 8331 | P50: 9486 | Q50: 10480 | R50: 11390 | S50: 12300 | T50: 13210 | U50: 14120 | V50: 15020 | W50: 15930 | X50: 16830 | Y50: 17740 | Z50: 18640 | AA50: 19540 | AB50: 20440 | AC50: 21340 | AD50: 22240 | AE50: 23150 | AF50: 24060 | AG50: 24960 | AH50: 25860 | AI50: 26760 | AJ50: 27680 | AK50: 28560 | AL50: 29460 | AM50: 30380 | AN50: 31270 | AO50: 32140 | AP50: 33090 | AQ50: 33970 | AR50: 34880 | AS50: 35770
B51: 66 | E51: 6.583333333 | F51: 678 | G51: 1396 | H51: 2156 | I51: 2962 | J51: 3807 | K51: 4707 | L51: 5660 | M51: 6668 | N51: 7735 | O51: 8865 | P51: 10060 | Q51: 11330 | R51: 12440 | S51: 13440 | T51: 14450 | U51: 15440 | V51: 16440 | W51: 17430 | X51: 18420 | Y51: 19410 | Z51: 20410 | AA51: 21390 | AB51: 22380 | AC51: 23370 | AD51: 24360 | AE51: 25360 | AF51: 26350 | AG51: 27330 | AH51: 28340 | AI51: 29310 | AJ51: 30320 | AK51: 31300 | AL51: 32280 | AM51: 33290 | AN51: 34270 | AO51: 35270 | AP51: 36240 | AQ51: 37250 | AR51: 38230 | AS51: 39190
B52: 72 | E52: 7.166666667 | F52: 736 | G52: 1512 | H52: 2330 | I52: 3193 | J52: 4097 | K52: 5053 | L52: 6060 | M52: 7121 | N52: 8239 | O52: 9417 | P52: 10660 | Q52: 11960 | R52: 13340 | S52: 14590 | T52: 15690 | U52: 16780 | V52: 17860 | W52: 18950 | X52: 20030 | Y52: 21110 | Z52: 22200 | AA52: 23270 | AB52: 24360 | AC52: 25420 | AD52: 26520 | AE52: 27590 | AF52: 28670 | AG52: 29760 | AH52: 30840 | AI52: 31910 | AJ52: 30320 | AK52: 31300 | AL52: 32280 | AM52: 33290 | AN52: 34270 | AO52: 35270 | AP52: 36240 | AQ52: 37250 | AR52: 38230 | AS52: 39190
B53: 78 | E53: 7.75 | F53: 794 | G53: 1629 | H53: 2505 | I53: 3425 | J53: 4384 | K53: 5395 | L53: 6457 | M53: 7570 | N53: 8739 | O53: 9966 | P53: 11520 | Q53: 12600 | R53: 14020 | S53: 15510 | T53: 16890 | U53: 18080 | V53: 19250 | W53: 20430 | X53: 21600 | Y53: 22780 | Z53: 23940 | AA53: 25110 | AB53: 26280 | AC53: 27450 | AD53: 28610 | AE53: 29780 | AF53: 30940 | AG53: 32120 | AH53: 33280 | AI53: 34460 | AJ53: 35600 | AK53: 36770 | AL53: 37950 | AM53: 39100 | AN53: 40290 | AO53: 41460 | AP53: 42600 | AQ53: 43760 | AR53: 44940 | AS53: 46100
B54: 84 | E54: 8.333333333 | F54: 853 | G54: 1745 | H54: 2679 | I54: 3657 | J54: 4671 | K54: 5738 | L54: 6854 | M54: 8021 | N54: 9242 | O54: 10520 | P54: 11860 | Q54: 13250 | R54: 14710 | S54: 16240 | T54: 17840 | U54: 19360 | V54: 20630 | W54: 21900 | X54: 23160 | Y54: 24420 | Z54: 25680 | AA54: 26940 | AB54: 28200 | AC54: 29460 | AD54: 30720 | AE54: 31970 | AF54: 33230 | AG54: 34470 | AH54: 35740 | AI54: 36970 | AJ54: 38250 | AK54: 39490 | AL54: 40720 | AM54: 42000 | AN54: 43240 | AO54: 44500 | AP54: 45770 | AQ54: 47010 | AR54: 48270 | AS54: 49500
B55: 90 | E55: 8.916666667 | F55: 911 | G55: 1862 | H55: 2854 | I55: 3889 | J55: 4963 | K55: 6087 | L55: 7260 | M55: 8482 | N55: 9757 | O55: 11090 | P55: 12470 | Q55: 13920 | R55: 15430 | S55: 17000 | T55: 18640 | U55: 20340 | V55: 22010 | W55: 23380 | X55: 24740 | Y55: 26090 | Z55: 27440 | AA55: 28790 | AB55: 30150 | AC55: 31500 | AD55: 32840 | AE55: 34180 | AF55: 35520 | AG55: 36860 | AH55: 38220 | AI55: 39560 | AJ55: 40880 | AK55: 42230 | AL55: 43560 | AM55: 44940 | AN55: 46280 | AO55: 47620 | AP55: 48940 | AQ55: 50310 | AR55: 51650 | AS55: 52960
B56: 96 | E56: 9.5 | F56: 969 | G56: 1978 | H56: 3028 | I56: 4121 | J56: 5251 | K56: 6432 | L56: 7659 | M56: 8937 | N56: 10260 | O56: 11650 | P56: 13080 | Q56: 14580 | R56: 16130 | S56: 17750 | T56: 19430 | U56: 21180 | V56: 23000 | W56: 24820 | X56: 26270 | Y56: 27720 | Z56: 29160 | AA56: 30600 | AB56: 32040 | AC56: 33470 | AD56: 34910 | AE56: 36340 | AF56: 37790 | AG56: 39200 | AH56: 40650 | AI56: 42080 | AJ56: 43520 | AK56: 44940 | AL56: 46380 | AM56: 47810 | AN56: 49210 | AO56: 50640 | AP56: 52090 | AQ56: 53490 | AR56: 54920 | AS56: 56360
B57: 102 | E57: 10.08333333 | F57: 1028 | G57: 2095 | H57: 3203 | I57: 4353 | J57: 5539 | K57: 6776 | L57: 8060 | M57: 9392 | N57: 10780 | O57: 12210 | P57: 13700 | Q57: 15240 | R57: 16850 | S57: 18510 | T57: 20240 | U57: 22030 | V57: 23890 | W57: 25820 | X57: 27780 | Y57: 29330 | Z57: 30870 | AA57: 32400 | AB57: 33940 | AC57: 35460 | AD57: 36980 | AE57: 38500 | AF57: 40020 | AG57: 41540 | AH57: 43070 | AI57: 44590 | AJ57: 46110 | AK57: 47640 | AL57: 49150 | AM57: 50650 | AN57: 52180 | AO57: 53710 | AP57: 55200 | AQ57: 56740 | AR57: 58250 | AS57: 59770
B58: 108 | E58: 10.66666667 | F58: 1086 | G58: 2211 | H58: 3377 | I58: 4586 | J58: 5833 | K58: 7127 | L58: 884688 | M58: 9857 | N58: 11300 | O58: 12780 | P58: 14330 | Q58: 15920 | R58: 17580 | S58: 19290 | T58: 21070 | U58: 22910 | V58: 24810 | W58: 26780 | X58: 28820 | Y58: 30940 | Z58: 32580 | AA58: 34220 | AB58: 35840 | AC58: 37460 | AD58: 39080 | AE58: 40690 | AF58: 42310 | AG58: 43920 | AH58: 45530 | AI58: 47130 | AJ58: 48740 | AK58: 50350 | AL58: 51950 | AM58: 53550 | AN58: 55190 | AO58: 56780 | AP58: 58400 | AQ58: 59990 | AR58: 61590 | AS58: 63190

Sheet RCAP-Live Load
A1: Highway Loads on Arch Pipe
A2: (From 2000 ACPA Concrete Pipe Design Manual - Table 42)
I4: 8 | K4: 10 | M4: 12 | O4: 14 | P4: 15 | Q4: 16 | R4: 17 | S4: 18 | T4: 19
A5: Equiv. Pipe Diameter | B5: Span | C5: Rise | H5: Height of Fill Above Top of Pipe in Feet | V5: All
H6: 0.5 | I6: 1 | J6: 1.5 | K6: 2 | L6: 2.5 | M6: 3 | N6: 3.5 | O6: 4 | P6: 5 | Q6: 6 | R6: 7 | S6: 8 | T6: 9
A7: 15 | B7: 18 | C7: 11 | H7: 4910 | I7: 2960 | J7: 2090 | K7: 1530 | L7: 1080 | M7: 780 | N7: 640 | O7: 530 | P7: 410 | Q7: 330 | R7: 270 | S7: 220 | T7: 190
A8: 18 | B8: 22 | C8: 13 | H8: 4930 | I8: 3330 | J8: 2420 | K8: 1780 | L8: 1260 | M8: 910 | N8: 750 | O8: 630 | P8: 480 | Q8: 390 | R8: 320 | S8: 260 | T8: 220
A9: 21 | B9: 26 | C9: 15 | H9: 5200 | I9: 3640 | J9: 2750 | K9: 2030 | L9: 11440 | M9: 1050 | N9: 860 | O9: 720 | P9: 560 | Q9: 450 | R9: 360 | S9: 300 | T9: 260
A10: 24 | B10: 29 | C10: 18 | H10: 4800 | I10: 3440 | J10: 2930 | K10: 2160 | L10: 1530 | M10: 1120 | N10: 920 | O10: 770 | P10: 600 | Q10: 480 | R10: 400 | S10: 330 | T10: 280
A11: 30 | B11: 36 | C11: 22 | H11: 4220 | I11: 3580 | J11: 3330 | K11: 2580 | L11: 1840 | M11: 1340 | N11: 1110 | O11: 930 | P11: 720 | Q11: 580 | R11: 480 | S11: 400 | T11: 340
A12: 36 | B12: 44 | C12: 27 | H12: 3790 | I12: 3270 | J12: 3180 | K12: 2950 | L12: 2110 | M12: 1540 | N12: 1270 | O12: 1070 | P12: 840 | Q12: 680 | R12: 560 | S12: 470 | T12: 400
A13: 42 | B13: 51 | C13: 31 | H13: 3400 | I13: 2980 | J13: 3020 | K13: 2830 | L13: 2340 | M13: 1720 | N13: 1420 | O13: 1200 | P13: 940 | Q13: 760 | R13: 630 | S13: 530 | T13: 450
A14: 48 | B14: 58 | C14: 36 | H14: 3090 | I14: 2730 | J14: 3110 | K14: 2700 | L14: 2330 | M14: 1880 | N14: 1560 | O14: 1320 | P14: 1040 | Q14: 840 | R14: 700 | S14: 590 | T14: 500
A15: 54 | B15: 65 | C15: 40 | H15: 2860 | I15: 2550 | J15: 3250 | K15: 2680 | L15: 2250 | M15: 1940 | N15: 1680 | O15: 1420 | P15: 1120 | Q15: 910 | R15: 760 | S15: 640 | T15: 550
A16: 60 | B16: 73 | C16: 45 | H16: 2620 | I16: 2360 | J16: 3380 | K16: 2810 | L16: 2170 | M16: 1870 | N16: 1770 | O16: 1530 | P16: 1210 | Q16: 990 | R16: 820 | S16: 700 | T16: 600
A17: 72 | B17: 88 | C17: 54 | H17: 2280 | I17: 2080 | J17: 3530 | K17: 3020 | L17: 2360 | M17: 1840 | N17: 1660 | O17: 1590 | P17: 1370 | Q17: 1130 | R17: 940 | S17: 800 | T17: 690
A18: 84 | B18: 102 | C18: 62 | H18: 2030 | I18: 1870 | J18: 3200 | K18: 2990 | L18: 2510 | M18: 1970 | N18: 1720 | O18: 1520 | P18: 1510 | Q18: 1250 | R18: 1040 | S18: 890 | T18: 770

Sheet RCAP-R-5
A1: Back to Calculations
B21: Key:
B22: d = depth of bedding under pipe; OD/8 or 4" min.
B23: OS = Outside pipe span
B24: TW = Trench width

Sheet RCAP-Assumptions
A1: Reinforced Concrete Arch Pipe Calculation Assumptions
A3: When live load is considered, an HS-20 load applied in an unpaved condition is assumed. If the pipe will not be subjected to live load, the minimum depth of bury does not apply.
A5: The D0.01 pipe strength is used with a factor of safety of 1.0.
A7: A minimum trench width of 54 inches (this is the smallest excavator bucket commonly used by some contractors).
A9: Maximum allowable depth of bury was cut off at 40 feet. This is the limit of the design information provided by ACPA. For deeper installations, contact ACPA for additional information.
A11: Return to Calculations

Sheet VCP Depth of Bury
C3: Vitrified Clay Pipe
C4: Min / Max depth of bury with both Dead and Live Loads factored in
V5: Type D | W5: Type C | X5: Type B | Y5: Type A | Z5: Type A | AA5: Type A
D6: User Inputs | U6: H / Load Factor | V6: 1.1 | W6: 1.5 | X6: 1.9 | Y6: 2.8 | Z6: 3.4 | AA6: 4.5 | AC6: Cd | AD6: Calculated Trench Load | AE6: Load at transition width | AF6: Controlling Earth Load | AG6: Live Load | AH6: Total Load | AK6: Pipe Properties | AR6: 0.110 - Wet Clay | AS6: 0.11
U7: 1 | V7: =IF(($AH7/V$6)>$D$16,"Fail",($AH7/V$6)) -> 1937.818182 | W7: =IF(($AH7/W$6)>$D$16,"Fail",($AH7/W$6)) -> 1421.066667 | X7: 1121.894737 | Y7: 761.2857143 | Z7: 626.9411765 | AA7: 473.6888889 | AC7: =((1-EXP(-2*$G$10*($U7/$D$11)))/(2*$G$10)) -> 0.2168775751 | AD7: =((1-EXP(-2*$G$10*($U7/$D$11)))/(2*$G$10))*$D$9*$D$11^2 -> 527.0125075 | AE7: =$D$9/100*INDEX('Transition Width - VCP'!$B$6:$AG$21, MATCH($D$8,'Transition Width - VCP'!$B$6:$B$21,), MATCH(U7,'Transition Width - VCP'!$B$6:$AG$6,)) -> 171.6 | AF7: =MIN(AD7,AE7) -> 171.6 | AG7: =IF(D12="yes",VLOOKUP($D$8,'VCP-Live Load-Round'!$A$11:$P$24,5),0) -> 1960 | AH7: =AG7+AF7 -> 2131.6 | AR7: 0.130 - Dry Clay | AS7: 0.13
C8: Pipe Diameter (in.) | D8: 12 | U8: 2 | V8: =IF(($AH8/V$6)>$D$16,"Fail",($AH8/V$6)) -> 1814.181818 | W8: 1330.4 | X8: 1050.315789 | Y8: 712.7142857 | Z8: 586.9411765 | AA8: 443.4666667 | AC8: =((1-EXP(-2*$G$10*($U8/$D$11)))/(2*$G$10)) -> 0.423407256 | AD8: =((1-EXP(-2*$G$10*($U8/$D$11)))/(2*$G$10))*$D$9*$D$11^2 -> 1028.879632 | AE8: =$D$9/100*INDEX('Transition Width - VCP'!$B$6:$AG$21, MATCH($D$8,'Transition Width - VCP'!$B$6:$B$21,), MATCH(U8,'Transition Width - VCP'!$B$6:$AG$6,)) -> 405.6 | AF8: 405.6 | AG8: =IF(D12="yes",VLOOKUP($D$8,'VCP-Live Load-Round'!$A$11:$P$24,7),0) -> 1590 | AH8: 1995.6 | AK8: Diameter | AL8: OD - in. | AM8: Strength | AR8: 0.150- Saturated Topsoil | AS8: 0.15
C9: Unit Weight of Soil, pcf | D9: 120 | U9: 3 | V9: 1249.090909 | W9: 916 | X9: 723.1578947 | Y9: 490.7142857 | Z9: 404.1176471 | AA9: 305.3333333 | AC9: 0.6200827725 | AD9: 1506.801137 | AE9: =$D$9/100*INDEX('Transition Width - VCP'!$B$6:$AG$21, MATCH($D$8,'Transition Width - VCP'!$B$6:$B$21,), MATCH(U9,'Transition Width - VCP'!$B$6:$AG$6,)) -> 624 | AF9: 624 | AG9: =IF(D12="yes",VLOOKUP($D$8,'VCP-Live Load-Round'!$A$11:$P$24,9),0) -> 750 | AH9: 1374 | AK9: 6 | AL9: 8 | AM9: 2000 | AN9: =AL9/12 -> 0.6666666667 | AP9: Yes | AR9: 0.165 - Sand and Gravel | AS9: 0.165
C10: ku' | D10: 0.110 - Wet Clay | G10: =LOOKUP(D10,AR6:AR9,AS6:AS9) -> 0.11 | U10: 4 | V10: 1200 | W10: 880 | X10: 694.7368421 | Y10: 471.4285714 | Z10: 388.2352941 | AA10: 293.3333333 | AC10: 0.8073742971 | AD10: 1961.919542 | AE10: =$D$9/100*INDEX('Transition Width - VCP'!$B$6:$AG$21, MATCH($D$8,'Transition Width - VCP'!$B$6:$B$21,), MATCH(U10,'Transition Width - VCP'!$B$6:$AG$6,)) -> 840 | AF10: 840 | AG10: =IF(D12="yes",VLOOKUP($D$8,'VCP-Live Load-Round'!$A$11:$P$24,11),0) -> 480 | AH10: 1320 | AK10: 8 | AL10: 10.1 | AM10: 2200 | AN10: 0.8416666667 | AP10: No
C11: Trench Width, ft. | D11: =IF(ISNUMBER(H11),H11,MAX(1.25*((D15))/12+1,4.5)) -> 4.5 | I11: User defined trench width (delete if using default) | U11: 5 | V11: 1500 | W11: 1100 | X11: 868.4210526 | Y11: 589.2857143 | Z11: 485.2941176 | AA11: 366.6666667 | AC11: 0.9857295686 | AD11: 2395.322852 | AE11: =$D$9/100*INDEX('Transition Width - VCP'!$B$6:$AG$21, MATCH($D$8,'Transition Width - VCP'!$B$6:$B$21,), MATCH(U11,'Transition Width - VCP'!$B$6:$AG$6,)) -> 1140 | AF11: 1140 | AG11: =IF(D12="yes",VLOOKUP($D$8,'VCP-Live Load-Round'!$A$11:$P$24,12),0) -> 510 | AH11: 1650 | AK11: 10 | AL11: 12.8 | AM11: 2400 | AN11: 1.066666667
C12: Consider Live Load? | D12: Yes | I12: (leave blank if using SUDAS default) | U12: 6 | V12: 1580 | W12: 1158.666667 | X12: 914.7368421 | Y12: 620.7142857 | Z12: 511.1764706 | AA12: 386.2222222 | AC12: 1.155574963 | AD12: 2808.047161 | AE12: =$D$9/100*INDEX('Transition Width - VCP'!$B$6:$AG$21, MATCH($D$8,'Transition Width - VCP'!$B$6:$B$21,), MATCH(U12,'Transition Width - VCP'!$B$6:$AG$6,)) -> 1368 | AF12: 1368 | AG12: =IF(D12="yes",VLOOKUP($D$8,'VCP-Live Load-Round'!$A$11:$P$24,13),0) -> 370 | AH12: 1738 | AK12: 12 | AL12: 14.6 | AM12: 2600 | AN12: 1.216666667
U13: 7 | V13: 1714.545455 | W13: 1257.333333 | X13: 992.6315789 | Y13: 673.5714286 | Z13: 554.7058824 | AA13: 419.1111111 | AC13: 1.317316513 | AD13: 3201.079127 | AE13: =$D$9/100*INDEX('Transition Width - VCP'!$B$6:$AG$21, MATCH($D$8,'Transition Width - VCP'!$B$6:$B$21,), MATCH(U13,'Transition Width - VCP'!$B$6:$AG$6,)) -> 1596 | AF13: 1596 | AG13: =IF(D12="yes",VLOOKUP($D$8,'VCP-Live Load-Round'!$A$11:$P$24,14),0) -> 290 | AH13: 1886 | AK13: 15 | AL13: 18.2 | AM13: 2900 | AN13: 1.516666667
C14: Extra Strength VCP Properties | U14: 8 | V14: 1867.272727 | W14: 1369.333333 | X14: 1081.052632 | Y14: 733.5714286 | Z14: 604.1176471 | AA14: 456.4444444 | AC14: 1.471340878 | AD14: 3575.358333 | AE14: =$D$9/100*INDEX('Transition Width - VCP'!$B$6:$AG$21, MATCH($D$8,'Transition Width - VCP'!$B$6:$B$21,), MATCH(U14,'Transition Width - VCP'!$B$6:$AG$6,)) -> 1824 | AF14: 1824 | AG14: =IF(D12="yes",VLOOKUP($D$8,'VCP-Live Load-Round'!$A$11:$P$24,15),0) -> 230 | AH14: 2054 | AK14: 18 | AL14: 22.6 | AM14: 3300 | AN14: 1.883333333
C15: Pipe O.D., in. | D15: =LOOKUP($D$8,$AK$9:$AK$23,AL$9:AL$23) -> 14.6 | U15: 9 | V15: 2043.636364 | W15: 1498.666667 | X15: 1183.157895 | Y15: 802.8571429 | Z15: 661.1764706 | AA15: 499.5555556 | AC15: 1.618016268 | AD15: 3931.779531 | AE15: =$D$9/100*INDEX('Transition Width - VCP'!$B$6:$AG$21, MATCH($D$8,'Transition Width - VCP'!$B$6:$B$21,), MATCH(U15,'Transition Width - VCP'!$B$6:$AG$6,)) -> 2058 | AF15: 2058 | AG15: =IF(D12="yes",VLOOKUP($D$8,'VCP-Live Load-Round'!$A$11:$P$24,16),0) -> 190 | AH15: 2248 | AK15: 21 | AL15: 26.1 | AM15: 3850 | AN15: 2.175
C16: Pipe Strength, lb/lf | D16: =LOOKUP($D$8,$AK$9:$AK$23,AM$9:AM$23) -> 2600 | U16: 10 | V16: 2083.636364 | W16: 1528 | X16: 1206.315789 | Y16: 818.5714286 | Z16: 674.1176471 | AA16: 509.3333333 | AC16: 1.757693325 | AD16: 4271.19478 | AE16: =$D$9/100*INDEX('Transition Width - VCP'!$B$6:$AG$21, MATCH($D$8,'Transition Width - VCP'!$B$6:$B$21,), MATCH(U16,'Transition Width - VCP'!$B$6:$AG$6,)) -> 2292 | AF16: 2292 | AH16: 2292 | AK16: 24 | AL16: 29.7 | AM16: 4400 | AN16: 2.475
U17: 11 | V17: 2290.909091 | W17: 1680 | X17: 1326.315789 | Y17: 900 | Z17: 741.1764706 | AA17: 560 | AC17: 1.890705962 | AD17: 4594.415487 | AE17: =$D$9/100*INDEX('Transition Width - VCP'!$B$6:$AG$21, MATCH($D$8,'Transition Width - VCP'!$B$6:$B$21,), MATCH(U17,'Transition Width - VCP'!$B$6:$AG$6,)) -> 2520 | AF17: 2520 | AH17: 2520 | AK17: 27 | AL17: 33.6 | AM17: 4700 | AN17: 2.8
U18: 12 | V18: 2498.181818 | W18: 1832 | X18: 1446.315789 | Y18: 981.4285714 | Z18: 808.2352941 | AA18: 610.6666667 | AC18: 2.017372157 | AD18: 4902.214342 | AE18: =$D$9/100*INDEX('Transition Width - VCP'!$B$6:$AG$21, MATCH($D$8,'Transition Width - VCP'!$B$6:$B$21,), MATCH(U18,'Transition Width - VCP'!$B$6:$AG$6,)) -> 2748 | AF18: 2748 | AH18: 2748 | AK18: 30 | AL18: 37.3 | AM18: 5000 | AN18: 3.108333333
U19: 13 | V19: Fail | W19: 1988 | X19: 1569.473684 | Y19: 1065 | Z19: 877.0588235 | AA19: 662.6666667 | AC19: 2.137994721 | AD19: 5195.327171 | AE19: =$D$9/100*INDEX('Transition Width - VCP'!$B$6:$AG$21, MATCH($D$8,'Transition Width - VCP'!$B$6:$B$21,), MATCH(U19,'Transition Width - VCP'!$B$6:$AG$6,)) -> 2982 | AF19: 2982 | AH19: 2982 | AK19: 33 | AL19: 38.5 | AM19: 5500 | AN19: 3.208333333
D20: Results: | U20: 14 | V20: Fail | W20: 2144 | X20: 1692.631579 | Y20: 1148.571429 | Z20: 945.8823529 | AA20: 714.6666667 | AC20: 2.252862011 | AD20: 5474.454688 | AE20: =$D$9/100*INDEX('Transition Width - VCP'!$B$6:$AG$21, MATCH($D$8,'Transition Width - VCP'!$B$6:$B$21,), MATCH(U20,'Transition Width - VCP'!$B$6:$AG$6,)) -> 3216 | AF20: 3216 | AH20: 3216 | AK20: 36 | AL20: 42.5 | AM20: 6000 | AN20: 3.541666667
U21: 15 | V21: Fail | W21: 2296 | X21: 1812.631579 | Y21: 1230 | Z21: 1012.941176 | AA21: 765.3333333 | AC21: 2.362248631 | AD21: 5740.264174 | AE21: =$D$9/100*INDEX('Transition Width - VCP'!$B$6:$AG$21, MATCH($D$8,'Transition Width - VCP'!$B$6:$B$21,), MATCH(U21,'Transition Width - VCP'!$B$6:$AG$6,)) -> 3444 | AF21: 3444 | AH21: 3444 | AK21: 39 | AL21: 47 | AM21: 6600 | AN21: 3.916666667
D22: Bedding Types | U22: 16 | V22: Fail | W22: 2448 | X22: 1932.631579 | Y22: 1311.428571 | Z22: 1080 | AA22: 816 | AC22: 2.46641608 | AD22: 5993.391075 | AE22: =$D$9/100*INDEX('Transition Width - VCP'!$B$6:$AG$21, MATCH($D$8,'Transition Width - VCP'!$B$6:$B$21,), MATCH(U22,'Transition Width - VCP'!$B$6:$AG$6,)) -> 3672 | AF22: 3672 | AH22: 3672 | AK22: 42 | AL22: 51.3 | AM22: 7000 | AN22: 4.275
D23: SUDAS N/A | F23: SUDAS R-1 | H23: SUDAS R-2 | J23: SUDAS R-3 | N23: SUDAS R-4 | U23: 17 | V23: Fail | W23: Fail | X23: 2055.789474 | Y23: 1395 | Z23: 1148.823529 | AA23: 868 | AC23: 2.565613381 | AD23: 6234.440516 | AE23: =$D$9/100*INDEX('Transition Width - VCP'!$B$6:$AG$21, MATCH($D$8,'Transition Width - VCP'!$B$6:$B$21,), MATCH(U23,'Transition Width - VCP'!$B$6:$AG$6,)) -> 3906 | AF23: 3906 | AH23: 3906 | AK23: 48 | AL23: 57.6 | AM23: 8000 | AN23: 4.8
D24: NCPI Class D | F24: NCPI Class C | H24: NCPI Class B | J24: NCPI Class A-I | L24: NCPI Class A-I | N24: NCPI Class A-II | P24: NCPI Type A | U24: 18 | V24: Fail | W24: Fail | X24: 2178.947368 | Y24: 1478.571429 | Z24: 1217.647059 | AA24: 920 | AC24: 2.660077674 | AD24: 6463.988748 | AE24: =$D$9/100*INDEX('Transition Width - VCP'!$B$6:$AG$21, MATCH($D$8,'Transition Width - VCP'!$B$6:$B$21,), MATCH(U24,'Transition Width - VCP'!$B$6:$AG$6,)) -> 4140 | AF24: 4140 | AH24: 4140
D25: Bedding Factor = 1.1 | F25: Bedding Factor = 1.5 | H25: Bedding Factor = 1.9 | J25: Bedding Factor = 2.8 | L25: Bedding Factor = 3.4 | N25: Bedding Factor = 3.4 | P25: Bedding Factor = 4.5 | U25: 19 | V25: Fail | W25: Fail | X25: 2298.947368 | Y25: 1560 | Z25: 1284.705882 | AA25: 970.6666667 | AC25: 2.750034786 | AD25: 6682.584531 | AE25: =$D$9/100*INDEX('Transition Width - VCP'!$B$6:$AG$21, MATCH($D$8,'Transition Width - VCP'!$B$6:$B$21,), MATCH(U25,'Transition Width - VCP'!$B$6:$AG$6,)) -> 4368 | AF25: 4368 | AH25: 4368
D26: Click for Cross Section | F26: Click for Cross Section | H26: Click for Cross Section | J26: Click for Cross Section | L26: Click for Cross Section | N26: Click for Cross Section | P26: Click for Cross Section | U26: 20 | V26: Fail | W26: Fail | X26: 2418.947368 | Y26: 1641.428571 | Z26: 1351.764706 | AA26: 1021.333333 | AC26: 2.835699769 | AD26: 6890.750438 | AE26: =$D$9/100*INDEX('Transition Width - VCP'!$B$6:$AG$21, MATCH($D$8,'Transition Width - VCP'!$B$6:$B$21,), MATCH(U26,'Transition Width - VCP'!$B$6:$AG$6,)) -> 4596 | AF26: 4596 | AH26: 4596
C27: Allowable Depth | D27: Min. | E27: Max. | F27: Min. | G27: Max. | H27: Min. | I27: Max. | J27: Min. | K27: Max. | L27: Min. | M27: Max. | N27: Min. | O27: Max. | P27: Min. | Q27: Max. | U27: 22 | V27: Fail | W27: Fail | X27: Fail | Y27: 1808.571429 | Z27: 1489.411765 | AA27: 1125.333333 | AC27: 2.994962736 | AD27: 7277.759448 | AE27: =$D$9/100*INDEX('Transition Width - VCP'!$B$6:$AG$21, MATCH($D$8,'Transition Width - VCP'!$B$6:$B$21,), MATCH(U27,'Transition Width - VCP'!$B$6:$AG$6,)) -> 5064 | AF27: 5064 | AH27: 5064
D28: =IF(ISNUMBER(V7),U7,IF(ISNUMBER(V8),U8,IF(ISNUMBER(V9),U9,IF(ISNUMBER(V10),U10,IF(ISNUMBER(V11),U11,IF(ISNUMBER(V12),U12)))))) -> 1 | E28: =LOOKUP(MAX(V$7:V$35),V$7:V$35,$U$7:$U$35) -> 12 | F28: =IF(ISNUMBER(W7),U7,IF(ISNUMBER(W8),U8,IF(ISNUMBER(W9),U9,IF(ISNUMBER(W10),U10,IF(ISNUMBER(W11),U11,IF(ISNUMBER(W12),U12)))))) -> 1 | G28: =LOOKUP(MAX(W$7:W$35),W$7:W$35,$U$7:$U$35) -> 16 | H28: =IF(ISNUMBER(X7),U7,IF(ISNUMBER(X8),U8,IF(ISNUMBER(X9),U9,IF(ISNUMBER(X10),U10,IF(ISNUMBER(X11),U11,IF(ISNUMBER(X12),U12)))))) -> 1 | I28: =LOOKUP(MAX(X$7:X$35),X$7:X$35,$U$7:$U$35) -> 20 | J28: =IF(ISNUMBER(Y7),U7,IF(ISNUMBER(Y8),U8,IF(ISNUMBER(Y9),U9,IF(ISNUMBER(Y10),U10,IF(ISNUMBER(Y11),U11,IF(ISNUMBER(Y12),U12)))))) -> 1 | K28: =LOOKUP(MAX(Y$7:Y$35),Y$7:Y$35,$U$7:$U$35) -> 30 | L28: =IF(ISNUMBER(Z7),U7,IF(ISNUMBER(Z8),U8,IF(ISNUMBER(Z9),U9,IF(ISNUMBER(Z10),U10,IF(ISNUMBER(Z11),U11,IF(ISNUMBER(Z12),U12)))))) -> 1 | M28: =LOOKUP(MAX(Z$7:Z$35),Z$7:Z$35,$U$7:$U$35) -> 30 | N28: =IF(ISNUMBER(Z7),U7,IF(ISNUMBER(Z8),U8,IF(ISNUMBER(Z9),U9,IF(ISNUMBER(Z10),U10,IF(ISNUMBER(Z11),U11,IF(ISNUMBER(Z12),U12)))))) -> 1 | O28: =LOOKUP(MAX(Z$7:Z$35),Z$7:Z$35,$U$7:$U$35) -> 30 | P28: =IF(ISNUMBER(AA7),U7,IF(ISNUMBER(AA8),U8,IF(ISNUMBER(AA9),U9,IF(ISNUMBER(AA10),U10,IF(ISNUMBER(AA11),U11,IF(ISNUMBER(AA12),U12)))))) -> 1 | Q28: =LOOKUP(MAX(AA$7:AA$35),AA$7:AA$35,$U$7:$U$35) -> 30 | U28: 23 | V28: Fail | W28: Fail | X28: Fail | Y28: 1890 | Z28: 1556.470588 | AA28: 1176 | AC28: 3.068941455 | AD28: 7457.527735 | AE28: =$D$9/100*INDEX('Transition Width - VCP'!$B$6:$AG$21, MATCH($D$8,'Transition Width - VCP'!$B$6:$B$21,), MATCH(U28,'Transition Width - VCP'!$B$6:$AG$6,)) -> 5292 | AF28: 5292 | AH28: 5292
U29: 24 | V29: Fail | W29: Fail | X29: Fail | Y29: 1971.428571 | Z29: 1623.529412 | AA29: 1226.666667 | AC29: 3.139390422 | AD29: 7628.718726 | AE29: =$D$9/100*INDEX('Transition Width - VCP'!$B$6:$AG$21, MATCH($D$8,'Transition Width - VCP'!$B$6:$B$21,), MATCH(U29,'Transition Width - VCP'!$B$6:$AG$6,)) -> 5520 | AF29: 5520 | AH29: 5520
C30: Notes: | U30: 25 | V30: Fail | W30: Fail | X30: Fail | Y30: 2052.857143 | Z30: 1690.588235 | AA30: 1277.333333 | AC30: 3.206478053 | AD30: 7791.741669 | AE30: =$D$9/100*INDEX('Transition Width - VCP'!$B$6:$AG$21, MATCH($D$8,'Transition Width - VCP'!$B$6:$B$21,), MATCH(U30,'Transition Width - VCP'!$B$6:$AG$6,)) -> 5748 | AF30: 5748 | AH30: 5748
U31: 26 | V31: Fail | W31: Fail | X31: Fail | Y31: 2134.285714 | Z31: 1757.647059 | AA31: 1328 | AC31: 3.270364728 | AD31: 7946.986288 | AE31: =$D$9/100*INDEX('Transition Width - VCP'!$B$6:$AG$21, MATCH($D$8,'Transition Width - VCP'!$B$6:$B$21,), MATCH(U31,'Transition Width - VCP'!$B$6:$AG$6,)) -> 5976 | AF31: 5976 | AH31: 5976
C32: This spreadsheet is a tool for use in determing the allowable depth of bury fo VCP based upon the Marston / Spangler method described in the | U32: 27 | V32: Fail | W32: Fail | X32: Fail | Y32: 2215.714286 | Z32: 1824.705882 | AA32: 1378.666667 | AC32: 3.331203173 | AD32: 8094.82371 | AE32: =$D$9/100*INDEX('Transition Width - VCP'!$B$6:$AG$21, MATCH($D$8,'Transition Width - VCP'!$B$6:$B$21,), MATCH(U32,'Transition Width - VCP'!$B$6:$AG$6,)) -> 6204 | AF32: 6204 | AH32: 6204
C33: Clay Pipe Engineering Manual. The engineer should have a thorough understanding of this methodology prior to using this spreadsheet and | U33: 28 | V33: Fail | W33: Fail | X33: Fail | Y33: 2297.142857 | Z33: 1891.764706 | AA33: 1429.333333 | AC33: 3.389138829 | AD33: 8235.607355 | AE33: =$D$9/100*INDEX('Transition Width - VCP'!$B$6:$AG$21, MATCH($D$8,'Transition Width - VCP'!$B$6:$B$21,), MATCH(U33,'Transition Width - VCP'!$B$6:$AG$6,)) -> 6432 | AF33: 6432 | AH33: 6432
C34: is responsible for verifying the results. | U34: 29 | V34: Fail | W34: Fail | X34: Fail | Y34: 2380.714286 | Z34: 1960.588235 | AA34: 1481.333333 | AC34: 3.444310198 | AD34: 8369.673781 | AE34: =$D$9/100*INDEX('Transition Width - VCP'!$B$6:$AG$21, MATCH($D$8,'Transition Width - VCP'!$B$6:$B$21,), MATCH(U34,'Transition Width - VCP'!$B$6:$AG$6,)) -> 6666 | AF34: 6666 | AH34: 6666
U35: 30 | V35: Fail | W35: Fail | X35: Fail | Y35: 2464.285714 | Z35: 2029.411765 | AA35: 1533.333333 | AC35: 3.496849172 | AD35: 8497.343487 | AE35: =$D$9/100*INDEX('Transition Width - VCP'!$B$6:$AG$21, MATCH($D$8,'Transition Width - VCP'!$B$6:$B$21,), MATCH(U35,'Transition Width - VCP'!$B$6:$AG$6,)) -> 6900 | AF35: 6900 | AH35: 6900
C36: For additional information and to obtain a copy of the Clay Pipe Engineering Manual, contact the National Clay Pipe Institute (NCPI).

Sheet Transition Width - VCP
A2: BACKFILL LOADS ON CIRCULAR RIGID PIPE AT TRANITION WIDTH
A3: 100 pcf backfill material*
D5: Height of Backfill H above top of pipe, feet
D6: 1 | E6: 2 | F6: 3 | G6: 4 | H6: 5 | I6: 6 | J6: 7 | K6: 8 | L6: 9 | M6: 10 | N6: 11 | O6: 12 | P6: 13 | Q6: 14 | R6: 15 | S6: 16 | T6: 17 | U6: 18 | V6: 19 | W6: 20 | X6: 21 | Y6: 22 | Z6: 23 | AA6: 24 | AB6: 25 | AC6: 26 | AD6: 27 | AE6: 28 | AF6: 29 | AG6: 30
B7: Pipe dia., in | C7: Do
B8: 6 | C8: 8 | D8: =ROUND((EXP((2*$D$32*D$6/($C8/12)))-1)/(2*$D$32)*(100)*(($C8/12)^2),0) -> 90 | E8: 180 | F8: 280 | G8: 380 | H8: 490 | I8: 590 | J8: =I8+(K8-I8)/(K$6-I$6)*(J$6-I$6) -> 690 | K8: 790 | L8: =K8+(M8-K8)/(M$6-K$6)*(L$6-K$6) -> 890 | M8: 990 | N8: =M8+(O8-M8)/(O$6-M$6)*(N$6-M$6) -> 1090 | O8: 1190 | P8: =O8+(Q8-O8)/(Q$6-O$6)*(P$6-O$6) -> 1290 | Q8: 1390 | R8: =Q8+(S8-Q8)/(S$6-Q$6)*(R$6-Q$6) -> 1490 | S8: 1590 | T8: =S8+(U8-S8)/(U$6-S$6)*(T$6-S$6) -> 1690 | U8: 1790 | V8: =U8+(W8-U8)/(W$6-U$6)*(V$6-U$6) -> 1890 | W8: 1990 | X8: =W8+(Y8-W8)/(Y$6-W$6)*(X$6-W$6) -> 2090 | Y8: 2190 | Z8: =Y8+(AA8-Y8)/(AA$6-Y$6)*(Z$6-Y$6) -> 2290 | AA8: 2390 | AB8: =AA8+(AC8-AA8)/(AC$6-AA$6)*(AB$6-AA$6) -> 2490 | AC8: 2590 | AD8: =AC8+(AE8-AC8)/(AE$6-AC$6)*(AD$6-AC$6) -> 2690 | AE8: 2790 | AF8: =AE8+(AG8-AE8)/(AG$6-AE$6)*(AF$6-AE$6) -> 2890 | AG8: 2990
B9: 8 | C9: 10.1 | D9: 106 | E9: 260 | F9: 395 | G9: 520 | H9: 650 | I9: 780 | J9: 910 | K9: 1040 | L9: 1170 | M9: 1300 | N9: 1430 | O9: 1560 | P9: 1690 | Q9: 1820 | R9: 1950 | S9: 2080 | T9: 2215 | U9: 2350 | V9: 2480 | W9: 2610 | X9: 2740 | Y9: 2870 | Z9: 3000 | AA9: 3130 | AB9: 3260 | AC9: 3390 | AD9: 3520 | AE9: 3650 | AF9: 3785 | AG9: 3920
B10: 10 | C10: 12.8 | D10: 128 | E10: =ROUND((EXP((2*$D$32*E$6/($C10/12)))-1)/(2*$D$32)*(100)*(($C10/12)^2),0) -> 311 | F10: 460 | G10: 620 | H10: 790 | I10: 950 | J10: 1115 | K10: 1280 | L10: 1440 | M10: 1600 | N10: 1760 | O10: 1920 | P10: 2085 | Q10: 2250 | R10: 2410 | S10: 2570 | T10: 2730 | U10: 2890 | V10: 3050 | W10: 3210 | X10: 3370 | Y10: 3530 | Z10: 3690 | AA10: 3850 | AB10: 4015 | AC10: 4180 | AD10: 4340 | AE10: 4500 | AF10: 4660 | AG10: 4820
B11: 12 | C11: 14.6 | D11: 143 | E11: 338 | F11: 520 | G11: 700 | H11: 950 | I11: 1140 | J11: 1330 | K11: 1520 | L11: 1715 | M11: 1910 | N11: 2100 | O11: 2290 | P11: 2485 | Q11: 2680 | R11: 2870 | S11: 3060 | T11: 3255 | U11: 3450 | V11: 3640 | W11: 3830 | X11: 4025 | Y11: 4220 | Z11: 4410 | AA11: 4600 | AB11: 4790 | AC11: 4980 | AD11: 5170 | AE11: 5360 | AF11: 5555 | AG11: 5750
B12: 15 | C12: 18.2 | D12: 172 | E12: 394 | F12: 675 | G12: 860 | H12: 1170 | I12: 1420 | J12: 1655 | K12: 1890 | L12: 2130 | M12: 2370 | N12: 2610 | O12: 2850 | P12: 3085 | Q12: 3320 | R12: 3560 | S12: 3800 | T12: 4040 | U12: 4280 | V12: 4520 | W12: 4760 | X12: 5000 | Y12: 5240 | Z12: 5480 | AA12: 5720 | AB12: 5955 | AC12: 6190 | AD12: 6430 | AE12: 6670 | AF12: 6910 | AG12: 7150
B13: 18 | C13: 22.6 | D13: 209 | E13: 464 | F13: =ROUND((EXP((2*$D$32*F$6/($C13/12)))-1)/(2*$D$32)*(100)*(($C13/12)^2),0) -> 776 | G13: 1100 | H13: 1400 | I13: 1690 | J13: 1980 | K13: 2270 | L13: 2560 | M13: 2850 | N13: 3135 | O13: 3420 | P13: 3705 | Q13: 3990 | R13: 4280 | S13: 4570 | T13: 4860 | U13: 5150 | V13: 5435 | W13: 5720 | X13: 6010 | Y13: 6300 | Z13: 6085 | AA13: 5870 | AB13: 6660 | AC13: 7450 | AD13: 7735 | AE13: 8020 | AF13: 8310 | AG13: 8600
B14: 21 | C14: 26.1 | D14: 238 | E14: 521 | F14: 858 | G14: =ROUND((EXP((2*$D$32*G$6/($C14/12)))-1)/(2*$D$32)*(100)*(($C14/12)^2),0) -> 1259 | H14: 1620 | I14: 1960 | J14: 2300 | K14: 2640 | L14: 2975 | M14: 3310 | N14: 3645 | O14: 3980 | P14: 4315 | Q14: 4650 | R14: 4985 | S14: 5320 | T14: 5660 | U14: 6000 | V14: 6335 | W14: 6670 | X14: 7005 | Y14: 7340 | Z14: 7675 | AA14: 8010 | AB14: 8345 | AC14: 8680 | AD14: 9015 | AE14: 9350 | AF14: 9685 | AG14: 10020
B15: 24 | C15: 29.7 | D15: 268 | E15: 579 | F15: 943 | G15: 1367 | H15: 1830 | I15: 2230 | J15: 2615 | K15: 3000 | L15: 3385 | M15: 3770 | N15: 4150 | O15: 4530 | P15: 4915 | Q15: 5300 | R15: 5680 | S15: 6060 | T15: 6445 | U15: 6830 | V15: 7210 | W15: 7590 | X15: 7975 | Y15: 8360 | Z15: 8740 | AA15: 9120 | AB15: 9505 | AC15: 9890 | AD15: 10270 | AE15: 10650 | AF15: 11035 | AG15: 11420
B16: 27 | C16: 33.6 | D16: 300 | E16: 643 | F16: 1037 | G16: 1487 | H16: 1960 | I16: 2500 | J16: 2935 | K16: 3370 | L16: 3805 | M16: 4240 | N16: 4670 | O16: 5100 | P16: 5530 | Q16: 5960 | R16: 6395 | S16: 6830 | T16: 7260 | U16: 7690 | V16: 8120 | W16: 8550 | X16: 8985 | Y16: 9420 | Z16: 9850 | AA16: 10280 | AB16: 10710 | AC16: 11140 | AD16: 11570 | AE16: 12000 | AF16: 12430 | AG16: 12860
B17: 30 | C17: 37.3 | D17: 331 | E17: 704 | F17: 1126 | G17: 1604 | H17: 2090 | I17: 2690 | J17: 3205 | K17: 3720 | L17: 4050 | M17: 4380 | N17: 5015 | O17: 5650 | P17: 6130 | Q17: 6610 | R17: 7085 | S17: 7560 | T17: 8040 | U17: 8520 | V17: 9000 | W17: 9480 | X17: 9955 | Y17: 10430 | Z17: 10910 | AA17: 11390 | AB17: 11870 | AC17: 12350 | AD17: 12825 | AE17: 13300 | AF17: 13780 | AG17: 14260
B18: 33 | C18: 38.5 | D18: 341 | E18: 724 | F18: 1156 | G18: 1642 | H18: 2200 | I18: 2840 | J18: 3445 | K18: 4050 | L18: 4580 | M18: 5110 | N18: 5635 | O18: 6160 | P18: 6685 | Q18: 7210 | R18: 7730 | S18: 8250 | T18: 8775 | U18: 9300 | V18: 9825 | W18: 10350 | X18: 10870 | Y18: 11390 | Z18: 11915 | AA18: 12440 | AB18: 12960 | AC18: 13480 | AD18: 14005 | AE18: 14530 | AF18: 15055 | AG18: 15580
B19: 36 | C19: 42.5 | D19: 374 | E19: 790 | F19: 1253 | G19: 1769 | H19: 2350 | I19: 2980 | J19: 3680 | K19: 4380 | L19: 4955 | M19: 5530 | N19: 6100 | O19: 6670 | P19: 7240 | Q19: 7810 | R19: 8380 | S19: 8950 | T19: 9515 | U19: 10080 | V19: 10645 | W19: 11210 | X19: 11780 | Y19: 12350 | Z19: 12915 | AA19: 13480 | AB19: 14050 | AC19: 14620 | AD19: 15185 | AE19: 15750 | AF19: 16320 | AG19: 16890
B20: 39 | C20: 47 | D20: 411 | E20: 864 | F20: 1364 | G20: 1914 | H20: 2540 | I20: 3220 | J20: 4000 | K20: 4780 | L20: 5470 | M20: 6160 | N20: 6800 | O20: 7440 | P20: 8080 | Q20: 8720 | R20: 9350 | S20: 9980 | T20: 10620 | U20: 11260 | V20: 11895 | W20: 12530 | X20: 13165 | Y20: 13800 | Z20: 14435 | AA20: 15070 | AB20: 15705 | AC20: 16340 | AD20: 16975 | AE20: 17610 | AF20: 18245 | AG20: 18880
B21: 42 | C21: 51.3 | D21: 447 | E21: 936 | F21: 1470 | G21: 2053 | H21: 2680 | I21: 3380 | J21: 4185 | K21: 4990 | L21: 5810 | M21: 6630 | N21: 7325 | O21: 8020 | P21: 8705 | Q21: 9390 | R21: 10075 | S21: 10760 | T21: 11450 | U21: 12140 | V21: 12825 | W21: 13510 | X21: 14195 | Y21: 14880 | Z21: 15565 | AA21: 16250 | AB21: 16930 | AC21: 17610 | AD21: 18295 | AE21: 18980 | AF21: 19665 | AG21: 20350
B22: *For backfill weighing 110 pcf, increase loads 10%, 120pcf, 20%; etc
A25: From Clay Pipe Engineering Manual
A28: Loads for depths 1'-5' are based upon Figure B-12 and equation B4 from 2000 ACPA manual
A29: in the 2000 ACPA Concrete Pipe Design Manual
A30: (Values left of the H=He line are calculated with Equation B4 (yellow)- values to right of line were read from the figure)
B32: Ku= | D32: 0.19
B33: unit wt.= | D33: 100

Sheet VCP-Live Load-Round
A1: Highway Loads on Circular Pipe
A2: (Based upon design methodolgy in 2000 ACPA Concrete Pipe Design Manual)
A5: The following table uses the design methodology laid out in the ACPA manual for live load. The table matches the ACPA table, except the bottom left section of the table differs from the ACPA manual. Numerous checks were done, it appears that there is an error in the ACPA manual. This table is more conservative than the ACPA table.
A7: Pipe Diameter | B7: Do | D7: Height of Fill Above Top of Pipe in Feet
D8: 0.5 | E8: 1 | F8: 1.5 | G8: 2 | H8: 2.5 | I8: 3 | J8: 3.5 | K8: 4 | L8: 5 | M8: 6 | N8: 7 | O8: 8 | P8: 9
C9: P | D9: 16000 | E9: 16000 | F9: 32000 | G9: 32000 | H9: 32000 | I9: 32000 | J9: 32000 | K9: 32000 | L9: 48000 | M9: 48000 | N9: 48000 | O9: 48000 | P9: 48000
C10: If | D10: 1.3 | E10: 1.3 | F10: 1.2 | G10: 1.2 | H10: 1.1 | I10: 1 | J10: 1 | K10: 1 | L10: 1 | M10: 1 | N10: 1 | O10: 1 | P10: 1
A11: 6 | B11: 0.6666666667 | D11: =ROUND((((D$9*D$10)/((0.83+1.75*D$8)*(1.67+1.75*D$8)))*(1.67+1.75*D$8)*IF((0.83+1.75*D$8)<$B11,0.83+1.75*D$8,$B11))/((1.67+1.75*D$8)+1.75*3*$B11/4),-1) -> 2380 | E11: 1250 | F11: 1430 | G11: 980 | H11: 650 | I11: 450 | J11: 350 | K11: 290 | L11: 300 | M11: 220 | N11: 170 | O11: 130 | P11: 110
A12: 8 | B12: 0.8416666667 | D12: 2810 | E12: 1500 | F12: 1730 | G12: 1190 | H12: 800 | I12: 550 | J12: 440 | K12: 350 | L12: 370 | M12: 270 | N12: 210 | O12: 160 | P12: 130
A13: 10 | B13: 1.066666667 | D13: 3300 | E13: 1780 | F13: 2080 | G13: 1440 | H13: 970 | I13: 670 | J13: 530 | K13: 430 | L13: 450 | M13: 330 | N13: 260 | O13: 200 | P13: 160
A14: 12 | B14: 1.216666667 | D14: 3580 | E14: 1960 | F14: 2300 | G14: 1590 | H14: 1080 | I14: 750 | J14: 600 | K14: 480 | L14: 510 | M14: 370 | N14: 290 | O14: 230 | P14: 190
A15: 15 | B15: 1.516666667 | D15: 4080 | E15: 2260 | F15: 2680 | G15: 1880 | H15: 1280 | I15: 900 | J15: 710 | K15: 580 | L15: 610 | M15: 450 | N15: 350 | O15: 280 | P15: 230
A16: 18 | B16: 1.883333333 | D16: 4150 | E16: 2580 | F16: 3090 | G16: 2190 | H16: 1500 | I16: 1060 | J16: 840 | K16: 690 | L16: 730 | M16: 540 | N16: 420 | O16: 340 | P16: 270
A17: 21 | B17: 2.175 | D17: 3850 | E17: 2790 | F17: 3380 | G17: 2400 | H17: 1650 | I17: 1170 | J17: 940 | K17: 770 | L17: 820 | M17: 610 | N17: 480 | O17: 380 | P17: 310
A18: 24 | B18: 2.475 | D18: 3590 | E18: 2990 | F18: 3650 | G18: 2610 | H18: 1800 | I18: 1280 | J18: 1030 | K18: 850 | L18: 910 | M18: 680 | N18: 530 | O18: 420 | P18: 350
A19: 27 | B19: 2.8 | D19: 3340 | E19: 2930 | F19: 3900 | G19: 2810 | H19: 1950 | I19: 1390 | J19: 1120 | K19: 930 | L19: 1000 | M19: 750 | N19: 580 | O19: 470 | P19: 380
A20: 30 | B20: 3.108333333 | D20: 3140 | E20: 2770 | F20: 4130 | G20: 2980 | H20: 2080 | I20: 1490 | J20: 1200 | K20: 1000 | L20: 1070 | M20: 810 | N20: 630 | O20: 510 | P20: 420
A21: 33 | B21: 3.208333333 | D21: 3080 | E21: 2730 | F21: 4190 | G21: 3030 | H21: 2120 | I21: 1520 | J21: 1230 | K21: 1020 | L21: 1100 | M21: 830 | N21: 650 | O21: 520 | P21: 430
A22: 36 | B22: 3.541666667 | D22: 2890 | E22: 2580 | F22: 4290 | G22: 3200 | H22: 2240 | I22: 1610 | J22: 1310 | K22: 1090 | L22: 1180 | M22: 890 | N22: 700 | O22: 560 | P22: 460
A23: 39 | B23: 3.916666667 | D23: 2710 | E23: 2430 | F23: 4070 | G23: 3370 | H23: 2370 | I23: 1710 | J23: 1390 | K23: 1160 | L23: 1260 | M23: 960 | N23: 750 | O23: 610 | P23: 500
A24: 42 | B24: 4.275 | D24: 2550 | E24: 2300 | F24: 3880 | G24: 3520 | H24: 2480 | I24: 1800 | J24: 1470 | K24: 1220 | L24: 1340 | M24: 1020 | N24: 800 | O24: 650 | P24: 540

Sheet VCP-Class D
A1: Back to Calculations
B21: Key:
B22: OD = Outside pipe diameter
B23: TW = Trench width
A24: Note:
A25: Installation without bedding material is not recommended and should be done with caution

Sheet VCP-R-1
A1: Back to Calculations
B22: Key:
B23: d = depth of bedding under pipe; OD/8 or 4" min.
B24: OD = Outside pipe diameter
B25: TW = Trench width

Sheet VCP-R-2
A1: Back to Calculations
C22: Key:
C23: d = depth of bedding under pipe; OD/8 or 4" min.
C24: OD = Outside pipe diameter
C25: TW = Trench width

Sheet VCP-R-3 0%
A1: Back to Calculations
B21: Key:
B22: d = depth of bedding under pipe; OD/8 or 4" min.
B23: OD = Outside pipe diameter

Sheet VCP-R-3 0.4%
A1: Back to Calculations
B21: Key:
B22: As = Area of reinforcing steel
B23: d = depth of bedding under pipe; OD/8 or 4" min.
B24: OD = Outside pipe diameter

Sheet VCP-R-4 0.4%
A1: Back to Calculations
C21: Key:
C22: As = Area of reinforcing steel
C23: d = depth of bedding under pipe; OD/8 or 4" min.
C24: D = Pipe diameter
C25: OD = Outside pipe diameter

Sheet VCP-R-4 1.0%
A1: Back to Calculations
C21: Key:
C22: As = Area of reinforcing steel
C23: d = depth of bedding under pipe; OD/8 or 4" min.
C24: D = Pipe diameter
C25: OD = Outside pipe diameter

Sheet VCP-Assumptions
A1: VCP Calculation Assumptions
A3: When live load is considered, an HS-20 load applied in an unpaved condition is assumed. If the pipe will not be subjected to live load, the minimum depth of bury does not apply.
A5: Pipe strength is for Extra Strength VCP per ASTM C 700
A7: A minimum trench width of 54 inches (this is the smallest excavator bucket commonly used by some contractors).
A9: Maximum allowable depth of bury was cut off at 30 feet. This is the limit of the design information provided by NCPI. For deeper installations, contact NCPI for additional information.
A11: Return to Calculations
